﻿ACC.Account Name,Gross Amount,FIN.Posting Date,MCH.Merchant Name - Original,FIN.Expense Description,MCH.MCC Description,ACC.Reports To Intermediate Level 1 Name Line 1
REDACTED,99.96,01/07/2020,AMZNMktplace,Training resources - maths subject knowledge,MISCELLANEOUS AND SPECIALTY RETAIL STORES,CHILDREN & YOUNG PEOPLE
REDACTED,44.00,01/07/2020,MY.NORFOLK.GOV.UK,4 URGENT COPY BIRTH CERTIFICATES (62780 x3/62101),GOVERNMENT SERVICES-NOT ELSEWHERE CLASSIFIED,CORPORATE SERVICES
REDACTED,51.56,01/07/2020,FACEBK  VP83ETNBW2,Facebook ads - food savvy,ADVERTISING SERVICES,"GROWTH, HIGHWAYS & INFRASTRUCTURE"
REDACTED,18.25,01/07/2020,Amazon.co.uk HS83E08X5,Ulla Lagoon Smart Hydration Reminder LAS ID 162765,DIRECT MARKETING-OTHER DIRECT MARKETERS/NOT ELSEW.,ADULT & COMMUNITY SERVICES
REDACTED,120.00,01/07/2020,IPSWICH BOROUGH CO,10 additional parking permits,GOVERNMENT SERVICES-NOT ELSEWHERE CLASSIFIED,ADULT & COMMUNITY SERVICES
REDACTED,8.96,01/07/2020,CARD FACTORY,child in care - activity,"GIFT, CARD, NOVELTY AND SOUVENIR SHOPS",CHILDREN & YOUNG PEOPLE
REDACTED,8.32,01/07/2020,AMZNMktplace,Child in care - activity,MISCELLANEOUS AND SPECIALTY RETAIL STORES,CHILDREN & YOUNG PEOPLE
REDACTED,21.30,01/07/2020,WM MORRISONS STORE,child in care - provisions,"GROCERY STORES, SUPERMARKETS",CHILDREN & YOUNG PEOPLE
REDACTED,29.07,01/07/2020,Amazon.co.uk KW1BS9FA5,XXXXX id 1200752 Book,DIRECT MARKETING-OTHER DIRECT MARKETERS/NOT ELSEW.,CHILDREN & YOUNG PEOPLE
REDACTED,169.98,01/07/2020,SMYTHSTOYS.COM,XXXXX 2025938 crib/Highchair,"GAME, TOY, AND HOBBY SHOPS",CHILDREN & YOUNG PEOPLE
REDACTED,11.00,01/07/2020,GEN REGISTER OFFICE,"refund on birth certificates, GRO unable to find",GOVERNMENT SERVICES-NOT ELSEWHERE CLASSIFIED,CHILDREN & YOUNG PEOPLE
REDACTED,84.04,01/07/2020,STORAGEMART UK A-1E06E,1143779/355S Storage fees for client,"FREIGHT CARRIER,TRUCKING-LCL/LNG DIST, MVG/STORAGE",CHILDREN & YOUNG PEOPLE
REDACTED,70.99,01/07/2020,JD SPORTS INTERNET,Child in Care - Clothing footwear,SPORTING GOODS STORES,CHILDREN & YOUNG PEOPLE
REDACTED,5.00,02/07/2020,WWW.SECURE-PAYMENT-SER,240408. 327W. Prison email contact.,"COMP PROGRAMING,DATA PRCSNG,INTGRTD SYS DSGN SRVS",CHILDREN & YOUNG PEOPLE
REDACTED,24.16,02/07/2020,AMZNMktplace,318495. 323W. SUHA,MISCELLANEOUS AND SPECIALTY RETAIL STORES,CHILDREN & YOUNG PEOPLE
REDACTED,1.50,02/07/2020,WWW.GOV.UK,ONLINE PROBATE SEARCH (63034),PROFESSIONAL SERVICES - NOT ELSEWHERE CLASSIFIED,CORPORATE SERVICES
REDACTED,27.02,02/07/2020,TESCO STORE 3240,Children's Home expense - Provisions & toiletries,"GROCERY STORES, SUPERMARKETS",CHILDREN & YOUNG PEOPLE
REDACTED,10.39,02/07/2020,B&M 055 - STOWMARKET,Children's home expense - duvet XXXXX,SUNDRY GENERAL MERCHANDISE,CHILDREN & YOUNG PEOPLE
REDACTED,229.17,02/07/2020,HALFORDS ON LINE,child in care - bike XXXXX,BICYCLE SHOPS - SALES AND SERVICE,CHILDREN & YOUNG PEOPLE
REDACTED,13.91,02/07/2020,WWW.POSTOFFICESHOP.CO.,Address labels for postcards,STATIONERY/OFFICE SUPPLIES/PRINTING & WRITING PAP.,"GROWTH, HIGHWAYS & INFRASTRUCTURE"
REDACTED,10.00,02/07/2020,AMZN Digital,looked after children amazon x box credit,RECORD SHOPS,CHILDREN & YOUNG PEOPLE
REDACTED,2.75,02/07/2020,ASDA  STORES 4218,looked after children provisions,"GROCERY STORES, SUPERMARKETS",CHILDREN & YOUNG PEOPLE
REDACTED,70.00,02/07/2020,BURY ST EDMUNDS,looked after children argos kitchen  equipment,DISCOUNT STORES,CHILDREN & YOUNG PEOPLE
REDACTED,40.77,02/07/2020,ALDI 65 776,looked after children provisions,"GROCERY STORES, SUPERMARKETS",CHILDREN & YOUNG PEOPLE
REDACTED,16.49,03/07/2020,AMZNMktplace,Purchase of item for an AU family,MISCELLANEOUS AND SPECIALTY RETAIL STORES,CHILDREN & YOUNG PEOPLE
REDACTED,10.00,03/07/2020,Amazon.co.uk 298PW4S65,"ID: 396714, 189N, Gift card",DIRECT MARKETING-OTHER DIRECT MARKETERS/NOT ELSEW.,CHILDREN & YOUNG PEOPLE
REDACTED,59.99,03/07/2020,ARGOS LTD,replacement car seat for foster carer,DISCOUNT STORES,CHILDREN & YOUNG PEOPLE
REDACTED,-84.99,03/07/2020,ARGOS LTD,Refund for car seat which was sent back to Argos,DISCOUNT STORES,CHILDREN & YOUNG PEOPLE
REDACTED,50.00,03/07/2020,DISCLOSURE.CO.UK,ENHANCED DBS CHECK FOR XXXXX,INFORMATION RETRIEVAL SERVICES,CORPORATE SERVICES
REDACTED,34.00,03/07/2020,DVLA DRIVER ONLINE,320776. 337W. Prov Driv Lic.,GOVERNMENT SERVICES-NOT ELSEWHERE CLASSIFIED,CHILDREN & YOUNG PEOPLE
REDACTED,34.00,03/07/2020,DVLA DRIVER ONLINE,245031. 338W. Prov. Driv. Lic.,GOVERNMENT SERVICES-NOT ELSEWHERE CLASSIFIED,CHILDREN & YOUNG PEOPLE
REDACTED,47.80,03/07/2020,POLYBAGS LTD,poly bags for PPE packing,NONDURABLE GOODS (NOT ELSEWHERE CLASSIFIED),CHILDREN & YOUNG PEOPLE
REDACTED,119.00,03/07/2020,WWW.DRMARTENS.COM,No receipt.  Vegan Shoes for XXXXX,MISCELLANEOUS AND SPECIALTY RETAIL STORES,FIRE & PUBLIC SAFETY
REDACTED,97.00,03/07/2020,JD SPORTS INTERNET,clothing EHT SFF funding XXXXX,SPORTING GOODS STORES,CHILDREN & YOUNG PEOPLE
REDACTED,79.82,03/07/2020,B&M 420 - HS LOWESTOFT,Child in care - equipment bathroom,SUNDRY GENERAL MERCHANDISE,CHILDREN & YOUNG PEOPLE
REDACTED,466.08,03/07/2020,BOOKERECOMM,Child in Care - Provisions,CATERERS,CHILDREN & YOUNG PEOPLE
REDACTED,75.25,03/07/2020,ALDI 776 147,Child in care - Provisions,"GROCERY STORES, SUPERMARKETS",CHILDREN & YOUNG PEOPLE
REDACTED,137.01,03/07/2020,RS COMPONENTS,Multistar Pump bay door hinges,ELECTRICAL PARTS AND EQUIPMENT,FIRE & PUBLIC SAFETY
REDACTED,14.00,03/07/2020,GEN REGISTER OFFICE,Death certificate,GOVERNMENT SERVICES-NOT ELSEWHERE CLASSIFIED,CORPORATE SERVICES
REDACTED,14.00,03/07/2020,GEN REGISTER OFFICE,Death certificate,GOVERNMENT SERVICES-NOT ELSEWHERE CLASSIFIED,CORPORATE SERVICES
REDACTED,14.00,03/07/2020,GEN REGISTER OFFICE,Death Certificate,GOVERNMENT SERVICES-NOT ELSEWHERE CLASSIFIED,CORPORATE SERVICES
REDACTED,64.95,06/07/2020,WWW.TEST-METER.CO.UK,PAT Testing printer label rolls,"COMMERCIAL EQUIPMENT, NOT ELSEWHERE CLASSIFIED",FIRE & PUBLIC SAFETY
REDACTED,55.79,06/07/2020,MAILCHIMP    MONTHLY,Monthly au mailings,DIRECT MARKETING - CONTINUITY/SUBSCRIPTION MERCHANTS,CHILDREN & YOUNG PEOPLE
REDACTED,42.00,06/07/2020,WWW.JA.NET,SSL Cert SR-137990 XXXXX,"ORGANISATIONS, MEMBERSHIP-NOT ELSEWHERE CLASSIFIED",CORPORATE SERVICES
REDACTED,2.89,06/07/2020,PAYPAL  HI5SOLUTION EB,Replacement case for work phone,VARIETY STORES,FIRE & PUBLIC SAFETY
REDACTED,5.97,06/07/2020,PAYPAL  XTREME GEN EBA,Replacement phone charging cable for work car,CAMERA AND PHOTOGRAPHIC SUPPLY STORES,FIRE & PUBLIC SAFETY
REDACTED,158.00,06/07/2020,HI IPSWICH RECEPTI,Suspect EDS Acc - XXXXX to clarify,"LODGING-HOTELS,MOTELS,RESORTS-NOT CLASSIFIED",CHILDREN & YOUNG PEOPLE
REDACTED,7.99,06/07/2020,Amazon Prime OY0ER1BP5,Amazon Prime Subscription.,DIRECT MARKETING - CONTINUITY/SUBSCRIPTION MERCHANTS,CHILDREN & YOUNG PEOPLE
REDACTED,1.98,06/07/2020,MCDONALDS 1560,Children's home expense - keyworking XXXXX,"EATING PLACES, RESTAURANTS",CHILDREN & YOUNG PEOPLE
REDACTED,123.40,06/07/2020,MICHAELS BUTCHERS,Children's home expense - provisons,"FREEZER, LOCKER MEAT PROVISIONERS",CHILDREN & YOUNG PEOPLE
REDACTED,58.00,06/07/2020,SPORTSDIRECT.COM,Children's Home Expense - clothing,SPORTING GOODS STORES,CHILDREN & YOUNG PEOPLE
REDACTED,20.00,06/07/2020,SPECSAVERS,Children's home expense - glasses tint XXXXX,"OPTICIANS, OPTICAL GOODS & EYEGLASSES",CHILDREN & YOUNG PEOPLE
REDACTED,23.00,06/07/2020,STONHAM BARNS GOLF,Children's home expense - Activity,COMPUTER SOFTWARE STORES,CHILDREN & YOUNG PEOPLE
REDACTED,-200.00,06/07/2020,HOMEAWAY RDD,Refund Damage Deposit for Reservation XXXXX-MDV3HL,REAL ESTATE AGENTS AND MANAGERS-RENTALS,CHILDREN & YOUNG PEOPLE
REDACTED,-100.00,06/07/2020,HOMEAWAY RDD,Refund Damange Deposit for Reservation ID XXXXX-PCDR2,REAL ESTATE AGENTS AND MANAGERS-RENTALS,CHILDREN & YOUNG PEOPLE
REDACTED,38.46,06/07/2020,NEW LOOK INTERNET,clothing EHT SFF funding XXXXX,WOMEN'S READY-TO-WEAR STORES,CHILDREN & YOUNG PEOPLE
REDACTED,40.24,06/07/2020,AMZNMKTPLACE AMAZON.CO,bottles with clips (covid-19) business support,MISCELLANEOUS AND SPECIALTY RETAIL STORES,CHILDREN & YOUNG PEOPLE
REDACTED,28.99,06/07/2020,AMZNMktplace,trainers for young person early help 086JC102/1,MISCELLANEOUS AND SPECIALTY RETAIL STORES,CHILDREN & YOUNG PEOPLE
REDACTED,25.99,06/07/2020,AMZNMktplace,Materials for instrument cleaning,MISCELLANEOUS AND SPECIALTY RETAIL STORES,CHILDREN & YOUNG PEOPLE
REDACTED,43.28,06/07/2020,AMZNMktplace,child in care - activity XXXXX,MISCELLANEOUS AND SPECIALTY RETAIL STORES,CHILDREN & YOUNG PEOPLE
REDACTED,41.22,06/07/2020,Dominos Pizza UK & Ire,Child in care - activity,"EATING PLACES, RESTAURANTS",CHILDREN & YOUNG PEOPLE
REDACTED,22.92,06/07/2020,AMZNMKTPLACE AMAZON.CO,child in care - equipment,MISCELLANEOUS AND SPECIALTY RETAIL STORES,CHILDREN & YOUNG PEOPLE
REDACTED,5.12,06/07/2020,AMZNMktplace,child in care - activity,MISCELLANEOUS AND SPECIALTY RETAIL STORES,CHILDREN & YOUNG PEOPLE
REDACTED,90.00,06/07/2020,Amazon.co.uk 9G8UO51C5,Vouchers for young people interviewing,DIRECT MARKETING-OTHER DIRECT MARKETERS/NOT ELSEW.,CHILDREN & YOUNG PEOPLE
REDACTED,500.00,06/07/2020,GOOGLE  ADS6087318024,Stick with it Suffolk video,ADVERTISING SERVICES,CORPORATE SERVICES
REDACTED,300.00,06/07/2020,FACEBK HMU6SU6PF2,Facebook advertising,ADVERTISING SERVICES,CORPORATE SERVICES
REDACTED,27.50,06/07/2020,SCREWFIX DIRECT,Safety Shoes XXXXX,HOME SUPPLY WAREHOUSE STORES,FIRE & PUBLIC SAFETY
REDACTED,19.95,06/07/2020,Amazon.co.uk 9305X5VC5,XXXXX 2028816 English/Dari Dictionary 020SL132,DIRECT MARKETING-OTHER DIRECT MARKETERS/NOT ELSEW.,CHILDREN & YOUNG PEOPLE
REDACTED,43.27,06/07/2020,AMZNMktplace,XXXXX 2010864 Educational/well being books 020SL133,MISCELLANEOUS AND SPECIALTY RETAIL STORES,CHILDREN & YOUNG PEOPLE
REDACTED,64.74,06/07/2020,OXFORD SAFETY SUPPLIES,Quilted loop velcro helmet holder for XXXXX,"MUSIC STORES-INSTRUMENTS, PIANOS, SHEET MUSIC",FIRE & PUBLIC SAFETY
REDACTED,4.99,06/07/2020,B&M 405 - WESTERN WAY,looked after children travel kit for visit contact,SUNDRY GENERAL MERCHANDISE,CHILDREN & YOUNG PEOPLE
REDACTED,18.87,06/07/2020,B&M 405 - WESTERN WAY,looked after children new child's storage boxes,SUNDRY GENERAL MERCHANDISE,CHILDREN & YOUNG PEOPLE
REDACTED,13.30,06/07/2020,HOWARD FRIED CHICKEN L,looked after children takeaway,FAST FOOD RESTAURANTS,CHILDREN & YOUNG PEOPLE
REDACTED,70.36,06/07/2020,B&Q DIRECT,Decorating equipment for XXXXX,HOME SUPPLY WAREHOUSE STORES,CHILDREN & YOUNG PEOPLE
REDACTED,35.95,06/07/2020,Dunelm,Bedroom furniture for XXXXX,"EQUIP, FURNITURE, HOME FURNSHNGS STRS (EXCPT APPL)",CHILDREN & YOUNG PEOPLE
REDACTED,40.08,06/07/2020,ZAZZLE GBP,221000/720S setting up home allowance for client,SUNDRY GENERAL MERCHANDISE,CHILDREN & YOUNG PEOPLE
REDACTED,10.00,06/07/2020,THE VOUCHER MARKET LTD,291669/723S birthday allowance for client,MISCELLANEOUS AND SPECIALTY RETAIL STORES,CHILDREN & YOUNG PEOPLE
REDACTED,-120.00,06/07/2020,Dunelm,767975/719S setting up home allowance for client,"EQUIP, FURNITURE, HOME FURNSHNGS STRS (EXCPT APPL)",CHILDREN & YOUNG PEOPLE
REDACTED,-5.99,06/07/2020,JD SPORTS INTERNET,Child in Care - Footwear del charge refund,SPORTING GOODS STORES,CHILDREN & YOUNG PEOPLE
REDACTED,13.45,07/07/2020,TESCO STORE 3240,Children's Home Expense - Provisions,"GROCERY STORES, SUPERMARKETS",CHILDREN & YOUNG PEOPLE
REDACTED,50.00,07/07/2020,AMZN Digital,Children's Home Expense - pocket money XXXXX,RECORD SHOPS,CHILDREN & YOUNG PEOPLE
REDACTED,50.00,07/07/2020,AMZN Digital,Children's Home Expense - Reward,RECORD SHOPS,CHILDREN & YOUNG PEOPLE
REDACTED,115.08,07/07/2020,CENTRAL SOURCE LTD,Security barrier for FSATS,SUNDRY PUBLISHING AND PRINTING,FIRE & PUBLIC SAFETY
REDACTED,35.75,07/07/2020,PRESS GANG,Tickets 83920/83961 laundering recruit testing ppe,"CLEANING, GARMENT, AND LAUNDRY SERVICES",FIRE & PUBLIC SAFETY
REDACTED,124.08,07/07/2020,WELLTEX  UK  LTD,Child in Care - Equipment magnetic track,HOUSEHOLD APPLIANCE STORES,CHILDREN & YOUNG PEOPLE
REDACTED,38.31,07/07/2020,ASDA STORES LTD 5729,child in care - provisions,"GROCERY STORES, SUPERMARKETS",CHILDREN & YOUNG PEOPLE
REDACTED,7.49,07/07/2020,AMZNMktplace,Children in care - inks for activity,MISCELLANEOUS AND SPECIALTY RETAIL STORES,CHILDREN & YOUNG PEOPLE
REDACTED,60.00,07/07/2020,WWW.ICO.ORG.UK,Statutory fee for annual registration with the ICO,GOVERNMENT SERVICES-NOT ELSEWHERE CLASSIFIED,CORPORATE SERVICES
REDACTED,480.00,07/07/2020,FACEBK  CF2QQUJSP2,Facebook advertising,ADVERTISING SERVICES,CORPORATE SERVICES
REDACTED,12.50,07/07/2020,SCREWFIX DIRECT,Hex Key Set Hydraulics Bay,HOME SUPPLY WAREHOUSE STORES,FIRE & PUBLIC SAFETY
REDACTED,1074.00,07/07/2020,FITNESS WAREHOUSE LTD,CST Mats,SPORTING GOODS STORES,FIRE & PUBLIC SAFETY
REDACTED,23.32,07/07/2020,ARGOS LTD,XXXXX 2009008 Fan 020SL143,DISCOUNT STORES,CHILDREN & YOUNG PEOPLE
REDACTED,-27.49,07/07/2020,AMZNMKTPLACE AMAZON.CO,Full Credit for Laptop Stand purchased 15/06.2020,MISCELLANEOUS AND SPECIALTY RETAIL STORES,CHILDREN & YOUNG PEOPLE
REDACTED,107.44,07/07/2020,AMZNMktplace,2XWireless mouse 3 x presentation clickers,MISCELLANEOUS AND SPECIALTY RETAIL STORES,FIRE & PUBLIC SAFETY
REDACTED,338.80,07/07/2020,PRESS GANG,Laundry collection from Wattisham,"CLEANING, GARMENT, AND LAUNDRY SERVICES",FIRE & PUBLIC SAFETY
REDACTED,325.12,07/07/2020,MACHINE MART WEB,Swivel and brake castors x 4,"EQUIPMENT RENTAL & LEASING SVS, FURNTURE/TOOL RENTAL",FIRE & PUBLIC SAFETY
REDACTED,42.09,07/07/2020,BOOHOO.COM,Clothing for XXXXX,MEN'S AND WOMEN'S CLOTHING STORES,CHILDREN & YOUNG PEOPLE
REDACTED,20.52,07/07/2020,POST OFFICE COUNTER,Stamps for Committee Info letters Poplar Farm,POSTAL SERVICES-GOVERNMENT ONLY,"GROWTH, HIGHWAYS & INFRASTRUCTURE"
REDACTED,-82.34,07/07/2020,Amazon.co.uk,Refund on incorrect purchase,DIRECT MARKETING-OTHER DIRECT MARKETERS/NOT ELSEW.,"GROWTH, HIGHWAYS & INFRASTRUCTURE"
REDACTED,10.00,08/07/2020,Amazon.co.uk RK4YF3QJ5,"ID: 316081, 195N, Gift card",DIRECT MARKETING-OTHER DIRECT MARKETERS/NOT ELSEW.,CHILDREN & YOUNG PEOPLE
REDACTED,16.66,08/07/2020,CURRYS ONLINE,"ID: 1054954, 199N, fryer",ELECTRONIC SALES,CHILDREN & YOUNG PEOPLE
REDACTED,159.99,08/07/2020,CURRYS ONLINE,"ID: 1059164, 192N, Fridge freezer",ELECTRONIC SALES,CHILDREN & YOUNG PEOPLE
REDACTED,568.80,08/07/2020,HOMEAWAY HA4HV7KN,Adoption Introductions,REAL ESTATE AGENTS AND MANAGERS-RENTALS,CHILDREN & YOUNG PEOPLE
REDACTED,15.00,08/07/2020,Amazon.co.uk TI92H0ER5,AMAZON GIFT VOUCHER FOR XXXXX FOR BIRTHDAY,DIRECT MARKETING-OTHER DIRECT MARKETERS/NOT ELSEW.,CHILDREN & YOUNG PEOPLE
REDACTED,100.00,08/07/2020,ONE4ALL,5 X £20 VOUCHERS FOR YOUNG PEOPLE,DEPARTMENT STORES,CHILDREN & YOUNG PEOPLE
REDACTED,104.78,08/07/2020,TESCO STORE 3240,Children's home expense - Provisons,"GROCERY STORES, SUPERMARKETS",CHILDREN & YOUNG PEOPLE
REDACTED,4.00,08/07/2020,TESCO STORE 3240,Children's home expense - toiletries XXXXX,"GROCERY STORES, SUPERMARKETS",CHILDREN & YOUNG PEOPLE
REDACTED,1.40,08/07/2020,TESCO STORE 3240,Children's Home Expense - Toiletries XXXXX,"GROCERY STORES, SUPERMARKETS",CHILDREN & YOUNG PEOPLE
REDACTED,4.00,08/07/2020,TESCO STORE 3240,Children's home expense - toiletries XXXXX,"GROCERY STORES, SUPERMARKETS",CHILDREN & YOUNG PEOPLE
REDACTED,19.99,08/07/2020,AMZNMKTPLACE AMAZON.CO,child in care - No contact digital thermometer,MISCELLANEOUS AND SPECIALTY RETAIL STORES,CHILDREN & YOUNG PEOPLE
REDACTED,23.73,08/07/2020,AMZNMktplace,Gym equipment for XXXXX,MISCELLANEOUS AND SPECIALTY RETAIL STORES,CHILDREN & YOUNG PEOPLE
REDACTED,37.99,08/07/2020,Amazon.co.uk UD6ON8WZ5,XXXXX 2025938 cooking book 020SL142,DIRECT MARKETING-OTHER DIRECT MARKETERS/NOT ELSEW.,CHILDREN & YOUNG PEOPLE
REDACTED,125.08,08/07/2020,ARGOS LTD,XXXXX 271630 High bed,DISCOUNT STORES,CHILDREN & YOUNG PEOPLE
REDACTED,15.83,08/07/2020,ARGOS LTD,XXXXX 271630 Bedding,DISCOUNT STORES,CHILDREN & YOUNG PEOPLE
REDACTED,74.50,08/07/2020,COMMERCIAL BODY FI,Door hinges - XXXXX,"AUTOMOTIVE PARTS, ACCESSORIES STORES",FIRE & PUBLIC SAFETY
REDACTED,120.00,08/07/2020,OATEIN,Health nutrition bars for Wattisham students,"MISC FOOD STORE-CONVENIENCE,MRKT,SPLTY,VENDNG MACS",FIRE & PUBLIC SAFETY
REDACTED,32.50,08/07/2020,POST OFFICE COUNTER,50 x 2nd Class Stamps Covid 19,POSTAL SERVICES-GOVERNMENT ONLY,CHILDREN & YOUNG PEOPLE
REDACTED,157.50,09/07/2020,TVLICENSING.CO.UK,"ID: 1054954, 201N, TV Licence","CONSULTING, MANAGEMENT AND PUBLIC RELATIONS SVCS",CHILDREN & YOUNG PEOPLE
REDACTED,13.48,09/07/2020,AMZNMKTPLACE AMAZON.CO,"ID: 1054954, 200N, utensils set",MISCELLANEOUS AND SPECIALTY RETAIL STORES,CHILDREN & YOUNG PEOPLE
REDACTED,14.00,09/07/2020,GEN REGISTER OFFICE,374443. 350W. B'Cert copy.,GOVERNMENT SERVICES-NOT ELSEWHERE CLASSIFIED,CHILDREN & YOUNG PEOPLE
REDACTED,6.99,09/07/2020,Amazon.co.uk C765K6VX5,Children in care - book for children,DIRECT MARKETING-OTHER DIRECT MARKETERS/NOT ELSEW.,CHILDREN & YOUNG PEOPLE
REDACTED,25.43,09/07/2020,MEDISAVE,Pulse oximeter and heart rate gel,DENTAL/LAB/MED/OPHTHALMIC HOSP EQUIP & SUPPLIES,FIRE & PUBLIC SAFETY
REDACTED,33.32,09/07/2020,AMZNMktplace,Foldable Laptop Desk,MISCELLANEOUS AND SPECIALTY RETAIL STORES,CHILDREN & YOUNG PEOPLE
REDACTED,-49.99,09/07/2020,AMZ Best-Home,returned standing desk,MISCELLANEOUS AND SPECIALTY RETAIL STORES,CHILDREN & YOUNG PEOPLE
REDACTED,7.00,09/07/2020,ASDA  STORES 4218,looked after children food provisions,"GROCERY STORES, SUPERMARKETS",CHILDREN & YOUNG PEOPLE
REDACTED,3.00,09/07/2020,ALDI 65 776,looked after children food,"GROCERY STORES, SUPERMARKETS",CHILDREN & YOUNG PEOPLE
REDACTED,13.53,09/07/2020,ALDI 65 776,looked after children food,"GROCERY STORES, SUPERMARKETS",CHILDREN & YOUNG PEOPLE
REDACTED,4.23,09/07/2020,ALDI 65 776,looked after children provisions food,"GROCERY STORES, SUPERMARKETS",CHILDREN & YOUNG PEOPLE
REDACTED,14.03,09/07/2020,SPORTSDIRECT 255,looked after children sport clothing,SPORTING GOODS STORES,CHILDREN & YOUNG PEOPLE
REDACTED,45.82,09/07/2020,AMZNMKTPLACE AMAZON.CO,319100/741S Setting up home allowance for client,MISCELLANEOUS AND SPECIALTY RETAIL STORES,CHILDREN & YOUNG PEOPLE
REDACTED,59.98,09/07/2020,WWW.GAME.CO.UK,475369/481S Equipment for client,"GAME, TOY, AND HOBBY SHOPS",CHILDREN & YOUNG PEOPLE
REDACTED,14.00,09/07/2020,GEN REGISTER OFFICE,Death certificate,GOVERNMENT SERVICES-NOT ELSEWHERE CLASSIFIED,CORPORATE SERVICES
REDACTED,48.60,10/07/2020,AMZNMKTPLACE AMAZON.CO,"ID: 1059164, 191N, glasses, bedding, kettle",MISCELLANEOUS AND SPECIALTY RETAIL STORES,CHILDREN & YOUNG PEOPLE
REDACTED,-159.99,10/07/2020,CURRYS ONLINE,"ID: 1059164, 192N, Fridge freezer refund",ELECTRONIC SALES,CHILDREN & YOUNG PEOPLE
REDACTED,208.32,10/07/2020,CURRYS ONLINE,1205848. 369W. SUHA,ELECTRONIC SALES,CHILDREN & YOUNG PEOPLE
REDACTED,41.67,10/07/2020,AMZN Digital,Chidren's Home Expense - Playsation voucher,RECORD SHOPS,CHILDREN & YOUNG PEOPLE
REDACTED,33.99,10/07/2020,JD SPORTS INTERNET,clothing EHT SFF funding XXXXX,SPORTING GOODS STORES,CHILDREN & YOUNG PEOPLE
REDACTED,30.50,10/07/2020,AMZNMktplace,child in care - Digital Thermometer,MISCELLANEOUS AND SPECIALTY RETAIL STORES,CHILDREN & YOUNG PEOPLE
REDACTED,150.86,10/07/2020,ALDI 776 147,Child in care - provisions,"GROCERY STORES, SUPERMARKETS",CHILDREN & YOUNG PEOPLE
REDACTED,18.00,10/07/2020,HALFORDS 0701,child in care - activity,BICYCLE SHOPS - SALES AND SERVICE,CHILDREN & YOUNG PEOPLE
REDACTED,33.32,10/07/2020,AMZNMKTPLACE AMAZON.CO,Foldable Laptop Desk,MISCELLANEOUS AND SPECIALTY RETAIL STORES,CHILDREN & YOUNG PEOPLE
REDACTED,965.52,10/07/2020,WP-BITO STORAGE SY,Open ended storage boxes for Wattisham,INDUSTRIAL SUPPLIES NOT ELSEWHERE CLASSIFIED,FIRE & PUBLIC SAFETY
REDACTED,19.00,10/07/2020,ASDA STORES,looked after children provisions food,"GROCERY STORES, SUPERMARKETS",CHILDREN & YOUNG PEOPLE
REDACTED,80.00,10/07/2020,ASDA STORES,looked after children food provisions,"GROCERY STORES, SUPERMARKETS",CHILDREN & YOUNG PEOPLE
REDACTED,62.73,10/07/2020,ALDI 65 776,looked after children provisions food,"GROCERY STORES, SUPERMARKETS",CHILDREN & YOUNG PEOPLE
REDACTED,14.00,10/07/2020,GEN REGISTER OFFICE,Death certificate,GOVERNMENT SERVICES-NOT ELSEWHERE CLASSIFIED,CORPORATE SERVICES
REDACTED,42.00,13/07/2020,WWW.JA.NET,SSL Certs SR-139137 XXXXX,"ORGANISATIONS, MEMBERSHIP-NOT ELSEWHERE CLASSIFIED",CORPORATE SERVICES
REDACTED,16.77,13/07/2020,AMZNMktplace,Children's Home Expense - Activity items for CIC,MISCELLANEOUS AND SPECIALTY RETAIL STORES,CHILDREN & YOUNG PEOPLE
REDACTED,5.99,13/07/2020,NETFLIX.COM,Children's Home Expense - Activity CIC,"CABLE, SATELLITE, OTHER PAY TELEVISION, RADIO SVCS",CHILDREN & YOUNG PEOPLE
REDACTED,20.00,13/07/2020,B&M 055 - STOWMARKET,Children's Home Expense - Curtains XXXXX,SUNDRY GENERAL MERCHANDISE,CHILDREN & YOUNG PEOPLE
REDACTED,32.86,13/07/2020,ASDA SUPERSTORE,Children's Home Expense - Provisons,"GROCERY STORES, SUPERMARKETS",CHILDREN & YOUNG PEOPLE
REDACTED,60.11,13/07/2020,AMZNMKTPLACE AMAZON.CO,Children's Home Expense - Activity for CIC,MISCELLANEOUS AND SPECIALTY RETAIL STORES,CHILDREN & YOUNG PEOPLE
REDACTED,42.98,13/07/2020,NEW LOOK INTERNET,clothing EHT SFF funding XXXXX,WOMEN'S READY-TO-WEAR STORES,CHILDREN & YOUNG PEOPLE
REDACTED,5.64,13/07/2020,B&M 420 - HS LOWESTOFT,Child in Care - toiletries,SUNDRY GENERAL MERCHANDISE,CHILDREN & YOUNG PEOPLE
REDACTED,53.03,13/07/2020,B&M 420 - HS LOWESTOFT,Child in care - equipment,SUNDRY GENERAL MERCHANDISE,CHILDREN & YOUNG PEOPLE
REDACTED,119.30,13/07/2020,FACEBK  GQY66UJTP2,Facebook advertising,ADVERTISING SERVICES,CORPORATE SERVICES
REDACTED,500.00,13/07/2020,GOOGLE  ADS6087318024,Stick with it Suffolk,"COMP PROGRAMING,DATA PRCSNG,INTGRTD SYS DSGN SRVS",CORPORATE SERVICES
REDACTED,300.00,13/07/2020,FACEBK U6LLFUNNF2,Facebook advertising,ADVERTISING SERVICES,CORPORATE SERVICES
REDACTED,41.62,13/07/2020,ARGOS LTD,XXXXX 2029504 Phone 020SL152,DISCOUNT STORES,CHILDREN & YOUNG PEOPLE
REDACTED,-7.50,13/07/2020,GEN REGISTER OFFICE,refund on certificate,GOVERNMENT SERVICES-NOT ELSEWHERE CLASSIFIED,CHILDREN & YOUNG PEOPLE
REDACTED,-7.50,13/07/2020,GEN REGISTER OFFICE,refund on certificate,GOVERNMENT SERVICES-NOT ELSEWHERE CLASSIFIED,CHILDREN & YOUNG PEOPLE
REDACTED,32.50,13/07/2020,POST OFFICE COUNTER,50 x 2nd class Stamps Covid 19,POSTAL SERVICES-GOVERNMENT ONLY,CHILDREN & YOUNG PEOPLE
REDACTED,17.08,13/07/2020,TESCO STORE 2166,looked after children food,"GROCERY STORES, SUPERMARKETS",CHILDREN & YOUNG PEOPLE
REDACTED,25.99,13/07/2020,KFC BURY ST EDMUNDS,looked after children take away,FAST FOOD RESTAURANTS,CHILDREN & YOUNG PEOPLE
REDACTED,31.32,13/07/2020,ALDI 65 776,looked after children food provisions,"GROCERY STORES, SUPERMARKETS",CHILDREN & YOUNG PEOPLE
REDACTED,5.15,13/07/2020,GREGGS,looked after children 1  to 1 with child,"EATING PLACES, RESTAURANTS",CHILDREN & YOUNG PEOPLE
REDACTED,9.67,13/07/2020,B&M 405 - WESTERN WAY,looked after children items for new child,SUNDRY GENERAL MERCHANDISE,CHILDREN & YOUNG PEOPLE
REDACTED,56.55,13/07/2020,www.asos.com,Clothing for XXXXX,FAMILY CLOTHING STORES,CHILDREN & YOUNG PEOPLE
REDACTED,16.45,13/07/2020,Amazon.co.uk C76UZ53Z5,Therapeutic Parenting Book - Kinship Carer XXXXX,DIRECT MARKETING-OTHER DIRECT MARKETERS/NOT ELSEW.,CHILDREN & YOUNG PEOPLE
REDACTED,34.72,13/07/2020,Amazon.co.uk OQ5WU0E85,ChildDevelopment/Toddler Discipline Books Knshp XXXXX,DIRECT MARKETING-OTHER DIRECT MARKETERS/NOT ELSEW.,CHILDREN & YOUNG PEOPLE
REDACTED,151.62,13/07/2020,AMZNMktplace,Re-useable Face Masks for UASC - 020SL150,MISCELLANEOUS AND SPECIALTY RETAIL STORES,CHILDREN & YOUNG PEOPLE
REDACTED,59.99,13/07/2020,Microsoft Microsoft 36,Microsoft Office renewal charge,DIGITAL GOODS GAMES,"GROWTH, HIGHWAYS & INFRASTRUCTURE"
REDACTED,5.72,13/07/2020,Amazon.co.uk V35JZ3YH5,"Note books for XXXXX SW, agreed XXXXX",DIRECT MARKETING-OTHER DIRECT MARKETERS/NOT ELSEW.,CHILDREN & YOUNG PEOPLE
REDACTED,24.52,13/07/2020,iMagazine AG,On line tool -to create professional surveys/forms,"BOOKS, PERIODICALS AND NEWSPAPERS","GROWTH, HIGHWAYS & INFRASTRUCTURE"
REDACTED,5.62,13/07/2020,TESCO STORE 2166,Black Sacks for PPE Waste and breast pump returns,"GROCERY STORES, SUPERMARKETS",CHILDREN & YOUNG PEOPLE
REDACTED,108.20,13/07/2020,Amazon.co.uk JJ5PJ5ES5,Keyboard and mice for ACS staff,DIRECT MARKETING-OTHER DIRECT MARKETERS/NOT ELSEW.,ADULT & COMMUNITY SERVICES
REDACTED,121.70,14/07/2020,TESCO STORE 3240,Children's Home Expense - Provisons & Laundry,"GROCERY STORES, SUPERMARKETS",CHILDREN & YOUNG PEOPLE
REDACTED,3.20,14/07/2020,B&M 055 - STOWMARKET,Children's Home Expense - batteries,SUNDRY GENERAL MERCHANDISE,CHILDREN & YOUNG PEOPLE
REDACTED,41.25,14/07/2020,PRESS GANG,Ticket 84162 for laundering recruit testing PPE,"CLEANING, GARMENT, AND LAUNDRY SERVICES",FIRE & PUBLIC SAFETY
REDACTED,-100.00,14/07/2020,HOMEAWAY RDD,credit deposit accomodation,REAL ESTATE AGENTS AND MANAGERS-RENTALS,CHILDREN & YOUNG PEOPLE
REDACTED,50.00,14/07/2020,GEN REGISTER OFFICE,birth certificate x 2,GOVERNMENT SERVICES-NOT ELSEWHERE CLASSIFIED,CHILDREN & YOUNG PEOPLE
REDACTED,25.00,14/07/2020,GEN REGISTER OFFICE,marriage certificate,GOVERNMENT SERVICES-NOT ELSEWHERE CLASSIFIED,CHILDREN & YOUNG PEOPLE
REDACTED,22.00,14/07/2020,GEN REGISTER OFFICE,Birth certificate x 2,GOVERNMENT SERVICES-NOT ELSEWHERE CLASSIFIED,CHILDREN & YOUNG PEOPLE
REDACTED,58.30,14/07/2020,Amazon.co.uk 5Y2LU4T75,Boxes for office,DIRECT MARKETING-OTHER DIRECT MARKETERS/NOT ELSEW.,"GROWTH, HIGHWAYS & INFRASTRUCTURE"
REDACTED,18.29,14/07/2020,Amazon.co.uk XK6JE4S65,Mitre Saw Equipment for XXXXX,DIRECT MARKETING-OTHER DIRECT MARKETERS/NOT ELSEW.,CHILDREN & YOUNG PEOPLE
REDACTED,69.64,14/07/2020,STORAGEMART UK A-F9830,1143779/355S storage fees for client,"FREIGHT CARRIER,TRUCKING-LCL/LNG DIST, MVG/STORAGE",CHILDREN & YOUNG PEOPLE
REDACTED,95.97,14/07/2020,LLOYDS PHARMACY,Firefighting equipment,"DRUG STORES, PHARMACIES",FIRE & PUBLIC SAFETY
REDACTED,50.98,14/07/2020,LLOYDS PHARMACY,Firefighting Equipment,"DRUG STORES, PHARMACIES",FIRE & PUBLIC SAFETY
REDACTED,-7.50,14/07/2020,GEN REGISTER OFFICE,Death Certificate,GOVERNMENT SERVICES-NOT ELSEWHERE CLASSIFIED,CORPORATE SERVICES
REDACTED,195.00,14/07/2020,THE POST OFFICE,Stamps for neighbour notifications,POSTAL SERVICES-GOVERNMENT ONLY,"GROWTH, HIGHWAYS & INFRASTRUCTURE"
REDACTED,118.46,14/07/2020,LLOYDS PHARMACY,"Handheld thermometers, SRT use not delivered","DRUG STORES, PHARMACIES",FIRE & PUBLIC SAFETY
REDACTED,4.50,15/07/2020,WWW.MIB.ORG.UK,Motor Insurance Database search (63109),PROFESSIONAL SERVICES - NOT ELSEWHERE CLASSIFIED,CORPORATE SERVICES
REDACTED,22.50,15/07/2020,B&Q DIRECT,304226. 359W. Painting materials.,HOME SUPPLY WAREHOUSE STORES,CHILDREN & YOUNG PEOPLE
REDACTED,6.66,15/07/2020,Amazon Prime 4B6A72OU5,Children's Home Expense - Activity,DIRECT MARKETING - CONTINUITY/SUBSCRIPTION MERCHANTS,CHILDREN & YOUNG PEOPLE
REDACTED,4.63,15/07/2020,B&M 055 - STOWMARKET,Children's Home Expense-Allergy tabs & washing lin,SUNDRY GENERAL MERCHANDISE,CHILDREN & YOUNG PEOPLE
REDACTED,75.85,15/07/2020,ARDMOOR LTD,2 wading poles Normal supplier can longer supply,DEPARTMENT STORES,FIRE & PUBLIC SAFETY
REDACTED,17.06,15/07/2020,AMZNMktplace,XXXXX 2025046 Paint by numbers 020SL161,MISCELLANEOUS AND SPECIALTY RETAIL STORES,CHILDREN & YOUNG PEOPLE
REDACTED,119.90,15/07/2020,ZOOM.GBP,Zoom Pro licence,DIRECT MARKETING - CONTINUITY/SUBSCRIPTION MERCHANTS,"GROWTH, HIGHWAYS & INFRASTRUCTURE"
REDACTED,11.00,15/07/2020,GEN REGISTER OFFICE,Marriage certifcate,GOVERNMENT SERVICES-NOT ELSEWHERE CLASSIFIED,CHILDREN & YOUNG PEOPLE
REDACTED,22.00,15/07/2020,GEN REGISTER OFFICE,birth certificate x 2,GOVERNMENT SERVICES-NOT ELSEWHERE CLASSIFIED,CHILDREN & YOUNG PEOPLE
REDACTED,10.10,15/07/2020,TESCO STORES 5086,looked after children provisions food,"GROCERY STORES, SUPERMARKETS",CHILDREN & YOUNG PEOPLE
REDACTED,120.58,15/07/2020,Amazon.co.uk RE36V4SN5,Mitre Saw for XXXXX,DIRECT MARKETING-OTHER DIRECT MARKETERS/NOT ELSEW.,CHILDREN & YOUNG PEOPLE
REDACTED,11.00,15/07/2020,LONDON BOROUGH OF NEWH,Birth Certificate for XXXXX 1161164,GOVERNMENT SERVICES-NOT ELSEWHERE CLASSIFIED,CHILDREN & YOUNG PEOPLE
REDACTED,20.00,15/07/2020,HMCTS-SUFFOLK024,1215557/39N fine for client,FINES,CHILDREN & YOUNG PEOPLE
REDACTED,20.00,15/07/2020,HMCTS-NORFOLK030,1157099/47S fine for client,FINES,CHILDREN & YOUNG PEOPLE
REDACTED,2.49,15/07/2020,AMZNMKTPLACE AMAZON.CO,Child in Care - Incentive reward,MISCELLANEOUS AND SPECIALTY RETAIL STORES,CHILDREN & YOUNG PEOPLE
REDACTED,16.23,15/07/2020,AMZNMktplace,Light for XXXXX 3024471 + delivery,MISCELLANEOUS AND SPECIALTY RETAIL STORES,ADULT & COMMUNITY SERVICES
REDACTED,74.99,16/07/2020,AMZNMktplace,318495. 361W. SUHA,MISCELLANEOUS AND SPECIALTY RETAIL STORES,CHILDREN & YOUNG PEOPLE
REDACTED,296.42,16/07/2020,BYTEMARK HOSTING,One Suffolk Hosting XXXXX,COMPUTER SOFTWARE STORES,CORPORATE SERVICES
REDACTED,20.00,16/07/2020,Amazon.co.uk 8L64V1P35,Birthday gift card for XXXXX,DIRECT MARKETING-OTHER DIRECT MARKETERS/NOT ELSEW.,CHILDREN & YOUNG PEOPLE
REDACTED,70.14,16/07/2020,WWW.BACKCS.CO.UK,"XXXXX Back Support, Access to Work equipment",DENTAL/LAB/MED/OPHTHALMIC HOSP EQUIP & SUPPLIES,ADULT & COMMUNITY SERVICES
REDACTED,75.87,16/07/2020,B&M 420 - HS LOWESTOFT,Child in care - equipment,SUNDRY GENERAL MERCHANDISE,CHILDREN & YOUNG PEOPLE
REDACTED,29.17,16/07/2020,THE RANGE,Child in care - equipment,DEPARTMENT STORES,CHILDREN & YOUNG PEOPLE
REDACTED,148.04,16/07/2020,FACEBK GZVA9UWNF2,Facebook advertising,ADVERTISING SERVICES,CORPORATE SERVICES
REDACTED,43.20,16/07/2020,WWW.KENTBEARINGS.COM,BRE Circlips,INDUSTRIAL SUPPLIES NOT ELSEWHERE CLASSIFIED,FIRE & PUBLIC SAFETY
REDACTED,64.48,16/07/2020,Amazon.co.uk K03UG22T5,Portable hard drive for XXXXX,DIRECT MARKETING-OTHER DIRECT MARKETERS/NOT ELSEW.,FIRE & PUBLIC SAFETY
REDACTED,362.00,16/07/2020,WWW.FFX.CO.UK,Sealey Piller Drill Bench,"BUILDING MATERIALS, LUMBER STORES",FIRE & PUBLIC SAFETY
REDACTED,35.07,16/07/2020,SCREWFIX DIRECT,Hardware for XXXXX,HOME SUPPLY WAREHOUSE STORES,FIRE & PUBLIC SAFETY
REDACTED,134.66,16/07/2020,MACHINE MART WEB,Clamps and vice - XXXXX,"EQUIPMENT RENTAL & LEASING SVS, FURNTURE/TOOL RENTAL",FIRE & PUBLIC SAFETY
REDACTED,7.80,16/07/2020,SumUp   Gullivers,looked after children activity,"GROCERY STORES, SUPERMARKETS",CHILDREN & YOUNG PEOPLE
REDACTED,54.99,16/07/2020,ASDA  STORES 4218,looked after children provisions food,"GROCERY STORES, SUPERMARKETS",CHILDREN & YOUNG PEOPLE
REDACTED,3.38,16/07/2020,ASDA SUPERSTORE,looked after children food provisions,"GROCERY STORES, SUPERMARKETS",CHILDREN & YOUNG PEOPLE
REDACTED,2.65,16/07/2020,CO-OP GROUP 070678,looked after children provisions food,"GROCERY STORES, SUPERMARKETS",CHILDREN & YOUNG PEOPLE
REDACTED,18.14,16/07/2020,ASDA  STORES 4218,looked after children provisions food,"GROCERY STORES, SUPERMARKETS",CHILDREN & YOUNG PEOPLE
REDACTED,495.81,16/07/2020,ARGOS LTD,254470/782S Setting up home items for client,DISCOUNT STORES,CHILDREN & YOUNG PEOPLE
REDACTED,22.48,16/07/2020,AMZNMktplace,IT for XXXXX,MISCELLANEOUS AND SPECIALTY RETAIL STORES,"GROWTH, HIGHWAYS & INFRASTRUCTURE"
REDACTED,34.00,17/07/2020,DVLA DRIVER ONLINE,"ID: 1260983, 204N, provisional driving licence",GOVERNMENT SERVICES-NOT ELSEWHERE CLASSIFIED,CHILDREN & YOUNG PEOPLE
REDACTED,224.00,17/07/2020,TRADE ELECTRICALS,795824. 365W. W/Machine.,ELECTRONIC SALES,CHILDREN & YOUNG PEOPLE
REDACTED,41.67,17/07/2020,AMZN Digital,Children's Home Expense - Playstation voucher XXXXX,RECORD SHOPS,CHILDREN & YOUNG PEOPLE
REDACTED,17.51,17/07/2020,ASDA SUPERSTORE,Children's Home Expense - Provisions,"GROCERY STORES, SUPERMARKETS",CHILDREN & YOUNG PEOPLE
REDACTED,39.17,17/07/2020,ASDA SUPERSTORE,Children's Home Expense - Provisions,"GROCERY STORES, SUPERMARKETS",CHILDREN & YOUNG PEOPLE
REDACTED,24.50,17/07/2020,CONGO RAPIDS,Children's Home Expense - Cic Activity,"BANDS, ORCHESTRAS, & MISC ENTRTNRS-NOT ELSWHR CLAS",CHILDREN & YOUNG PEOPLE
REDACTED,24.50,17/07/2020,CONGO RAPIDS,Children's Home Expense - Cic Activity,"BANDS, ORCHESTRAS, & MISC ENTRTNRS-NOT ELSWHR CLAS",CHILDREN & YOUNG PEOPLE
REDACTED,12.67,17/07/2020,ASDA STORES LTD 5729,child in care - provisions,"GROCERY STORES, SUPERMARKETS",CHILDREN & YOUNG PEOPLE
REDACTED,67.77,17/07/2020,ALDI 776 147,Child in care - Provisions,"GROCERY STORES, SUPERMARKETS",CHILDREN & YOUNG PEOPLE
REDACTED,37.46,17/07/2020,AMZNMKTPLACE AMAZON.CO,USB hub adaptors for Woodbridge office,MISCELLANEOUS AND SPECIALTY RETAIL STORES,CORPORATE SERVICES
REDACTED,20.00,17/07/2020,AMZNMktplace,XXXXX id 1253018 Carbon Monoxide Monitor,MISCELLANEOUS AND SPECIALTY RETAIL STORES,CHILDREN & YOUNG PEOPLE
REDACTED,3.29,17/07/2020,COSTA COFFEE,looked after children 1 to 1,FAST FOOD RESTAURANTS,CHILDREN & YOUNG PEOPLE
REDACTED,6.20,17/07/2020,3C_ Buttermarket Car P,looked after children car park,AUTOMOBILE PARKING LOTS AND GARAGES,CHILDREN & YOUNG PEOPLE
REDACTED,34.10,17/07/2020,RIVER ISLAND 092,looked after children clothing,MEN'S AND WOMEN'S CLOTHING STORES,CHILDREN & YOUNG PEOPLE
REDACTED,9.99,17/07/2020,H & M,looked after children clothing,MEN'S AND WOMEN'S CLOTHING STORES,CHILDREN & YOUNG PEOPLE
REDACTED,126.50,17/07/2020,THE GRANARY,Research in Practice Membership for XXXXX,TOURIST ATTRACTIONS AND EXHIBITS,CHILDREN & YOUNG PEOPLE
REDACTED,83.94,17/07/2020,ARGOS LTD,High Chair for Foster Carer XXXXX (Chair & Del),DISCOUNT STORES,CHILDREN & YOUNG PEOPLE
REDACTED,32.24,17/07/2020,SPECSAVERS,replacement glasses for child 086CH117/3,"OPTICIANS, OPTICAL GOODS & EYEGLASSES",CHILDREN & YOUNG PEOPLE
REDACTED,10.38,17/07/2020,AMZNMKTPLACE AMAZON.CO,Children in Care - Craft items,MISCELLANEOUS AND SPECIALTY RETAIL STORES,CHILDREN & YOUNG PEOPLE
REDACTED,259.00,17/07/2020,PARKHOLIDAYS.COM,Elizabeth House: respite XXXXX 17th- 19th July,CAMPGROUNDS AND TRAILER PARKS,CHILDREN & YOUNG PEOPLE
REDACTED,20.00,20/07/2020,SUFFOLK SKI CENTRE LTD,Children's Home Expense - Ringo Activity for CIC,"EATING PLACES, RESTAURANTS",CHILDREN & YOUNG PEOPLE
REDACTED,5.28,20/07/2020,HANDY HARDWARE,Children's Home Expense - Art Activity XXXXX,HOME SUPPLY WAREHOUSE STORES,CHILDREN & YOUNG PEOPLE
REDACTED,15.00,20/07/2020,THE WORKS,Children's Home Expense - Art Activity XXXXX,DISCOUNT STORES,CHILDREN & YOUNG PEOPLE
REDACTED,22.96,20/07/2020,MCDONALDS 1560,Children's Home Expense - Activity food,"EATING PLACES, RESTAURANTS",CHILDREN & YOUNG PEOPLE
REDACTED,58.00,20/07/2020,SUFFOLK SKI CENTRE LTD,Children's Home Expense - Ringo Activity,"EATING PLACES, RESTAURANTS",CHILDREN & YOUNG PEOPLE
REDACTED,29.99,20/07/2020,TESCO STORE 3240,Children's Home Expense - Provisions,"GROCERY STORES, SUPERMARKETS",CHILDREN & YOUNG PEOPLE
REDACTED,11.23,20/07/2020,AMZNMktplace,XXXXX 208816 02SL168 Ear plugs,MISCELLANEOUS AND SPECIALTY RETAIL STORES,CHILDREN & YOUNG PEOPLE
REDACTED,16.20,20/07/2020,Amazon.co.uk G417W9CS5,XXXXX 2010300 Itch cream 020SL088,DIRECT MARKETING-OTHER DIRECT MARKETERS/NOT ELSEW.,CHILDREN & YOUNG PEOPLE
REDACTED,54.91,20/07/2020,SCREWFIX DIRECT,Various tool order for XXXXX,HOME SUPPLY WAREHOUSE STORES,FIRE & PUBLIC SAFETY
REDACTED,62.27,20/07/2020,AMZNMKTPLACE AMAZON.CO,USB Webcam order for XXXXX,MISCELLANEOUS AND SPECIALTY RETAIL STORES,FIRE & PUBLIC SAFETY
REDACTED,46.90,20/07/2020,POST OFFICE COUNTER,"50x2nd, 12x1st, & 6x2nd large stamps Covid 19",POSTAL SERVICES-GOVERNMENT ONLY,CHILDREN & YOUNG PEOPLE
REDACTED,35.53,20/07/2020,CLOOK  - INV 332033,Website support package upgrade,"COMP PROGRAMING,DATA PRCSNG,INTGRTD SYS DSGN SRVS","GROWTH, HIGHWAYS & INFRASTRUCTURE"
REDACTED,18.00,20/07/2020,PRIMARK,looked after children clothing,FAMILY CLOTHING STORES,CHILDREN & YOUNG PEOPLE
REDACTED,17.24,20/07/2020,NEW LOOK 1791,looked after children,WOMEN'S READY-TO-WEAR STORES,CHILDREN & YOUNG PEOPLE
REDACTED,3.95,20/07/2020,TESCO STORES 5086,looked after children provisions food,"GROCERY STORES, SUPERMARKETS",CHILDREN & YOUNG PEOPLE
REDACTED,7.08,20/07/2020,MCDONALDS 1560,looked after children,"EATING PLACES, RESTAURANTS",CHILDREN & YOUNG PEOPLE
REDACTED,223.50,20/07/2020,LUCKY SEVEN PRIVATE HI,439785/214N emergency travel for client,LIMOUSINES AND TAXICABS,CHILDREN & YOUNG PEOPLE
REDACTED,22.80,20/07/2020,POST OFFICE COUNTER,Stamps for SMWLP Adoption Statement Letters,POSTAL SERVICES-GOVERNMENT ONLY,"GROWTH, HIGHWAYS & INFRASTRUCTURE"
REDACTED,216.42,20/07/2020,YUMPUPUBLISHING,On line form- creating professional surveys/forms,DIGITAL GOODS MULTI-CATEGORY,"GROWTH, HIGHWAYS & INFRASTRUCTURE"
REDACTED,12.00,20/07/2020,THE WORKS,stationery,DISCOUNT STORES,CHILDREN & YOUNG PEOPLE
REDACTED,-140.96,20/07/2020,LLOYDS PHARMACY,refunded,"DRUG STORES, PHARMACIES",FIRE & PUBLIC SAFETY
REDACTED,180.00,21/07/2020,WWW.JA.NET,SR-133083 Domain name renewals XXXXX,"ORGANISATIONS, MEMBERSHIP-NOT ELSEWHERE CLASSIFIED",CORPORATE SERVICES
REDACTED,180.00,21/07/2020,WWW.JA.NET,SR-133083 Domain name renewals XXXXX,"ORGANISATIONS, MEMBERSHIP-NOT ELSEWHERE CLASSIFIED",CORPORATE SERVICES
REDACTED,24.95,21/07/2020,LCN.COM LTD,SR-140830 Domain name XXXXX,"CONSULTING, MANAGEMENT AND PUBLIC RELATIONS SVCS",CORPORATE SERVICES
REDACTED,157.50,21/07/2020,TVLICENSING.CO.UK,Children's Home Expense - TV Licensing,"CONSULTING, MANAGEMENT AND PUBLIC RELATIONS SVCS",CHILDREN & YOUNG PEOPLE
REDACTED,137.05,21/07/2020,TESCO STORE 3240,Children's Home Expense - Provisions,"GROCERY STORES, SUPERMARKETS",CHILDREN & YOUNG PEOPLE
REDACTED,29.60,21/07/2020,FARMFOODS 695,Children's Home Expense - Laundry,"GROCERY STORES, SUPERMARKETS",CHILDREN & YOUNG PEOPLE
REDACTED,821.35,21/07/2020,PAYPAL  TRIPADVISOR,Accommodation for Adoption Intros BR28336512 Chilc,"LODGING-HOTELS,MOTELS,RESORTS-NOT CLASSIFIED",CHILDREN & YOUNG PEOPLE
REDACTED,9.99,21/07/2020,AMZNMktplace,Access to work equipment XXXXX,MISCELLANEOUS AND SPECIALTY RETAIL STORES,ADULT & COMMUNITY SERVICES
REDACTED,27.49,21/07/2020,CURRYS ONLINE,Child in care - XXXXX birthday,ELECTRONIC SALES,CHILDREN & YOUNG PEOPLE
REDACTED,4.95,21/07/2020,Amazon.co.uk 519P75VH5,Child in care - leaving photos,DIRECT MARKETING-OTHER DIRECT MARKETERS/NOT ELSEW.,CHILDREN & YOUNG PEOPLE
REDACTED,500.00,21/07/2020,GOOGLE  ADS6087318024,Stick with it suffolk video,"COMP PROGRAMING,DATA PRCSNG,INTGRTD SYS DSGN SRVS",CORPORATE SERVICES
REDACTED,144.00,21/07/2020,PAYPAL  LUCYLOVESTH,Purchasing shop items to set up account with them,"GIFT, CARD, NOVELTY AND SOUVENIR SHOPS","GROWTH, HIGHWAYS & INFRASTRUCTURE"
REDACTED,-7.50,21/07/2020,GEN REGISTER OFFICE,reimburse birth cert,GOVERNMENT SERVICES-NOT ELSEWHERE CLASSIFIED,CHILDREN & YOUNG PEOPLE
REDACTED,95.81,21/07/2020,AMZNMKTPLACE AMAZON.CO,Office chair for XXXXX,MISCELLANEOUS AND SPECIALTY RETAIL STORES,CHILDREN & YOUNG PEOPLE
REDACTED,5.99,21/07/2020,DISNEY PLUS,Children in care - Activity-Disney+,DIGITAL GOODS AUDIOVISUAL MEDIA,CHILDREN & YOUNG PEOPLE
REDACTED,-49.99,22/07/2020,BURY ST EDMUNDS,1205848. 377W. SUHA-returned items.,DISCOUNT STORES,CHILDREN & YOUNG PEOPLE
REDACTED,23.33,22/07/2020,TYPEFORM S.L,Website form builder tool,"COMP PROGRAMING,DATA PRCSNG,INTGRTD SYS DSGN SRVS",ADULT & COMMUNITY SERVICES
REDACTED,83.28,22/07/2020,AMZNMktplace,x 4 office fans for BSE children's centres,MISCELLANEOUS AND SPECIALTY RETAIL STORES,CHILDREN & YOUNG PEOPLE
REDACTED,10.00,22/07/2020,WWW.ADASS.ORG.UK,ADASS Summer virtual conference - XXXXX,"ORGANISATIONS, CHARITABLE AND SOCIAL SERVICES",ADULT & COMMUNITY SERVICES
REDACTED,10.00,22/07/2020,WWW.ADASS.ORG.UK,ADASS Virtual Summer Conference -XXXXX,"ORGANISATIONS, CHARITABLE AND SOCIAL SERVICES",ADULT & COMMUNITY SERVICES
REDACTED,10.00,22/07/2020,WWW.ADASS.ORG.UK,ADASS Summer virtual conference,"ORGANISATIONS, CHARITABLE AND SOCIAL SERVICES",ADULT & COMMUNITY SERVICES
REDACTED,99.99,22/07/2020,ARGOS LTD,Child in care - XXXXX incentive money to be used,DISCOUNT STORES,CHILDREN & YOUNG PEOPLE
REDACTED,112.50,22/07/2020,SQ  PORT AND LEMON,Purchasing shop items to set up account with them,SUNDRY GENERAL MERCHANDISE,"GROWTH, HIGHWAYS & INFRASTRUCTURE"
REDACTED,258.72,22/07/2020,JEWSON LTD,Timber order for XXXXX,"BUILDING MATERIALS, LUMBER STORES",FIRE & PUBLIC SAFETY
REDACTED,530.78,22/07/2020,JEWSON LTD,Timber and other items for XXXXX,"BUILDING MATERIALS, LUMBER STORES",FIRE & PUBLIC SAFETY
REDACTED,18.00,22/07/2020,ASDA  STORES 4218,looked after children provisions food,"GROCERY STORES, SUPERMARKETS",CHILDREN & YOUNG PEOPLE
REDACTED,14.50,22/07/2020,"BOOTS,BURY ST",looked after children toiletries,"DRUG STORES, PHARMACIES",CHILDREN & YOUNG PEOPLE
REDACTED,34.55,22/07/2020,SPORTSDIRECT 255,looked after children clothing sports wear,SPORTING GOODS STORES,CHILDREN & YOUNG PEOPLE
REDACTED,2100.00,23/07/2020,UNIFORM EXPRESS,Face Coverings,"ALTERATIONS, MENDING, SEAMSTRESSES, TAILORS",FIRE & PUBLIC SAFETY
REDACTED,2100.00,23/07/2020,UNIFORM EXPRESS,Face coverings,"ALTERATIONS, MENDING, SEAMSTRESSES, TAILORS",FIRE & PUBLIC SAFETY
REDACTED,64.99,23/07/2020,WILKO.COM,"ID: 1054954, 218N Wallpaper and paint",SUNDRY GENERAL MERCHANDISE,CHILDREN & YOUNG PEOPLE
REDACTED,37.45,23/07/2020,AMZNMktplace,395263. 378W. Painting equipment.,MISCELLANEOUS AND SPECIALTY RETAIL STORES,CHILDREN & YOUNG PEOPLE
REDACTED,21.50,23/07/2020,FILOFAX LETTS BLUELINE,Replacement diary,STATIONERY/OFFICE SUPPLIES/PRINTING & WRITING PAP.,FIRE & PUBLIC SAFETY
REDACTED,11.00,23/07/2020,MY.NORFOLK.GOV.UK,URGENT BIRTH CERTIFICATE REQUESTED BY ACS,GOVERNMENT SERVICES-NOT ELSEWHERE CLASSIFIED,CORPORATE SERVICES
REDACTED,43.12,23/07/2020,AMZNMktplace,URGENT HEADSET FOR XXXXX (IT OUT OF STOCK),MISCELLANEOUS AND SPECIALTY RETAIL STORES,CORPORATE SERVICES
REDACTED,19.91,23/07/2020,MAILCHIMP    MONTHLY,mailchimp - e updates email service,DIRECT MARKETING - CONTINUITY/SUBSCRIPTION MERCHANTS,"GROWTH, HIGHWAYS & INFRASTRUCTURE"
REDACTED,78.62,23/07/2020,AMZNMktplace,Emergency Face Masks COVID - VAT on part order,MISCELLANEOUS AND SPECIALTY RETAIL STORES,"GROWTH, HIGHWAYS & INFRASTRUCTURE"
REDACTED,18.32,23/07/2020,AMZNMktplace,Emergency Face Masks COVID,MISCELLANEOUS AND SPECIALTY RETAIL STORES,"GROWTH, HIGHWAYS & INFRASTRUCTURE"
REDACTED,24.62,23/07/2020,WWW.HALL-FAST.COM,Protective Raincoat for Technical Officer,INDUSTRIAL SUPPLIES NOT ELSEWHERE CLASSIFIED,"GROWTH, HIGHWAYS & INFRASTRUCTURE"
REDACTED,10.99,23/07/2020,BOOHOO.COM,Children's Home Expense - accessories XXXXX,MEN'S AND WOMEN'S CLOTHING STORES,CHILDREN & YOUNG PEOPLE
REDACTED,89.00,23/07/2020,WWW.2TALL.COM,Children's Home Expense - Shorts for XXXXX,MEN'S AND BOY'S CLOTHING AND ACCESSORIES STORES,CHILDREN & YOUNG PEOPLE
REDACTED,6.82,23/07/2020,AMZNMktplace,Women of distinction set of stamps for display,MISCELLANEOUS AND SPECIALTY RETAIL STORES,"GROWTH, HIGHWAYS & INFRASTRUCTURE"
REDACTED,1.50,23/07/2020,WWW.GOV.UK,XXXXX Will and Grant - 644508,PROFESSIONAL SERVICES - NOT ELSEWHERE CLASSIFIED,ADULT & COMMUNITY SERVICES
REDACTED,32.58,23/07/2020,Amazon.co.uk 000GQ1N65,Access to work equipment XXXXX,DIRECT MARKETING-OTHER DIRECT MARKETERS/NOT ELSEW.,ADULT & COMMUNITY SERVICES
REDACTED,148.00,23/07/2020,Pleasurewoord Hills in,Children in care - activity for all the children,TOURIST ATTRACTIONS AND EXHIBITS,CHILDREN & YOUNG PEOPLE
REDACTED,6.99,23/07/2020,BOOTS 5134,Bio-spray to clean CST strap,"DRUG STORES, PHARMACIES",FIRE & PUBLIC SAFETY
REDACTED,47.52,23/07/2020,HAMPERS,Meals for course delegates,FAST FOOD RESTAURANTS,FIRE & PUBLIC SAFETY
REDACTED,29.45,23/07/2020,ASDA  STORES 4218,looked after children provisions food,"GROCERY STORES, SUPERMARKETS",CHILDREN & YOUNG PEOPLE
REDACTED,102.08,23/07/2020,ASDA  STORES 4218,looked after children provisions food,"GROCERY STORES, SUPERMARKETS",CHILDREN & YOUNG PEOPLE
REDACTED,18.52,23/07/2020,ASDA  STORES 4218,looked after children provisions food,"GROCERY STORES, SUPERMARKETS",CHILDREN & YOUNG PEOPLE
REDACTED,29.94,23/07/2020,THE RANGE,looked after children equipment for home,DEPARTMENT STORES,CHILDREN & YOUNG PEOPLE
REDACTED,62.90,23/07/2020,AMZNMktplace,Re-usable Face Mask for Various UASC - 020SL177,MISCELLANEOUS AND SPECIALTY RETAIL STORES,CHILDREN & YOUNG PEOPLE
REDACTED,19.50,24/07/2020,BALSAMIQ TRID1234906,Wire frame tool,COMPUTER SOFTWARE STORES,ADULT & COMMUNITY SERVICES
REDACTED,96.67,24/07/2020,CGS (HAVERHILL),304226 388W. SUHA-carpets,FLOOR COVERING STORES,CHILDREN & YOUNG PEOPLE
REDACTED,80.50,24/07/2020,HM PASSPORT OFFICE,344997. 397W. Passport,GOVERNMENT SERVICES-NOT ELSEWHERE CLASSIFIED,CHILDREN & YOUNG PEOPLE
REDACTED,144.95,24/07/2020,ARGOS LTD,521712 398W TV,DISCOUNT STORES,CHILDREN & YOUNG PEOPLE
REDACTED,2.99,24/07/2020,AMZNMktplace,Children's Home Expense - USB adapter XXXXX,MISCELLANEOUS AND SPECIALTY RETAIL STORES,CHILDREN & YOUNG PEOPLE
REDACTED,18.34,24/07/2020,TESCO STORE 3240,Children's Home Expense - Provisions,"GROCERY STORES, SUPERMARKETS",CHILDREN & YOUNG PEOPLE
REDACTED,11.98,24/07/2020,AMZNMKTPLACE AMAZON.CO,Children's Home Expense - Tshirt XXXXX,MISCELLANEOUS AND SPECIALTY RETAIL STORES,CHILDREN & YOUNG PEOPLE
REDACTED,34.56,24/07/2020,AMZNMktplace,Children's Home expense - Headphones & cable XXXXX,MISCELLANEOUS AND SPECIALTY RETAIL STORES,CHILDREN & YOUNG PEOPLE
REDACTED,1.50,24/07/2020,WWW.GOV.UK,XXXXX Will - 1136406,PROFESSIONAL SERVICES - NOT ELSEWHERE CLASSIFIED,ADULT & COMMUNITY SERVICES
REDACTED,20.00,24/07/2020,Amazon.co.uk PK18P0OG5,gift card for child in need 086CH118/7,DIRECT MARKETING-OTHER DIRECT MARKETERS/NOT ELSEW.,CHILDREN & YOUNG PEOPLE
REDACTED,69.84,24/07/2020,ASDA STORES LTD 5729,Child in care - Provisions,"GROCERY STORES, SUPERMARKETS",CHILDREN & YOUNG PEOPLE
REDACTED,86.85,24/07/2020,LIDL GB LOW-PETO WAY,Child in care - Provisions,"GROCERY STORES, SUPERMARKETS",CHILDREN & YOUNG PEOPLE
REDACTED,480.00,24/07/2020,FACEBK  WSJB4VWSP2,Boost posting,ADVERTISING SERVICES,CORPORATE SERVICES
REDACTED,292.32,24/07/2020,IM-PRESS PROMOTION,Stick with it suffolk masks,"OFFICE, SCHOOL SUPPLY, AND STATIONERY STORES",CORPORATE SERVICES
REDACTED,144.60,24/07/2020,FINNEYS,Meals for course delegates,BAKERIES,FIRE & PUBLIC SAFETY
REDACTED,19.99,24/07/2020,B&M 591 - CARR ROAD,looked after children equipment for home,SUNDRY GENERAL MERCHANDISE,CHILDREN & YOUNG PEOPLE
REDACTED,12.98,24/07/2020,B&M 405 - WESTERN WAY,looked after children equipment for home,SUNDRY GENERAL MERCHANDISE,CHILDREN & YOUNG PEOPLE
REDACTED,10.18,24/07/2020,MCDONALDS,looked after children 1 to 1 food,FAST FOOD RESTAURANTS,CHILDREN & YOUNG PEOPLE
REDACTED,24.99,24/07/2020,Amazon.co.uk HW08P6ZI5,Headphones for XXXXX,DIRECT MARKETING-OTHER DIRECT MARKETERS/NOT ELSEW.,CHILDREN & YOUNG PEOPLE
REDACTED,27.98,24/07/2020,AMZNMktplace,Two Prayer Mats - UASC XXXXX & XXXXX 020SL178 & 020SL179,MISCELLANEOUS AND SPECIALTY RETAIL STORES,CHILDREN & YOUNG PEOPLE
REDACTED,-7.50,24/07/2020,GEN REGISTER OFFICE,Death certificate,GOVERNMENT SERVICES-NOT ELSEWHERE CLASSIFIED,CORPORATE SERVICES
REDACTED,50.00,24/07/2020,ASDA  STORES 4218,Asda Food Voucher for Vulnerable Family,"GROCERY STORES, SUPERMARKETS",CHILDREN & YOUNG PEOPLE
REDACTED,77.17,24/07/2020,FS  jotform,Platform for bus stop suspensions,DIGITAL GOODS SOFTWARE APPLICATIONS,"GROWTH, HIGHWAYS & INFRASTRUCTURE"
REDACTED,74.98,27/07/2020,AMZNMktplace,318495. 384W. SUHA-office chair.,MISCELLANEOUS AND SPECIALTY RETAIL STORES,CHILDREN & YOUNG PEOPLE
REDACTED,25.40,27/07/2020,B&M 420 - HS LOWESTOFT,child in care - equipment,SUNDRY GENERAL MERCHANDISE,CHILDREN & YOUNG PEOPLE
REDACTED,18.33,27/07/2020,ASDA STORES LTD 5729,child in care - activity phone,"GROCERY STORES, SUPERMARKETS",CHILDREN & YOUNG PEOPLE
REDACTED,82.50,27/07/2020,B&M 420 - HS LOWESTOFT,child in care - Home furnishing/equipment,SUNDRY GENERAL MERCHANDISE,CHILDREN & YOUNG PEOPLE
REDACTED,391.51,27/07/2020,TWEET BINDER,Boost posting,COMPUTER NETWORK/INFORMATION SERVICES,CORPORATE SERVICES
REDACTED,19.60,27/07/2020,GSF IPSWICH,Service van rear pads,"AUTOMOTIVE PARTS, ACCESSORIES STORES",FIRE & PUBLIC SAFETY
REDACTED,29.99,27/07/2020,CURRYS ONLINE,SIM card,ELECTRONIC SALES,CHILDREN & YOUNG PEOPLE
REDACTED,32.50,27/07/2020,POST OFFICE COUNTER,50 x 2nd class stamps (Covid 19),POSTAL SERVICES-GOVERNMENT ONLY,CHILDREN & YOUNG PEOPLE
REDACTED,4.85,27/07/2020,GREGGS,looked after children 1 to 1,"EATING PLACES, RESTAURANTS",CHILDREN & YOUNG PEOPLE
REDACTED,12.00,27/07/2020,SPORTSDIRECT 255,looked after children clothing,SPORTING GOODS STORES,CHILDREN & YOUNG PEOPLE
REDACTED,6.66,27/07/2020,Amazon Prime EA1G03905,looked after children amazon subscription,DIRECT MARKETING - CONTINUITY/SUBSCRIPTION MERCHANTS,CHILDREN & YOUNG PEOPLE
REDACTED,11.95,27/07/2020,AMZNMKTPLACE AMAZON.CO,Disposable Face Masks for Various UASC - 020SL176,MISCELLANEOUS AND SPECIALTY RETAIL STORES,CHILDREN & YOUNG PEOPLE
REDACTED,619.00,27/07/2020,HOLIDAY PAYMENT VRUK,Children in Care - Holiday accommodation,TRAVEL AGENCIES AND TOUR OPERATORS,CHILDREN & YOUNG PEOPLE
REDACTED,157.50,28/07/2020,TVLICENSING.CO.UK,tv license for AU Grange Lodge,"CONSULTING, MANAGEMENT AND PUBLIC RELATIONS SVCS",CHILDREN & YOUNG PEOPLE
REDACTED,23.58,28/07/2020,WWW.NCHSOFTWARE.COM,SR-132570 Express Scribe Software,COMPUTER SOFTWARE STORES,CORPORATE SERVICES
REDACTED,16.48,28/07/2020,ASDA SUPERSTORE,Training course meals,"GROCERY STORES, SUPERMARKETS",FIRE & PUBLIC SAFETY
REDACTED,122.48,28/07/2020,ASDA SUPERSTORE,Children's Home Expense - Provisions,"GROCERY STORES, SUPERMARKETS",CHILDREN & YOUNG PEOPLE
REDACTED,23.10,28/07/2020,NEW LOOK 1624,child in care - clothing XXXXX,WOMEN'S READY-TO-WEAR STORES,CHILDREN & YOUNG PEOPLE
REDACTED,16.29,28/07/2020,PEACOCK STORES LTD,child in care - clothing XXXXX,VARIETY STORES,CHILDREN & YOUNG PEOPLE
REDACTED,300.00,28/07/2020,EB  BRIEF ONLINE SUMME,Brief training - online summer school x 3,BUSINESS SERVICES-NOT ELSEWHERE CLASSIFIED,CHILDREN & YOUNG PEOPLE
REDACTED,3.80,28/07/2020,GSF IPSWICH,Service van rear pads. Correct part.,"AUTOMOTIVE PARTS, ACCESSORIES STORES",FIRE & PUBLIC SAFETY
REDACTED,56.00,28/07/2020,AMZNMktplace,CD's for CST Audio file / play on CD,MISCELLANEOUS AND SPECIALTY RETAIL STORES,FIRE & PUBLIC SAFETY
REDACTED,72.80,28/07/2020,HAMPERS,Meals for course delegates,FAST FOOD RESTAURANTS,FIRE & PUBLIC SAFETY
REDACTED,128.00,28/07/2020,LNER WEB SALES,ticket for parent to collect children and home,PASSENGER RAILWAYS,CHILDREN & YOUNG PEOPLE
REDACTED,5.71,28/07/2020,ICELAND,looked after children provisions food,"GROCERY STORES, SUPERMARKETS",CHILDREN & YOUNG PEOPLE
REDACTED,714.00,28/07/2020,PARKHOLIDAYS.COM,ACC. XXXXX SW XXXXX,CAMPGROUNDS AND TRAILER PARKS,CHILDREN & YOUNG PEOPLE
REDACTED,40.00,29/07/2020,WWW.WILMINGTON.CO.,URGENT PAYMENT FOR 3 MONTH OVERDUE INVOICE,"ORGANISATIONS, MEMBERSHIP-NOT ELSEWHERE CLASSIFIED",CORPORATE SERVICES
REDACTED,50.00,29/07/2020,AMZN Digital,Children's Home Expense - Game voucher XXXXX,RECORD SHOPS,CHILDREN & YOUNG PEOPLE
REDACTED,58.00,29/07/2020,CHAPMAN'S,Children's Home Expense -Haircut/dye XXXXX,BARBER AND BEAUTY SHOPS,CHILDREN & YOUNG PEOPLE
REDACTED,1457.85,29/07/2020,AIRBNB   HM32SHTDQX,Adoption Introduction XXXXX 2028632 7-14 Aug 2020,"LODGING-HOTELS,MOTELS,RESORTS-NOT CLASSIFIED",CHILDREN & YOUNG PEOPLE
REDACTED,22.50,29/07/2020,AMZNMktplace,Strung tags for instrument deliveries,MISCELLANEOUS AND SPECIALTY RETAIL STORES,CHILDREN & YOUNG PEOPLE
REDACTED,6.66,29/07/2020,Amazon Prime HN0PF8A15,child in care - subscription charge,DIRECT MARKETING - CONTINUITY/SUBSCRIPTION MERCHANTS,CHILDREN & YOUNG PEOPLE
REDACTED,60.74,29/07/2020,TRANSVEND LTD,Transvend repair Newmarket AV67 FRZ,ELECTRICAL AND SMALL APPLIANCE REPAIR SHOPS,FIRE & PUBLIC SAFETY
REDACTED,72.00,29/07/2020,www.anyvan.com,Van hire for move - XXXXX,"FREIGHT CARRIER,TRUCKING-LCL/LNG DIST, MVG/STORAGE",CHILDREN & YOUNG PEOPLE
REDACTED,70.00,29/07/2020,PAYPAL  ALICERUGGLE,DA Staff Training for XXXXX & XXXXX,"ORGANISATIONS, CHARITABLE AND SOCIAL SERVICES",PUBLIC HEALTH
REDACTED,3.00,29/07/2020,SPORTSDIRECT 255,looked after children sports wear,SPORTING GOODS STORES,CHILDREN & YOUNG PEOPLE
REDACTED,31.20,29/07/2020,WH SMITH,Stamps for BEEA,NEWS DEALERS AND NEWSSTANDS,"GROWTH, HIGHWAYS & INFRASTRUCTURE"
REDACTED,3.39,29/07/2020,MOONPIG,Thank You Card for Retiring Panel Member,SUNDRY GENERAL MERCHANDISE,CHILDREN & YOUNG PEOPLE
REDACTED,53.94,29/07/2020,ARGOS LTD,Moses Basket for Foster Carer XXXXX,DISCOUNT STORES,CHILDREN & YOUNG PEOPLE
REDACTED,21.98,29/07/2020,Amazon.co.uk NU00J4D95,Two Quran's - UASC XXXXX & XXXXX 020SL178 & 020SL179,DIRECT MARKETING-OTHER DIRECT MARKETERS/NOT ELSEW.,CHILDREN & YOUNG PEOPLE
REDACTED,108.03,30/07/2020,Shein.com,294442 65W. Birthday,MEN'S AND WOMEN'S CLOTHING STORES,CHILDREN & YOUNG PEOPLE
REDACTED,79.05,30/07/2020,POLYBAGS LTD,packing envelopes for return of alarms (COVID),NONDURABLE GOODS (NOT ELSEWHERE CLASSIFIED),CHILDREN & YOUNG PEOPLE
REDACTED,9.98,30/07/2020,AMZNMktplace,Replica pigeon eggs for display,MISCELLANEOUS AND SPECIALTY RETAIL STORES,"GROWTH, HIGHWAYS & INFRASTRUCTURE"
REDACTED,561.31,30/07/2020,AIRBNB   HMNH3NZ88E,"Accomm for Adopt Intros HMNH3NZ88E 
XXXXX","LODGING-HOTELS,MOTELS,RESORTS-NOT CLASSIFIED",CHILDREN & YOUNG PEOPLE
REDACTED,16.29,30/07/2020,Amazon.co.uk SH05871U5,Thick Pens for XXXXX,DIRECT MARKETING-OTHER DIRECT MARKETERS/NOT ELSEW.,ADULT & COMMUNITY SERVICES
REDACTED,28.99,30/07/2020,AMZNMktplace,outdoor team building equipment,MISCELLANEOUS AND SPECIALTY RETAIL STORES,CHILDREN & YOUNG PEOPLE
REDACTED,68.18,30/07/2020,ASDA  STORES 4218,looked after children provisions food,"GROCERY STORES, SUPERMARKETS",CHILDREN & YOUNG PEOPLE
REDACTED,583.34,30/07/2020,EAST SUFFOLK COUNCIL,Parking Permits x2 for AX66 DFY/BP69 VUC Pool Cars,GOVERNMENT SERVICES-NOT ELSEWHERE CLASSIFIED,CHILDREN & YOUNG PEOPLE
REDACTED,144.97,30/07/2020,FOOTASYLUM PLC,Clothing for XXXXX,MEN'S AND WOMEN'S CLOTHING STORES,CHILDREN & YOUNG PEOPLE
REDACTED,50.00,30/07/2020,Amazon.co.uk HJ5MC3KP5,475369/831S birthday allowance for client,DIRECT MARKETING-OTHER DIRECT MARKETERS/NOT ELSEW.,CHILDREN & YOUNG PEOPLE
REDACTED,12.00,30/07/2020,ETSY.COM HELLOJIJI,Face Mask for Social Worker FCFCT/L XXXXX,ACCESSORY AND APPAREL SHOPS - MISCELLANEOUS,CHILDREN & YOUNG PEOPLE
REDACTED,29.99,30/07/2020,Amazon.co.uk Y73WF6X65,XXXXX 325739 - Approved from West LD,DIRECT MARKETING-OTHER DIRECT MARKETERS/NOT ELSEW.,ADULT & COMMUNITY SERVICES
REDACTED,49.99,30/07/2020,AMZNMktplace,Smartphone to communicate with family 086LG213 C19,MISCELLANEOUS AND SPECIALTY RETAIL STORES,CHILDREN & YOUNG PEOPLE
REDACTED,25.47,31/07/2020,AMZNMktplace,Foot Rests x 2,MISCELLANEOUS AND SPECIALTY RETAIL STORES,ADULT & COMMUNITY SERVICES
REDACTED,116.64,31/07/2020,AMZNMKTPLACE AMAZON.CO,mattresses for child in need 086CH135/2,MISCELLANEOUS AND SPECIALTY RETAIL STORES,CHILDREN & YOUNG PEOPLE
REDACTED,119.12,31/07/2020,ALDI 776 147,child in care - Provisions,"GROCERY STORES, SUPERMARKETS",CHILDREN & YOUNG PEOPLE
REDACTED,4.35,31/07/2020,MCDONALDS,Child in care - Activity,FAST FOOD RESTAURANTS,CHILDREN & YOUNG PEOPLE
REDACTED,400.00,31/07/2020,FACEBK NUCW3VSNF2,Boost posting,ADVERTISING SERVICES,CORPORATE SERVICES
REDACTED,180.72,31/07/2020,Amazon.co.uk 5J8KD9PV5,3 x Wenger back packs,DIRECT MARKETING-OTHER DIRECT MARKETERS/NOT ELSEW.,FIRE & PUBLIC SAFETY
REDACTED,58.09,31/07/2020,AMZNMktplace,Tool order for XXXXX,MISCELLANEOUS AND SPECIALTY RETAIL STORES,FIRE & PUBLIC SAFETY
REDACTED,-7.50,31/07/2020,GEN REGISTER OFFICE,reimburse birth certificate,GOVERNMENT SERVICES-NOT ELSEWHERE CLASSIFIED,CHILDREN & YOUNG PEOPLE
REDACTED,-11.00,31/07/2020,GEN REGISTER OFFICE,Refund Birth Cert LAC053,GOVERNMENT SERVICES-NOT ELSEWHERE CLASSIFIED,CHILDREN & YOUNG PEOPLE
REDACTED,5.50,31/07/2020,PAYPAL  CITYBOUTIQ EBA,Clothing for XXXXX,MEN'S AND WOMEN'S CLOTHING STORES,CHILDREN & YOUNG PEOPLE
REDACTED,17.15,31/07/2020,notonthehighstreet.com,294342/263S birthday allowance for client,MISCELLANEOUS AND SPECIALTY RETAIL STORES,CHILDREN & YOUNG PEOPLE
REDACTED,24.49,31/07/2020,AMZNMktplace,Rohl Dahl Books for UASC XXXXX 020SL183,MISCELLANEOUS AND SPECIALTY RETAIL STORES,CHILDREN & YOUNG PEOPLE
REDACTED,-7.50,31/07/2020,GEN REGISTER OFFICE,Death Certificate,GOVERNMENT SERVICES-NOT ELSEWHERE CLASSIFIED,CORPORATE SERVICES
REDACTED,-7.50,31/07/2020,GEN REGISTER OFFICE,Death Certificate,GOVERNMENT SERVICES-NOT ELSEWHERE CLASSIFIED,CORPORATE SERVICES
REDACTED,19.97,03/08/2020,FACEBK  F92WQU2CW2,facebook ad - food savvy,ADVERTISING SERVICES,"GROWTH, HIGHWAYS & INFRASTRUCTURE"
REDACTED,24.99,03/08/2020,SPORTSDIRECT.COM,240408. Clothes from savings.,SPORTING GOODS STORES,CHILDREN & YOUNG PEOPLE
REDACTED,22.35,03/08/2020,TESCO STORE 2748,Children's Home Expense - BBQ,"GROCERY STORES, SUPERMARKETS",CHILDREN & YOUNG PEOPLE
REDACTED,12.00,03/08/2020,ASDA SUPERSTORE,Children's Home Expense - Shorts XXXXX,"GROCERY STORES, SUPERMARKETS",CHILDREN & YOUNG PEOPLE
REDACTED,56.60,03/08/2020,ASDA SUPERSTORE,Children's Home Expense - Provisions & batteries,"GROCERY STORES, SUPERMARKETS",CHILDREN & YOUNG PEOPLE
REDACTED,4.40,03/08/2020,ASDA SUPERSTORE,Children's Home Expense - Toiletries XXXXX,"GROCERY STORES, SUPERMARKETS",CHILDREN & YOUNG PEOPLE
REDACTED,.82,03/08/2020,MCDONALDS 1560,Children's Home Expense - Keyworking,"EATING PLACES, RESTAURANTS",CHILDREN & YOUNG PEOPLE
REDACTED,15.66,03/08/2020,ASDA SUPERSTORE,Children's Home Expense - Provisions,"GROCERY STORES, SUPERMARKETS",CHILDREN & YOUNG PEOPLE
REDACTED,20.87,03/08/2020,ASDA SUPERSTORE,Children's Home Expense - Activity,"GROCERY STORES, SUPERMARKETS",CHILDREN & YOUNG PEOPLE
REDACTED,11.49,03/08/2020,Amazon.co.uk 3V3SE70Y5,Educational book,DIRECT MARKETING-OTHER DIRECT MARKETERS/NOT ELSEW.,CHILDREN & YOUNG PEOPLE
REDACTED,11.20,03/08/2020,ASDA STORES LTD 5729,Child in care - provisions,"GROCERY STORES, SUPERMARKETS",CHILDREN & YOUNG PEOPLE
REDACTED,32.50,03/08/2020,POST OFFICE COUNTER,50 x 2nd class stamps (Covid 19),POSTAL SERVICES-GOVERNMENT ONLY,CHILDREN & YOUNG PEOPLE
REDACTED,10.99,03/08/2020,PETS CORNER,looked after children pet food,PET SHOPS - PET FOODS AND SUPPLIES,CHILDREN & YOUNG PEOPLE
REDACTED,12.50,03/08/2020,HALFORDS 0415,looked after children bike equipment,BICYCLE SHOPS - SALES AND SERVICE,CHILDREN & YOUNG PEOPLE
REDACTED,13.30,03/08/2020,TESCO STORES 5086,looked after children provisions food,"GROCERY STORES, SUPERMARKETS",CHILDREN & YOUNG PEOPLE
REDACTED,13.73,03/08/2020,HORRINGER COURT STORE,looked after children provisions food,"MISC FOOD STORE-CONVENIENCE,MRKT,SPLTY,VENDNG MACS",CHILDREN & YOUNG PEOPLE
REDACTED,65.60,03/08/2020,SAINSBURYS TO YOU 0411,looked after children provisions food,"GROCERY STORES, SUPERMARKETS",CHILDREN & YOUNG PEOPLE
REDACTED,11.00,03/08/2020,ESSEX COUNTY COUNCI EC,Birth Certificate for XXXXX 2022394,GOVERNMENT SERVICES-NOT ELSEWHERE CLASSIFIED,CHILDREN & YOUNG PEOPLE
REDACTED,44.00,03/08/2020,MY.NORFOLK.GOV.UK,Birth Certs ids 997495/2000372/520813/520741,GOVERNMENT SERVICES-NOT ELSEWHERE CLASSIFIED,CHILDREN & YOUNG PEOPLE
REDACTED,-.95,03/08/2020,AMZNMktplace,293208/835S Setting up home item for client,MISCELLANEOUS AND SPECIALTY RETAIL STORES,CHILDREN & YOUNG PEOPLE
REDACTED,35.11,03/08/2020,AMZNMktplace,293208/835S Setting up home item for client,MISCELLANEOUS AND SPECIALTY RETAIL STORES,CHILDREN & YOUNG PEOPLE
REDACTED,299.99,03/08/2020,GODADDY COM EUROPE,GoDaddy - back up,COMPUTER NETWORK/INFORMATION SERVICES,FIRE & PUBLIC SAFETY
REDACTED,-7.50,03/08/2020,GEN REGISTER OFFICE,Death Certificate,GOVERNMENT SERVICES-NOT ELSEWHERE CLASSIFIED,CORPORATE SERVICES
REDACTED,-7.50,03/08/2020,GEN REGISTER OFFICE,Death Certificate,GOVERNMENT SERVICES-NOT ELSEWHERE CLASSIFIED,CORPORATE SERVICES
REDACTED,209.65,04/08/2020,TRADE ELECTRICALS,578358. 420W. SUHA-W machine.,ELECTRONIC SALES,CHILDREN & YOUNG PEOPLE
REDACTED,6.66,04/08/2020,Amazon Prime RL81G0YE5,Amazon Prime subscription.,DIRECT MARKETING - CONTINUITY/SUBSCRIPTION MERCHANTS,CHILDREN & YOUNG PEOPLE
REDACTED,9.36,04/08/2020,ASDA SUPERSTORE,Children's Home Expense - Pocket money,"GROCERY STORES, SUPERMARKETS",CHILDREN & YOUNG PEOPLE
REDACTED,111.39,04/08/2020,ASDA SUPERSTORE,Children's Home Expense - Provisions & Cleaning,"GROCERY STORES, SUPERMARKETS",CHILDREN & YOUNG PEOPLE
REDACTED,3.95,04/08/2020,ASDA SUPERSTORE,Children's Home Expense - Provisions,"GROCERY STORES, SUPERMARKETS",CHILDREN & YOUNG PEOPLE
REDACTED,-2328.00,04/08/2020,WWW.ADASS.ORG.UK,NCAS Conference refund,"ORGANISATIONS, CHARITABLE AND SOCIAL SERVICES",ADULT & COMMUNITY SERVICES
REDACTED,-1746.00,04/08/2020,WWW.ADASS.ORG.UK,NCAS Conference Refund,"ORGANISATIONS, CHARITABLE AND SOCIAL SERVICES",ADULT & COMMUNITY SERVICES
REDACTED,197.50,04/08/2020,IANSYST LTD,XXXXX Access to work C-Pen Reader,"COMP PROGRAMING,DATA PRCSNG,INTGRTD SYS DSGN SRVS",CHILDREN & YOUNG PEOPLE
REDACTED,299.00,04/08/2020,WWW.SPEAKIT.INFO,XXXXX Access to work Speech Air 2,"OFFICE, SCHOOL SUPPLY, AND STATIONERY STORES",CHILDREN & YOUNG PEOPLE
REDACTED,33.32,04/08/2020,CURRYS ONLINE,XXXXX - Access to work headphones,ELECTRONIC SALES,CHILDREN & YOUNG PEOPLE
REDACTED,10.83,04/08/2020,WWW.CROSSBOWEDUCATION.,XXXXX Access to work - Reading ruler,"OFFICE, SCHOOL SUPPLY, AND STATIONERY STORES",CHILDREN & YOUNG PEOPLE
REDACTED,25.81,04/08/2020,AMZNMktplace,Child in care - curtains for XXXXX,MISCELLANEOUS AND SPECIALTY RETAIL STORES,CHILDREN & YOUNG PEOPLE
REDACTED,21.57,04/08/2020,WWW.TOUCHLINE-GROUP,460597/863S education equipment for client,SPORTING GOODS STORES,CHILDREN & YOUNG PEOPLE
REDACTED,82.04,04/08/2020,STORAGEMART UK A-79595,1141577/709S storage for client,"FREIGHT CARRIER,TRUCKING-LCL/LNG DIST, MVG/STORAGE",CHILDREN & YOUNG PEOPLE
REDACTED,244.95,04/08/2020,ARGOS LTD,344637/414W setting up home items for client,DISCOUNT STORES,CHILDREN & YOUNG PEOPLE
REDACTED,201.63,04/08/2020,ARGOS LTD,578358/413W Setting up home items for client,DISCOUNT STORES,CHILDREN & YOUNG PEOPLE
REDACTED,11.00,05/08/2020,GEN REGISTER OFFICE,374443. 427W. . B Cert.,GOVERNMENT SERVICES-NOT ELSEWHERE CLASSIFIED,CHILDREN & YOUNG PEOPLE
REDACTED,40.00,05/08/2020,Amazon.co.uk SH8CC2AO5,Vouchers for Public Health interviews with yp,DIRECT MARKETING-OTHER DIRECT MARKETERS/NOT ELSEW.,CHILDREN & YOUNG PEOPLE
REDACTED,82.09,05/08/2020,RAWLINSON AUTOMOTIVE L,AY67 AUJ Door Handle and Mirror,"AUTO & TRUCK DLRS-SALES,SVC, REPRS,PRTS, & LEASING",FIRE & PUBLIC SAFETY
REDACTED,25.35,05/08/2020,WWW.OFFICEPRODUCTS.CO.,3 x large hardback notebooks for XXXXX,STATIONERY/OFFICE SUPPLIES/PRINTING & WRITING PAP.,FIRE & PUBLIC SAFETY
REDACTED,14.00,05/08/2020,GEN REGISTER OFFICE,refund of certificate,GOVERNMENT SERVICES-NOT ELSEWHERE CLASSIFIED,CHILDREN & YOUNG PEOPLE
REDACTED,11.00,05/08/2020,GEN REGISTER OFFICE,birth certificate,GOVERNMENT SERVICES-NOT ELSEWHERE CLASSIFIED,CHILDREN & YOUNG PEOPLE
REDACTED,44.25,05/08/2020,GRAVITY FITNESS LTD,Children in care - Birthday outing - XXXXX,RECREATION SERVICES (NOT ELSEWHERE CLASSIFIED),CHILDREN & YOUNG PEOPLE
REDACTED,23.34,05/08/2020,ARGOS LTD,Children in care - black out blinds for XXXXX & XXXXX,DISCOUNT STORES,CHILDREN & YOUNG PEOPLE
REDACTED,45.47,05/08/2020,VAT-SEARCH BY LINKOMAT,VAT Search for BEEA,"COMP PROGRAMING,DATA PRCSNG,INTGRTD SYS DSGN SRVS","GROWTH, HIGHWAYS & INFRASTRUCTURE"
REDACTED,130.50,05/08/2020,CLIP N CLIMB BOOKING,Activity for YPs - XXXXX,"BANDS, ORCHESTRAS, & MISC ENTRTNRS-NOT ELSWHR CLAS",CHILDREN & YOUNG PEOPLE
REDACTED,80.50,05/08/2020,HM PASSPORT OFFICE,384884/881S passport for client,GOVERNMENT SERVICES-NOT ELSEWHERE CLASSIFIED,CHILDREN & YOUNG PEOPLE
REDACTED,80.50,05/08/2020,HM PASSPORT OFFICE,297018/936S Passport for client,GOVERNMENT SERVICES-NOT ELSEWHERE CLASSIFIED,CHILDREN & YOUNG PEOPLE
REDACTED,5.65,05/08/2020,WWW.LIFESYSTEMS.CO.UK,tick tweezers for 1st aid kit in 2 vehicles,MISCELLANEOUS AND SPECIALTY RETAIL STORES,"GROWTH, HIGHWAYS & INFRASTRUCTURE"
REDACTED,30.83,05/08/2020,SCREWFIX DIRECT,hand shears for site clearance,HOME SUPPLY WAREHOUSE STORES,"GROWTH, HIGHWAYS & INFRASTRUCTURE"
REDACTED,2.06,05/08/2020,POST OFFICE COUNTER,Registered post for Enforcement Letter,POSTAL SERVICES-GOVERNMENT ONLY,"GROWTH, HIGHWAYS & INFRASTRUCTURE"
REDACTED,3.50,05/08/2020,CENTRAL CO-OP RETA,Pack of Energizer AA batteries.,DEPARTMENT STORES,CHILDREN & YOUNG PEOPLE
REDACTED,42.76,06/08/2020,MAILCHIMP    MONTHLY,monthly au mailchimp,DIRECT MARKETING - CONTINUITY/SUBSCRIPTION MERCHANTS,CHILDREN & YOUNG PEOPLE
REDACTED,6.49,06/08/2020,LCN.COM LTD,INC-135484 Domain name transfer XXXXX,"CONSULTING, MANAGEMENT AND PUBLIC RELATIONS SVCS",CORPORATE SERVICES
REDACTED,-6.49,06/08/2020,LCN.COM LTD,INC-135484 Domain name transfer XXXXX,"CONSULTING, MANAGEMENT AND PUBLIC RELATIONS SVCS",CORPORATE SERVICES
REDACTED,149.00,06/08/2020,AMZNMKTPLACE AMAZON.CO,Wireless Floor and Pressure Mat & Pager ID 102768,MISCELLANEOUS AND SPECIALTY RETAIL STORES,ADULT & COMMUNITY SERVICES
REDACTED,12.23,06/08/2020,ASDA SUPERSTORE,Children's Home Expense - picnic activity,"GROCERY STORES, SUPERMARKETS",CHILDREN & YOUNG PEOPLE
REDACTED,90.00,06/08/2020,ANGLIAN WATER,Children's Home Expense - Alton Water Activity,"CLUBS-CNTRY,MBRSHIP(ATHLET,REC,SPRTS,PRIVATE GOLF",CHILDREN & YOUNG PEOPLE
REDACTED,238.18,06/08/2020,Amazon.co.uk LH4KE1W75,Erg Slide Pro - Access to work for XXXXX,DIRECT MARKETING-OTHER DIRECT MARKETERS/NOT ELSEW.,ADULT & COMMUNITY SERVICES
REDACTED,30.62,06/08/2020,ASDA STORES LTD 5729,child in care cleaning supplies,"GROCERY STORES, SUPERMARKETS",CHILDREN & YOUNG PEOPLE
REDACTED,43.99,06/08/2020,AMZNMktplace,desk for XXXXX FSP,MISCELLANEOUS AND SPECIALTY RETAIL STORES,CHILDREN & YOUNG PEOPLE
REDACTED,47.80,06/08/2020,JUMP STREET,looked after children indoor play centre,RECREATION SERVICES (NOT ELSEWHERE CLASSIFIED),CHILDREN & YOUNG PEOPLE
REDACTED,67.60,06/08/2020,ALDI 65 776,looked after children provisions food,"GROCERY STORES, SUPERMARKETS",CHILDREN & YOUNG PEOPLE
REDACTED,15.00,06/08/2020,Etsy.com - SilxsShop,Face Mask for Social Worker FCFCT/L XXXXX,ACCESSORY AND APPAREL SHOPS - MISCELLANEOUS,CHILDREN & YOUNG PEOPLE
REDACTED,-7.50,07/08/2020,GEN REGISTER OFFICE,374443. 427W. Refund re B Cert.,GOVERNMENT SERVICES-NOT ELSEWHERE CLASSIFIED,CHILDREN & YOUNG PEOPLE
REDACTED,42.00,07/08/2020,WWW.JA.NET,SR-137990 Domain Name XXXXX,"ORGANISATIONS, MEMBERSHIP-NOT ELSEWHERE CLASSIFIED",CORPORATE SERVICES
REDACTED,16.73,07/08/2020,TESCO STORE 3240,Children's Home Expense - Provisions,"GROCERY STORES, SUPERMARKETS",CHILDREN & YOUNG PEOPLE
REDACTED,116.06,07/08/2020,ROBOTSHOP,Robo Dog - Digital Tech. for customer ID3016305,ELECTRONIC SALES,ADULT & COMMUNITY SERVICES
REDACTED,23.32,07/08/2020,AMZNMktplace,Medicine Box for Customer XXXXX 1185368,MISCELLANEOUS AND SPECIALTY RETAIL STORES,ADULT & COMMUNITY SERVICES
REDACTED,202.48,07/08/2020,EBUYER (UK) LTD,XXXXX access to work Tablet,HOUSEHOLD APPLIANCE STORES,ADULT & COMMUNITY SERVICES
REDACTED,15.92,07/08/2020,ASDA STORES LTD 5729,child in care - provisions,"GROCERY STORES, SUPERMARKETS",CHILDREN & YOUNG PEOPLE
REDACTED,49.05,07/08/2020,ALDI 776 147,Child in care - provisions,"GROCERY STORES, SUPERMARKETS",CHILDREN & YOUNG PEOPLE
REDACTED,222.40,07/08/2020,WWW.GARDENTRACTORSPARE,LPP Spares,MISC/AUTO/AIRCRAFT/FARM EQUIP  NOT ELSEWHERE CLASS,FIRE & PUBLIC SAFETY
REDACTED,16.40,07/08/2020,EB  DISRUPTING EXPLOIT,Disrupting Exploitation Webinar for XXXXX,BUSINESS SERVICES-NOT ELSEWHERE CLASSIFIED,CHILDREN & YOUNG PEOPLE
REDACTED,27.50,07/08/2020,COPYRIGHT WITNESS LTD,Renewal Powered Boat Rescue Operators Copyright,"CONSULTING, MANAGEMENT AND PUBLIC RELATIONS SVCS",FIRE & PUBLIC SAFETY
REDACTED,-7.50,07/08/2020,GEN REGISTER OFFICE,Death Certificate,GOVERNMENT SERVICES-NOT ELSEWHERE CLASSIFIED,CORPORATE SERVICES
REDACTED,906.00,07/08/2020,PARKHOLIDAYS.COM,ACC. XXXXX SW XXXXX,CAMPGROUNDS AND TRAILER PARKS,CHILDREN & YOUNG PEOPLE
REDACTED,96.00,10/08/2020,WWW.PLEASURE-BEACH.CO.,Children's Home Expense - Pleasure beach Activity,RECREATION SERVICES (NOT ELSEWHERE CLASSIFIED),CHILDREN & YOUNG PEOPLE
REDACTED,38.92,10/08/2020,TESCO STORE 3240,Children's Home Expense - Provisions,"GROCERY STORES, SUPERMARKETS",CHILDREN & YOUNG PEOPLE
REDACTED,6.75,10/08/2020,MCDONALDS,Child in care - Activity,FAST FOOD RESTAURANTS,CHILDREN & YOUNG PEOPLE
REDACTED,7.61,10/08/2020,KFC LOWESTOFT,Child in care - Activity,FAST FOOD RESTAURANTS,CHILDREN & YOUNG PEOPLE
REDACTED,59.67,10/08/2020,SCREWFIX DIRECT,Various tools for XXXXX,HOME SUPPLY WAREHOUSE STORES,FIRE & PUBLIC SAFETY
REDACTED,63.96,10/08/2020,NINES GLOBAL BUFFET,looked after children activity meal out,"EATING PLACES, RESTAURANTS",CHILDREN & YOUNG PEOPLE
REDACTED,10.00,10/08/2020,NINES GLOBAL BUFFET,looked after children activity meal out,"EATING PLACES, RESTAURANTS",CHILDREN & YOUNG PEOPLE
REDACTED,70.96,10/08/2020,ASDA  STORES 4218,looked after children provisions food,"GROCERY STORES, SUPERMARKETS",CHILDREN & YOUNG PEOPLE
REDACTED,7.89,10/08/2020,AMZN Mktp UK WD6CV0OF5,Children in care - forehead temperature scanner,BOOK STORES,CHILDREN & YOUNG PEOPLE
REDACTED,60.00,10/08/2020,WWW.PLEASURE-BEACH.CO.,Children in care - Activity for the children,RECREATION SERVICES (NOT ELSEWHERE CLASSIFIED),CHILDREN & YOUNG PEOPLE
REDACTED,26.47,10/08/2020,Amazon.co.uk 1L5B23K95,Measuring wheel,DIRECT MARKETING-OTHER DIRECT MARKETERS/NOT ELSEW.,"GROWTH, HIGHWAYS & INFRASTRUCTURE"
REDACTED,159.50,10/08/2020,CLIP N CLIMB IPSWICH,Activities for YPs for XXXXX,"BANDS, ORCHESTRAS, & MISC ENTRTNRS-NOT ELSWHR CLAS",CHILDREN & YOUNG PEOPLE
REDACTED,24.84,10/08/2020,WEST SUFFOLK COUNCIL,483782/899S Rent service charge for client,GOVERNMENT SERVICES-NOT ELSEWHERE CLASSIFIED,CHILDREN & YOUNG PEOPLE
REDACTED,67.50,10/08/2020,CURRYS ONLINE,2003263/889S setting up home item for client,ELECTRONIC SALES,CHILDREN & YOUNG PEOPLE
REDACTED,72.00,10/08/2020,Amazon.co.uk 9K11Y4W45,Team resources for XXXXX,DIRECT MARKETING-OTHER DIRECT MARKETERS/NOT ELSEW.,ADULT & COMMUNITY SERVICES
REDACTED,129.00,10/08/2020,DRAGONFLY HOTEL,Homeless vulnerable adult found accommodation,"LODGING-HOTELS,MOTELS,RESORTS-NOT CLASSIFIED",CHILDREN & YOUNG PEOPLE
REDACTED,30.00,10/08/2020,ASDA  STORES 4218,Asda Mobile Top Up Vouchers for Video Contact,"GROCERY STORES, SUPERMARKETS",CHILDREN & YOUNG PEOPLE
REDACTED,209.09,11/08/2020,ARGOS LTD,2007687. 908S. SUHA-various items.,DISCOUNT STORES,CHILDREN & YOUNG PEOPLE
REDACTED,42.00,11/08/2020,WWW.JA.NET,SR- 144680 Domain Name XXXXX,"ORGANISATIONS, MEMBERSHIP-NOT ELSEWHERE CLASSIFIED",CORPORATE SERVICES
REDACTED,100.28,11/08/2020,ASDA SUPERSTORE,Children's Home Expense - Provisions,"GROCERY STORES, SUPERMARKETS",CHILDREN & YOUNG PEOPLE
REDACTED,5.99,11/08/2020,NETFLIX.COM,Children's Home Expense - Activity,"CABLE, SATELLITE, OTHER PAY TELEVISION, RADIO SVCS",CHILDREN & YOUNG PEOPLE
REDACTED,-100.00,11/08/2020,PAYPAL  TRIPADVISOR,Refund Damage Deposit for booking BR28336512 XXXXX,"LODGING-HOTELS,MOTELS,RESORTS-NOT CLASSIFIED",CHILDREN & YOUNG PEOPLE
REDACTED,145.40,11/08/2020,AMZNMKTPLACE AMAZON.CO,Multi-use visors for ceremony staff,MISCELLANEOUS AND SPECIALTY RETAIL STORES,CORPORATE SERVICES
REDACTED,398.87,11/08/2020,FACEBK  E8XQHV2TP2,Boost posting,ADVERTISING SERVICES,CORPORATE SERVICES
REDACTED,89.50,11/08/2020,SP   PRICE GUN LAND,Pricing gun for shop,COMPUTER SOFTWARE STORES,"GROWTH, HIGHWAYS & INFRASTRUCTURE"
REDACTED,33.46,11/08/2020,AMZNMktplace,Lazy Tongs Riveter for XXXXX,MISCELLANEOUS AND SPECIALTY RETAIL STORES,FIRE & PUBLIC SAFETY
REDACTED,-18.50,11/08/2020,GEN REGISTER OFFICE,reimburse birth certificate,GOVERNMENT SERVICES-NOT ELSEWHERE CLASSIFIED,CHILDREN & YOUNG PEOPLE
REDACTED,60.00,11/08/2020,Amazon.co.uk 7F7O14CM5,Gift Card (XXXXX),DIRECT MARKETING-OTHER DIRECT MARKETERS/NOT ELSEW.,"GROWTH, HIGHWAYS & INFRASTRUCTURE"
REDACTED,12.06,11/08/2020,AMZNMktplace,Phone Charger (XXXXX),MISCELLANEOUS AND SPECIALTY RETAIL STORES,"GROWTH, HIGHWAYS & INFRASTRUCTURE"
REDACTED,259.00,11/08/2020,CONSTRUCTION HELP,CSCS Card for XXXXX,"COLLEGES, UNIV, PRO SCHOOLS, JUNIOR COLLEGES",CHILDREN & YOUNG PEOPLE
REDACTED,-7.50,11/08/2020,GEN REGISTER OFFICE,Death certificate,GOVERNMENT SERVICES-NOT ELSEWHERE CLASSIFIED,CORPORATE SERVICES
REDACTED,26.62,12/08/2020,ARGOS LTD,2016406. 910S. SUHA-fan.,DISCOUNT STORES,CHILDREN & YOUNG PEOPLE
REDACTED,99.60,12/08/2020,NOMINET UK,SR-144877 Annual Subscription XXXXX,"CONSULTING, MANAGEMENT AND PUBLIC RELATIONS SVCS",CORPORATE SERVICES
REDACTED,26.62,12/08/2020,ARGOS LTD,521712 447W. SUHA-fan,DISCOUNT STORES,CHILDREN & YOUNG PEOPLE
REDACTED,140.00,12/08/2020,EB  PAEDIATRIC CONTINE,x 4 delegates to attend ERIC virtual conference,BUSINESS SERVICES-NOT ELSEWHERE CLASSIFIED,CHILDREN & YOUNG PEOPLE
REDACTED,12.80,12/08/2020,TOP SHOP/TOP MAN,Children's Home Expense - Jewellery XXXXX,MEN'S AND WOMEN'S CLOTHING STORES,CHILDREN & YOUNG PEOPLE
REDACTED,13.60,12/08/2020,TOP SHOP/TOP MAN,Children's Home expense - Jewellery XXXXX,MEN'S AND WOMEN'S CLOTHING STORES,CHILDREN & YOUNG PEOPLE
REDACTED,9.99,12/08/2020,SHOE ZONE LTD,Children's Home Expense - Wellingtons XXXXX,SHOE STORES,CHILDREN & YOUNG PEOPLE
REDACTED,8.00,12/08/2020,TOP SHOP/TOP MAN,Children's Home Expense - Clothing XXXXX,MEN'S AND WOMEN'S CLOTHING STORES,CHILDREN & YOUNG PEOPLE
REDACTED,6.00,12/08/2020,TOP SHOP/TOP MAN,Children's Home Expense - pocket money,MEN'S AND WOMEN'S CLOTHING STORES,CHILDREN & YOUNG PEOPLE
REDACTED,25.60,12/08/2020,J D SPORTS,Children's home expense - bag reward XXXXX,SPORTING GOODS STORES,CHILDREN & YOUNG PEOPLE
REDACTED,12.00,12/08/2020,ETSY.COM ANDROMEDACLOT,child in care - clothing XXXXX,ACCESSORY AND APPAREL SHOPS - MISCELLANEOUS,CHILDREN & YOUNG PEOPLE
REDACTED,8.99,12/08/2020,PRETTYLITTLETHING.COM,child in care - clothing XXXXX,MEN'S AND WOMEN'S CLOTHING STORES,CHILDREN & YOUNG PEOPLE
REDACTED,7.50,12/08/2020,SP   ISAWITFIRST.COM,child in care - Clothing XXXXX,MEN'S AND WOMEN'S CLOTHING STORES,CHILDREN & YOUNG PEOPLE
REDACTED,10.98,12/08/2020,SHEIN.COM,child in care - Clothing XXXXX,FAMILY CLOTHING STORES,CHILDREN & YOUNG PEOPLE
REDACTED,16.48,12/08/2020,SHEIN.COM,child in care - clothing XXXXX,FAMILY CLOTHING STORES,CHILDREN & YOUNG PEOPLE
REDACTED,7.99,12/08/2020,AMZNMktplace,memory stick for family photos,MISCELLANEOUS AND SPECIALTY RETAIL STORES,CHILDREN & YOUNG PEOPLE
REDACTED,64.12,12/08/2020,AMZNMktplace,Tool order for XXXXX,MISCELLANEOUS AND SPECIALTY RETAIL STORES,FIRE & PUBLIC SAFETY
REDACTED,79.40,12/08/2020,POST OFFICE COUNTER,"100x2nd, 12x1st, 12 x 2nd large stamps (Covid 19)",POSTAL SERVICES-GOVERNMENT ONLY,CHILDREN & YOUNG PEOPLE
REDACTED,61.68,12/08/2020,WWW.COLCHESTER-ZOO.COM,Child in care - activity for XXXXX,TOURIST ATTRACTIONS AND EXHIBITS,CHILDREN & YOUNG PEOPLE
REDACTED,12.06,12/08/2020,AMZNMktplace,Phone Charger (XXXXX),MISCELLANEOUS AND SPECIALTY RETAIL STORES,"GROWTH, HIGHWAYS & INFRASTRUCTURE"
REDACTED,12.06,12/08/2020,AMZNMktplace,Phone Charger (XXXXX),MISCELLANEOUS AND SPECIALTY RETAIL STORES,"GROWTH, HIGHWAYS & INFRASTRUCTURE"
REDACTED,12.06,12/08/2020,AMZNMKTPLACE AMAZON.CO,Phone Charger (XXXXX),MISCELLANEOUS AND SPECIALTY RETAIL STORES,"GROWTH, HIGHWAYS & INFRASTRUCTURE"
REDACTED,34.00,12/08/2020,DVLA DRIVER ONLINE,Provisional Moped License for XXXXX,GOVERNMENT SERVICES-NOT ELSEWHERE CLASSIFIED,CHILDREN & YOUNG PEOPLE
REDACTED,80.11,12/08/2020,WWW.COLCHESTER-ZOO.COM,Colchester Zoo Day Trip for XXXXX,TOURIST ATTRACTIONS AND EXHIBITS,CHILDREN & YOUNG PEOPLE
REDACTED,85.00,12/08/2020,SURYA HOTELS LTD,Homeless vulnerable adult found accommodation,"LODGING-HOTELS,MOTELS,RESORTS-NOT CLASSIFIED",CHILDREN & YOUNG PEOPLE
REDACTED,100.00,13/08/2020,ONE4ALL,"ID: 1090110, 208N, birthday allowance",DEPARTMENT STORES,CHILDREN & YOUNG PEOPLE
REDACTED,303.94,13/08/2020,ARGOS LTD,"ID: 302023, 241N, TV, TV stand, chair",DISCOUNT STORES,CHILDREN & YOUNG PEOPLE
REDACTED,26.62,13/08/2020,ARGOS LTD,675810. 451W. SUHA-fan.,DISCOUNT STORES,CHILDREN & YOUNG PEOPLE
REDACTED,53.28,13/08/2020,ARGOS LTD,578358. 448W. SUHA-V Cleaner.,DISCOUNT STORES,CHILDREN & YOUNG PEOPLE
REDACTED,145.79,13/08/2020,AMZNMKTPLACE AMAZON.CO,Grpahics Tablets for maths trainees,MISCELLANEOUS AND SPECIALTY RETAIL STORES,CHILDREN & YOUNG PEOPLE
REDACTED,11.20,13/08/2020,PRIMARK,Children's Home expense - PJs XXXXX,FAMILY CLOTHING STORES,CHILDREN & YOUNG PEOPLE
REDACTED,11.00,13/08/2020,PRIMARK,Chilren's Home expense - Clothing XXXXX,FAMILY CLOTHING STORES,CHILDREN & YOUNG PEOPLE
REDACTED,52.00,13/08/2020,PRIMARK,Children's home expense - clothing XXXXX,FAMILY CLOTHING STORES,CHILDREN & YOUNG PEOPLE
REDACTED,8.00,13/08/2020,PRIMARK,Children's home expense - clothing XXXXX,FAMILY CLOTHING STORES,CHILDREN & YOUNG PEOPLE
REDACTED,463.09,13/08/2020,AIRBNB   HMR4HPMP3T,XXXXX emergency accm Ips,"LODGING-HOTELS,MOTELS,RESORTS-NOT CLASSIFIED",CHILDREN & YOUNG PEOPLE
REDACTED,347.32,13/08/2020,AIRBNB   HMBFTTDQJB,accommodation for a family via Ipswich via BSM XXXXX.,"LODGING-HOTELS,MOTELS,RESORTS-NOT CLASSIFIED",CHILDREN & YOUNG PEOPLE
REDACTED,75.72,13/08/2020,BUYITDIRECT CO UK,Safe for Business support,COMPUTER SOFTWARE STORES,CHILDREN & YOUNG PEOPLE
REDACTED,14.61,13/08/2020,ALDI 65 776,looked after children provisions food,"GROCERY STORES, SUPERMARKETS",CHILDREN & YOUNG PEOPLE
REDACTED,45.31,13/08/2020,ALDI 65 776,looked after children provisions food,"GROCERY STORES, SUPERMARKETS",CHILDREN & YOUNG PEOPLE
REDACTED,8.15,13/08/2020,GREATER ANGLIA,looked after children train ticket,PASSENGER RAILWAYS,CHILDREN & YOUNG PEOPLE
REDACTED,199.99,13/08/2020,AMZNMktplace,XXXXX 3024471 GPS LOCATION TRACKER,MISCELLANEOUS AND SPECIALTY RETAIL STORES,ADULT & COMMUNITY SERVICES
REDACTED,-50.00,14/08/2020,YMCA NORFOLK,"ID: 302023, 235N service charge refunded","ORGANISATIONS, CHARITABLE AND SOCIAL SERVICES",CHILDREN & YOUNG PEOPLE
REDACTED,133.45,14/08/2020,Dunelm,"ID: 215928, 235N, TV stand, cushions, rug","EQUIP, FURNITURE, HOME FURNSHNGS STRS (EXCPT APPL)",CHILDREN & YOUNG PEOPLE
REDACTED,50.00,14/08/2020,YMCA NORFOLK,"ID: 302023, 235N service charge","ORGANISATIONS, CHARITABLE AND SOCIAL SERVICES",CHILDREN & YOUNG PEOPLE
REDACTED,290.83,14/08/2020,WWW.BEDS.CO.UK,1205848. 453W. SUHA-Bed & mattress.,"EQUIP, FURNITURE, HOME FURNSHNGS STRS (EXCPT APPL)",CHILDREN & YOUNG PEOPLE
REDACTED,3.82,14/08/2020,AMZNMktplace,Office supplies,MISCELLANEOUS AND SPECIALTY RETAIL STORES,CHILDREN & YOUNG PEOPLE
REDACTED,804.00,14/08/2020,WWW.JA.NET,SR-133397 Domain Name renewals XXXXX,"ORGANISATIONS, MEMBERSHIP-NOT ELSEWHERE CLASSIFIED",CORPORATE SERVICES
REDACTED,40.00,14/08/2020,Amazon.co.uk MZ0OX1NA5,Gift card for young person XXXXX,DIRECT MARKETING-OTHER DIRECT MARKETERS/NOT ELSEW.,CHILDREN & YOUNG PEOPLE
REDACTED,9.67,14/08/2020,ASDA SUPERSTORE,Children's Home Expense - Ext lead & provisions,"GROCERY STORES, SUPERMARKETS",CHILDREN & YOUNG PEOPLE
REDACTED,30.80,14/08/2020,ASDA SUPERSTORE,Children's Home Expense - School uniform XXXXX,"GROCERY STORES, SUPERMARKETS",CHILDREN & YOUNG PEOPLE
REDACTED,6.00,14/08/2020,B&M 055 - STOWMARKET,Children's Home Expense - Disposable glove,SUNDRY GENERAL MERCHANDISE,CHILDREN & YOUNG PEOPLE
REDACTED,88.44,14/08/2020,ALDI 776 147,child in care - food provisions,"GROCERY STORES, SUPERMARKETS",CHILDREN & YOUNG PEOPLE
REDACTED,17.29,14/08/2020,B&M 420 - HS LOWESTOFT,child in care - cleaning supplies,SUNDRY GENERAL MERCHANDISE,CHILDREN & YOUNG PEOPLE
REDACTED,140.00,14/08/2020,EB  DIGITAL AND SOCIAL,Digital and social media masterclass series- XXXXX,BUSINESS SERVICES-NOT ELSEWHERE CLASSIFIED,CORPORATE SERVICES
REDACTED,400.00,14/08/2020,FACEBK 2HCEKVJPF2,Boost posting,ADVERTISING SERVICES,CORPORATE SERVICES
REDACTED,13.98,14/08/2020,AMZNMktplace,Phone cases for new starters,MISCELLANEOUS AND SPECIALTY RETAIL STORES,FIRE & PUBLIC SAFETY
REDACTED,50.00,14/08/2020,ZSEA AFRICA ALIVE,Children in care - activity children at XXXXX,"AMUSEMENT PARKS,CARNIVALS,CIRCUS,FORTUNE TELLERS",CHILDREN & YOUNG PEOPLE
REDACTED,20.00,14/08/2020,HMCTS-SUFFOLK024,1215557/39N fine for client,FINES,CHILDREN & YOUNG PEOPLE
REDACTED,113.27,14/08/2020,ARGOS LTD,"Eight 12"" inch desk fans for various UASC 020SL207",DISCOUNT STORES,CHILDREN & YOUNG PEOPLE
REDACTED,141.58,14/08/2020,ARGOS LTD,"Ten 12"" inch desk fans for various UASC 020SL207",DISCOUNT STORES,CHILDREN & YOUNG PEOPLE
REDACTED,141.58,14/08/2020,ARGOS LTD,"Ten 12"" inch desk fans for various UASC 020SL207",DISCOUNT STORES,CHILDREN & YOUNG PEOPLE
REDACTED,85.00,14/08/2020,DRAGONFLY HOTEL,Homeless vulnerable adult found accommodation,"LODGING-HOTELS,MOTELS,RESORTS-NOT CLASSIFIED",CHILDREN & YOUNG PEOPLE
REDACTED,44.85,14/08/2020,SCREWFIX DIR. LTD,"Stanley tape, handsaw,washers, line marking paint","BUILDING MATERIALS, LUMBER STORES",FIRE & PUBLIC SAFETY
REDACTED,650.75,14/08/2020,PARKHOLIDAYS.COM,ACC. XXXXX SW XXXXX,CAMPGROUNDS AND TRAILER PARKS,CHILDREN & YOUNG PEOPLE
REDACTED,135.00,17/08/2020,PAYPAL  ASSOC LL,Membership of MFL subject knowledge association,"ORGANISATIONS, CHARITABLE AND SOCIAL SERVICES",CHILDREN & YOUNG PEOPLE
REDACTED,14.10,17/08/2020,AMZNMktplace,Office supplies,MISCELLANEOUS AND SPECIALTY RETAIL STORES,CHILDREN & YOUNG PEOPLE
REDACTED,15.98,17/08/2020,MOBILE FONE EXPERTS,Mobile phone charges for samsung phones,TELECOMMUNICATION EQUIPMENT INCL TELEPHONE SALES,"GROWTH, HIGHWAYS & INFRASTRUCTURE"
REDACTED,25.99,17/08/2020,AMZNMKTPLACE AMAZON.CO,Children's Home Expense - Sensory blanket XXXXX,MISCELLANEOUS AND SPECIALTY RETAIL STORES,CHILDREN & YOUNG PEOPLE
REDACTED,6.66,17/08/2020,Amazon Prime 6B0CH4M25,Children's Home Expense - Activity,DIRECT MARKETING - CONTINUITY/SUBSCRIPTION MERCHANTS,CHILDREN & YOUNG PEOPLE
REDACTED,23.30,17/08/2020,ASDA SUPERSTORE,Children's Home Expense - Provisions,"GROCERY STORES, SUPERMARKETS",CHILDREN & YOUNG PEOPLE
REDACTED,22.66,17/08/2020,ASDA STORES LTD 5729,child in care - food provisions,"GROCERY STORES, SUPERMARKETS",CHILDREN & YOUNG PEOPLE
REDACTED,46.48,17/08/2020,PREMIUMBEAT.COM,licence,PROFESSIONAL SERVICES - NOT ELSEWHERE CLASSIFIED,CORPORATE SERVICES
REDACTED,44.83,17/08/2020,FACEBK YLAQ9VJNF2,Facebook boosting,ADVERTISING SERVICES,CORPORATE SERVICES
REDACTED,33.80,17/08/2020,GSF CAR PARTS,Woodbridge CSV Front Pads,MOTOR VEHICLE SUPPLIES AND NEW PARTS,FIRE & PUBLIC SAFETY
REDACTED,28.84,17/08/2020,MCDONALDS,Feeding at fire Inc 6669 - prolonged incident,FAST FOOD RESTAURANTS,FIRE & PUBLIC SAFETY
REDACTED,74.00,17/08/2020,Pleasurewoord Hills in,Restbite for XXXXX trip,TOURIST ATTRACTIONS AND EXHIBITS,CHILDREN & YOUNG PEOPLE
REDACTED,23.48,17/08/2020,AMZNMKTPLACE AMAZON.CO,XXXXX 2029584 Headphones 020SL208,MISCELLANEOUS AND SPECIALTY RETAIL STORES,CHILDREN & YOUNG PEOPLE
REDACTED,134.02,17/08/2020,WWW.HSS.COM,Hire of generator for XXXXX,"EQUIPMENT RENTAL & LEASING SVS, FURNTURE/TOOL RENTAL",FIRE & PUBLIC SAFETY
REDACTED,-18.50,17/08/2020,GEN REGISTER OFFICE,refund on certificates,GOVERNMENT SERVICES-NOT ELSEWHERE CLASSIFIED,CHILDREN & YOUNG PEOPLE
REDACTED,-18.50,17/08/2020,GEN REGISTER OFFICE,refund on certificates,GOVERNMENT SERVICES-NOT ELSEWHERE CLASSIFIED,CHILDREN & YOUNG PEOPLE
REDACTED,69.96,17/08/2020,Amazon.co.uk A06VU7925,laptop cases for new starters,DIRECT MARKETING-OTHER DIRECT MARKETERS/NOT ELSEW.,FIRE & PUBLIC SAFETY
REDACTED,14.00,17/08/2020,ARGOS LTD,Child in care - blackout roller blind,DISCOUNT STORES,CHILDREN & YOUNG PEOPLE
REDACTED,15.00,17/08/2020,ARGOS LTD,Child in care - door bell,DISCOUNT STORES,CHILDREN & YOUNG PEOPLE
REDACTED,-5.00,17/08/2020,FOOTASYLUM PLC,Reimbursement for XXXXX Clothing,MEN'S AND WOMEN'S CLOTHING STORES,CHILDREN & YOUNG PEOPLE
REDACTED,95.74,17/08/2020,AMZNMKTPLACE AMAZON.CO,319231/918S Setting up home item for client,MISCELLANEOUS AND SPECIALTY RETAIL STORES,CHILDREN & YOUNG PEOPLE
REDACTED,10.00,17/08/2020,HMCTS-NORFOLK030,1157099/47S fine for client,FINES,CHILDREN & YOUNG PEOPLE
REDACTED,87.60,17/08/2020,NX Website,1266592/938S travel costs for client,BUS LINES,CHILDREN & YOUNG PEOPLE
REDACTED,18.43,17/08/2020,Twilio 3A5R46VTEBA,Communications/text alerts,COMPUTER SOFTWARE STORES,FIRE & PUBLIC SAFETY
REDACTED,2.91,17/08/2020,Amazon.co.uk RR4EN6N85,Stationary for the team - agreed XXXXX,DIRECT MARKETING-OTHER DIRECT MARKETERS/NOT ELSEW.,CHILDREN & YOUNG PEOPLE
REDACTED,4.92,17/08/2020,Amazon.co.uk ZB9FK6325,Stationary for the team - agreed XXXXX,DIRECT MARKETING-OTHER DIRECT MARKETERS/NOT ELSEW.,CHILDREN & YOUNG PEOPLE
REDACTED,4.19,17/08/2020,AMZNMktplace,Stationary for the team - agreed XXXXX,MISCELLANEOUS AND SPECIALTY RETAIL STORES,CHILDREN & YOUNG PEOPLE
REDACTED,37.90,17/08/2020,AMZNMKTPLACE AMAZON.CO,Children in Care - Covid face masks,MISCELLANEOUS AND SPECIALTY RETAIL STORES,CHILDREN & YOUNG PEOPLE
REDACTED,296.22,18/08/2020,BYTEMARK HOSTING,One Suffolk Hosting - XXXXX,COMPUTER SOFTWARE STORES,CORPORATE SERVICES
REDACTED,23.50,18/08/2020,ASDA SUPERSTORE,Children' Home Expense - School uniform,"GROCERY STORES, SUPERMARKETS",CHILDREN & YOUNG PEOPLE
REDACTED,134.54,18/08/2020,ASDA SUPERSTORE,Children's Home Expense - Provisions,"GROCERY STORES, SUPERMARKETS",CHILDREN & YOUNG PEOPLE
REDACTED,30.10,18/08/2020,J D SPORTS,Children's Home Expense - School uniform,SPORTING GOODS STORES,CHILDREN & YOUNG PEOPLE
REDACTED,249.96,18/08/2020,SP   BABY TRAVEL LTD,Fostering Equip Travel system XXXXX O14480,CHILDREN'S AND INFANT'S WEAR SHOPS,CHILDREN & YOUNG PEOPLE
REDACTED,38.14,18/08/2020,Amazon.co.uk XO7164Z45,Illustrator supplies (pen nibs),DIRECT MARKETING-OTHER DIRECT MARKETERS/NOT ELSEW.,"GROWTH, HIGHWAYS & INFRASTRUCTURE"
REDACTED,146.00,18/08/2020,WWW.MCPS.CO.UK,Online music license,BUSINESS SERVICES-NOT ELSEWHERE CLASSIFIED,CHILDREN & YOUNG PEOPLE
REDACTED,5.00,18/08/2020,PPOINT_ MORTON CONVENI,child in care - EE voucher,"MISC FOOD STORE-CONVENIENCE,MRKT,SPLTY,VENDNG MACS",CHILDREN & YOUNG PEOPLE
REDACTED,5.97,18/08/2020,KFC LOWESTOFT,child in care - activity,FAST FOOD RESTAURANTS,CHILDREN & YOUNG PEOPLE
REDACTED,12.00,18/08/2020,ASDA STORES LTD 5729,child in care - Provisions,"GROCERY STORES, SUPERMARKETS",CHILDREN & YOUNG PEOPLE
REDACTED,11.67,18/08/2020,ASDA STORES LTD 5729,child in care - Mobile XXXXX,"GROCERY STORES, SUPERMARKETS",CHILDREN & YOUNG PEOPLE
REDACTED,349.90,18/08/2020,SIMPLISAFE UK,XXXXX home alarm system,"DETECTVE/PROTECTVE AGNCY,SECURITY SRVS, ARMOURED CARS",CHILDREN & YOUNG PEOPLE
REDACTED,24.48,18/08/2020,AMZNMktplace,headphones for XXXXX 2029583 020SL209,MISCELLANEOUS AND SPECIALTY RETAIL STORES,CHILDREN & YOUNG PEOPLE
REDACTED,10.33,18/08/2020,ASDA  STORES 4218,looked after children provisions,"GROCERY STORES, SUPERMARKETS",CHILDREN & YOUNG PEOPLE
REDACTED,6.15,18/08/2020,TESCO STORES 6179,looked after children provisions,"GROCERY STORES, SUPERMARKETS",CHILDREN & YOUNG PEOPLE
REDACTED,88.46,18/08/2020,ALDI 65 776,looked after children,"GROCERY STORES, SUPERMARKETS",CHILDREN & YOUNG PEOPLE
REDACTED,7.50,18/08/2020,BURY KEBAB,looked after children provisions,FAST FOOD RESTAURANTS,CHILDREN & YOUNG PEOPLE
REDACTED,14.00,18/08/2020,GEN REGISTER OFFICE,Death certificate,GOVERNMENT SERVICES-NOT ELSEWHERE CLASSIFIED,CORPORATE SERVICES
REDACTED,262.09,18/08/2020,TRAVELODGE GB0000,ACC. XXXXX SW XXXXX,TRAVELODGE,CHILDREN & YOUNG PEOPLE
REDACTED,14.00,19/08/2020,GEN REGISTER OFFICE,"ID: 748236, 249N, birth certificate",GOVERNMENT SERVICES-NOT ELSEWHERE CLASSIFIED,CHILDREN & YOUNG PEOPLE
REDACTED,21.00,19/08/2020,VUE NCS CITB HS&E TEST,304226 484W CSCS Test,SCHOOLS & EDUCATIONAL SVC-NOT ELSEWHERE CLASSIFIED,CHILDREN & YOUNG PEOPLE
REDACTED,65.50,19/08/2020,AMZNMKTPLACE AMAZON.CO,Electronic Medication Dispenser LAS ID 274988,MISCELLANEOUS AND SPECIALTY RETAIL STORES,ADULT & COMMUNITY SERVICES
REDACTED,26.00,19/08/2020,PRIMARK,Children's Home Expense - School Uniform XXXXX,FAMILY CLOTHING STORES,CHILDREN & YOUNG PEOPLE
REDACTED,144.00,19/08/2020,Pleasurewoord Hills in,Children's Home Expense - Children's Activity,TOURIST ATTRACTIONS AND EXHIBITS,CHILDREN & YOUNG PEOPLE
REDACTED,63.48,19/08/2020,KIIWII CLOTHING AND PR,Children's Home Expense - School uniform XXXXX,MEN'S/WOMEN'S/CHILDREN'S UNIFORMS/COMMERCIAL CLOTH,CHILDREN & YOUNG PEOPLE
REDACTED,85.59,19/08/2020,SCHOOL COLOURS DIRECT,Children's Home Expense - School uniform XXXXX,MEN'S/WOMEN'S/CHILDREN'S UNIFORMS/COMMERCIAL CLOTH,CHILDREN & YOUNG PEOPLE
REDACTED,64.80,19/08/2020,THE PLAYGROUND,Children's Home Expense - Playground activity,RECREATION SERVICES (NOT ELSEWHERE CLASSIFIED),CHILDREN & YOUNG PEOPLE
REDACTED,38.94,19/08/2020,ARGOS LTD,Fostering Equip Cot Mattress 140x70cm XXXXX O14480,DISCOUNT STORES,CHILDREN & YOUNG PEOPLE
REDACTED,11.81,19/08/2020,AMZNMktplace,Child in care - XXXXX activity,MISCELLANEOUS AND SPECIALTY RETAIL STORES,CHILDREN & YOUNG PEOPLE
REDACTED,25.00,19/08/2020,WM MORRISONS STORE,Child in care - xbox gift card activity,"GROCERY STORES, SUPERMARKETS",CHILDREN & YOUNG PEOPLE
REDACTED,485.05,19/08/2020,WWW.DJI.COM,Camera equipment,CAMERA AND PHOTOGRAPHIC SUPPLY STORES,CORPORATE SERVICES
REDACTED,104.86,19/08/2020,RS COMPONENTS,Cooling Loop Solenoid KP10,ELECTRICAL PARTS AND EQUIPMENT,FIRE & PUBLIC SAFETY
REDACTED,34.00,19/08/2020,DVLA DRIVER ONLINE,DVLA licence for XXXXX id 1266613 020SL212,GOVERNMENT SERVICES-NOT ELSEWHERE CLASSIFIED,CHILDREN & YOUNG PEOPLE
REDACTED,594.83,19/08/2020,INTERNETSTORES,Specialist bike for Police/SW group activity,BICYCLE SHOPS - SALES AND SERVICE,CHILDREN & YOUNG PEOPLE
REDACTED,183.27,19/08/2020,HAPPY BEDS,325378/916S Setting up home item mattress,"EQUIP, FURNITURE, HOME FURNSHNGS STRS (EXCPT APPL)",CHILDREN & YOUNG PEOPLE
REDACTED,173.98,19/08/2020,GET LICENSED,1208900/968S course funded by donation,"CONSULTING, MANAGEMENT AND PUBLIC RELATIONS SVCS",CHILDREN & YOUNG PEOPLE
REDACTED,185.82,19/08/2020,WAYFAIR #2811827358,325378/916S Setting up home item bed,"EQUIP, FURNITURE, HOME FURNSHNGS STRS (EXCPT APPL)",CHILDREN & YOUNG PEOPLE
REDACTED,95.85,19/08/2020,AMZNMktplace,F&E Grant,MISCELLANEOUS AND SPECIALTY RETAIL STORES,ADULT & COMMUNITY SERVICES
REDACTED,283.51,19/08/2020,TRAVELODGE GB0000,ACC. XXXXX SW XXXXX,TRAVELODGE,CHILDREN & YOUNG PEOPLE
REDACTED,157.50,20/08/2020,TVLICENSING.CO.UK,AU Lodge TV License for XXXXX,"CONSULTING, MANAGEMENT AND PUBLIC RELATIONS SVCS",CHILDREN & YOUNG PEOPLE
REDACTED,9.37,20/08/2020,AMZNMKTPLACE AMAZON.CO,Clip Boards x 4,MISCELLANEOUS AND SPECIALTY RETAIL STORES,FIRE & PUBLIC SAFETY
REDACTED,33.20,20/08/2020,Amazon.co.uk AJ1EK8QB5,Gang Extension cables x 10,DIRECT MARKETING-OTHER DIRECT MARKETERS/NOT ELSEW.,FIRE & PUBLIC SAFETY
REDACTED,106.99,20/08/2020,WF  WAYFAIR 3401126644,Desk for XXXXX.,"EQUIP, FURNITURE, HOME FURNSHNGS STRS (EXCPT APPL)",CHILDREN & YOUNG PEOPLE
REDACTED,27.60,20/08/2020,AMZNMKTPLACE AMAZON.CO,Children's Home Expense - CIC,MISCELLANEOUS AND SPECIALTY RETAIL STORES,CHILDREN & YOUNG PEOPLE
REDACTED,83.59,20/08/2020,MICHAELS BUTCHERS,Children' Home Expense - Provisions,"FREEZER, LOCKER MEAT PROVISIONERS",CHILDREN & YOUNG PEOPLE
REDACTED,15.37,20/08/2020,GO KAYAKING NORTH WEST,whistles for PFD's,SPORTING GOODS STORES,FIRE & PUBLIC SAFETY
REDACTED,67.21,20/08/2020,QR-Code-Generator.com,QR code generator,COMPUTER SOFTWARE STORES,CORPORATE SERVICES
REDACTED,452.04,20/08/2020,GOOGLE  ADS6087318024,Advertising,DIGITAL GOODS SOFTWARE APPLICATIONS,CORPORATE SERVICES
REDACTED,84.00,20/08/2020,IZ  JacqsArtisan,Soaps for shop - does not accept P2P,"COMMERCIAL ART, GRAPHICS, PHOTOGRAPHY","GROWTH, HIGHWAYS & INFRASTRUCTURE"
REDACTED,72.00,20/08/2020,IPSWICH BOROUGH CO,parking permits x 6 for Ipswich West,GOVERNMENT SERVICES-NOT ELSEWHERE CLASSIFIED,CHILDREN & YOUNG PEOPLE
REDACTED,14.70,20/08/2020,Amazon.co.uk 9L0UC59T5,Monthly order-itch cream for XXXXX 2010300 020SL088,DIRECT MARKETING-OTHER DIRECT MARKETERS/NOT ELSEW.,CHILDREN & YOUNG PEOPLE
REDACTED,-309.95,20/08/2020,Dunelm,mattress refund for XXXXX id 2023974,"EQUIP, FURNITURE, HOME FURNSHNGS STRS (EXCPT APPL)",CHILDREN & YOUNG PEOPLE
REDACTED,5.37,20/08/2020,COSTA COFFEE,looked after children activity,FAST FOOD RESTAURANTS,CHILDREN & YOUNG PEOPLE
REDACTED,7.79,20/08/2020,SUBWAY,looked after children activity,FAST FOOD RESTAURANTS,CHILDREN & YOUNG PEOPLE
REDACTED,25.00,20/08/2020,GREATER ANGLIA T/O,looked after children activity,PASSENGER RAILWAYS,CHILDREN & YOUNG PEOPLE
REDACTED,-8.96,20/08/2020,Kindle Svcs,"Contra below, refund for wrong book",RECORD SHOPS,CHILDREN & YOUNG PEOPLE
REDACTED,8.96,20/08/2020,Kindle Svcs A93BB2MW5,"Contra above, refund requested for wrong book",RECORD SHOPS,CHILDREN & YOUNG PEOPLE
REDACTED,42.00,21/08/2020,WWW.JA.NET,SR-146611 Domain name XXXXX,"ORGANISATIONS, MEMBERSHIP-NOT ELSEWHERE CLASSIFIED",CORPORATE SERVICES
REDACTED,35.95,21/08/2020,LCN COM,SR-146467 Domain Name XXXXX,COMPUTER NETWORK/INFORMATION SERVICES,CORPORATE SERVICES
REDACTED,-11.00,21/08/2020,MY.NORFOLK.GOV.UK,REFUND OF BIRTH CERT FEE RE 22/7 REQUEST FOR XXXXX,GOVERNMENT SERVICES-NOT ELSEWHERE CLASSIFIED,CORPORATE SERVICES
REDACTED,52.42,21/08/2020,PP MARUAMNESTE,Feeding at fires - inc 7035,"EATING PLACES, RESTAURANTS",FIRE & PUBLIC SAFETY
REDACTED,6.66,21/08/2020,Amazon Prime II0GB1W85,Monthly fee for Amazon Prime,DIRECT MARKETING - CONTINUITY/SUBSCRIPTION MERCHANTS,"GROWTH, HIGHWAYS & INFRASTRUCTURE"
REDACTED,300.00,21/08/2020,UNIFORM EXPRESS,250 washable face masks,"ALTERATIONS, MENDING, SEAMSTRESSES, TAILORS",FIRE & PUBLIC SAFETY
REDACTED,300.00,21/08/2020,UNIFORM EXPRESS,250 Washable Facemasks,"ALTERATIONS, MENDING, SEAMSTRESSES, TAILORS",FIRE & PUBLIC SAFETY
REDACTED,71.33,21/08/2020,LONDON GRAPHIC CENTRE,"Black acid free mount board, exhibition mounting.","OFFICE, SCHOOL SUPPLY, AND STATIONERY STORES","GROWTH, HIGHWAYS & INFRASTRUCTURE"
REDACTED,356.92,21/08/2020,WWW.ALDI.CO.UK,Birkinshaw O14480 Nursery Furniture set,"GROCERY STORES, SUPERMARKETS",CHILDREN & YOUNG PEOPLE
REDACTED,149.18,21/08/2020,ALDI 33 776,Child in care - provisions,"GROCERY STORES, SUPERMARKETS",CHILDREN & YOUNG PEOPLE
REDACTED,54.50,21/08/2020,SP   PRICE GUN LAND,Second pricing gun for shop,COMPUTER SOFTWARE STORES,"GROWTH, HIGHWAYS & INFRASTRUCTURE"
REDACTED,9.58,21/08/2020,PAYPAL  SIMONCANNON EB,building materials for XXXXX,MISCELLANEOUS AND SPECIALTY RETAIL STORES,FIRE & PUBLIC SAFETY
REDACTED,80.95,21/08/2020,WICKES BUILDING,Building materials for XXXXX,"BUILDING MATERIALS, LUMBER STORES",FIRE & PUBLIC SAFETY
REDACTED,16.73,21/08/2020,AMZNMktplace,Phone screen protectors for new starters,MISCELLANEOUS AND SPECIALTY RETAIL STORES,FIRE & PUBLIC SAFETY
REDACTED,47.22,21/08/2020,WWW.BRESSINGHAM.CO.UK,Tickets for Bressingham Museum for XXXXX 997945,TOURIST ATTRACTIONS AND EXHIBITS,CHILDREN & YOUNG PEOPLE
REDACTED,104.17,21/08/2020,Amazon.co.uk 8L2I52WE5,475369/481S equipment for young person,DIRECT MARKETING-OTHER DIRECT MARKETERS/NOT ELSEW.,CHILDREN & YOUNG PEOPLE
REDACTED,3.50,21/08/2020,CENTRAL CO-OP RETA,Energizer Batteries for door gard,DEPARTMENT STORES,CHILDREN & YOUNG PEOPLE
REDACTED,5.99,21/08/2020,DISNEY PLUS,Children in care - Activity Disney+,DIGITAL GOODS AUDIOVISUAL MEDIA,CHILDREN & YOUNG PEOPLE
REDACTED,60.00,21/08/2020,IPSERVEC6PAYCOM,Children in Care - transport parking fine,AUTOMOBILE PARKING LOTS AND GARAGES,CHILDREN & YOUNG PEOPLE
REDACTED,130.00,21/08/2020,ARGOS LTD,To replace damaged existing,DISCOUNT STORES,FIRE & PUBLIC SAFETY
REDACTED,23.33,24/08/2020,TYPEFORM S.L,Monthly Typeform subscription payment Aug-Sept 20,COMPUTER SOFTWARE STORES,ADULT & COMMUNITY SERVICES
REDACTED,18.92,24/08/2020,BALSAMIQ TRID1248119,Monthly Balsamiq subscription payment Aug-Sep 20,COMPUTER SOFTWARE STORES,ADULT & COMMUNITY SERVICES
REDACTED,1.63,24/08/2020,MSFT   E0800BXHP0,O365 PAYG Subscription XXXXX,"COMPUTERS, COMPUTER PERIPHERAL EQUIPMENT, SOFTWARE",CORPORATE SERVICES
REDACTED,19.28,24/08/2020,MAILCHIMP    MONTHLY,mailchimp email fee,DIRECT MARKETING - CONTINUITY/SUBSCRIPTION MERCHANTS,"GROWTH, HIGHWAYS & INFRASTRUCTURE"
REDACTED,40.00,24/08/2020,WHITE HART HOTEL,one nights emergency accommodation to avoid homelessness,"BAR,LOUNGE,DISCO,NIGHTCLUB,TAVERN-ALCOHOLIC DRINKS",CHILDREN & YOUNG PEOPLE
REDACTED,25.00,24/08/2020,BACK 2 BACK,child in care XXXXX clothing / Jewellery,MEN'S AND BOY'S CLOTHING AND ACCESSORIES STORES,CHILDREN & YOUNG PEOPLE
REDACTED,99.98,24/08/2020,THE 105,Child in care - XXXXX clothing,MEN'S AND BOY'S CLOTHING AND ACCESSORIES STORES,CHILDREN & YOUNG PEOPLE
REDACTED,1.25,24/08/2020,INFRA RED UK RETAIL GE,child in care - parking,BUSINESS SERVICES-NOT ELSEWHERE CLASSIFIED,CHILDREN & YOUNG PEOPLE
REDACTED,11.72,24/08/2020,OUTFIT,Child in care - clothing,MEN'S AND WOMEN'S CLOTHING STORES,CHILDREN & YOUNG PEOPLE
REDACTED,9.51,24/08/2020,MCDONALDS,Child in care - activity,FAST FOOD RESTAURANTS,CHILDREN & YOUNG PEOPLE
REDACTED,-11.67,24/08/2020,OUTFIT,child in care - clothing,MEN'S AND WOMEN'S CLOTHING STORES,CHILDREN & YOUNG PEOPLE
REDACTED,24.50,24/08/2020,CONGO RAPIDS,children in care - crazy golf activity no receipt,"BANDS, ORCHESTRAS, & MISC ENTRTNRS-NOT ELSWHR CLAS",CHILDREN & YOUNG PEOPLE
REDACTED,24.50,24/08/2020,CONGO RAPIDS,children in care - crazy golf activity 2nd game,"BANDS, ORCHESTRAS, & MISC ENTRTNRS-NOT ELSWHR CLAS",CHILDREN & YOUNG PEOPLE
REDACTED,24.53,24/08/2020,AMZNMktplace,Prayer mat and Quran XXXXX 2031379 020SL213,MISCELLANEOUS AND SPECIALTY RETAIL STORES,CHILDREN & YOUNG PEOPLE
REDACTED,85.53,24/08/2020,ALDI 65 776,looked after children provisions,"GROCERY STORES, SUPERMARKETS",CHILDREN & YOUNG PEOPLE
REDACTED,26.81,24/08/2020,AMZNMktplace,child in care - bike tyres(20%VAT) and book (0%VAT,MISCELLANEOUS AND SPECIALTY RETAIL STORES,CHILDREN & YOUNG PEOPLE
REDACTED,86.50,24/08/2020,ASDA  STORES 4218,Smartphone for Video Contact,"GROCERY STORES, SUPERMARKETS",CHILDREN & YOUNG PEOPLE
REDACTED,93.73,24/08/2020,LLOYDS PHARMACY,Handheld Thermometers for out of county training,"DRUG STORES, PHARMACIES",FIRE & PUBLIC SAFETY
REDACTED,657.00,24/08/2020,PONTINS CALL CENTRE,ACC. XXXXX SW XXXXX,"LODGING-HOTELS,MOTELS,RESORTS-NOT CLASSIFIED",CHILDREN & YOUNG PEOPLE
REDACTED,119.98,25/08/2020,DNH GODADDY.COM EUROPE,SR-148936 SSL Cert XXXXX,COMPUTER NETWORK/INFORMATION SERVICES,CORPORATE SERVICES
REDACTED,132.50,25/08/2020,Amazon.co.uk MS3XI1MR5,Video ring doorbell LAS ID 1104635 XXXXX,DIRECT MARKETING-OTHER DIRECT MARKETERS/NOT ELSEW.,ADULT & COMMUNITY SERVICES
REDACTED,116.95,25/08/2020,WWW.192.COM,300 search credits for use by the recruitment team,ADVERTISING SERVICES,CHILDREN & YOUNG PEOPLE
REDACTED,92.90,25/08/2020,W D COE LTD,Children's home expense - School uniform XXXXX,MEN'S AND WOMEN'S CLOTHING STORES,CHILDREN & YOUNG PEOPLE
REDACTED,14.40,25/08/2020,ASDA SUPERSTORE,Children's Home Expense - School uniform XXXXX,"GROCERY STORES, SUPERMARKETS",CHILDREN & YOUNG PEOPLE
REDACTED,105.04,25/08/2020,TESCO STORE 2748,Children's home expense - Provisions,"GROCERY STORES, SUPERMARKETS",CHILDREN & YOUNG PEOPLE
REDACTED,24.58,25/08/2020,SCREENS EMBROIDERY AND,Child in care - XXXXX school uniform,FAMILY CLOTHING STORES,CHILDREN & YOUNG PEOPLE
REDACTED,109.99,25/08/2020,ARGOS LTD,child in care - TV missing receipt,DISCOUNT STORES,CHILDREN & YOUNG PEOPLE
REDACTED,25.00,25/08/2020,GEN REGISTER OFFICE,Birth certificates,GOVERNMENT SERVICES-NOT ELSEWHERE CLASSIFIED,CHILDREN & YOUNG PEOPLE
REDACTED,65.65,25/08/2020,WWW.GOOUTDOORS.CO.UK,296388/985S equipment for young person,SPORTING GOODS STORES,CHILDREN & YOUNG PEOPLE
REDACTED,34.00,25/08/2020,DVLA DRIVER ONLINE,304506/986S Driving licence for young person,GOVERNMENT SERVICES-NOT ELSEWHERE CLASSIFIED,CHILDREN & YOUNG PEOPLE
REDACTED,-15.00,25/08/2020,WWW.GOOUTDOORS.CO.UK,296388/985S equipment for young person,SPORTING GOODS STORES,CHILDREN & YOUNG PEOPLE
REDACTED,-16.49,25/08/2020,AMZ Amazon.co.uk,F&E Credit,MISCELLANEOUS AND SPECIALTY RETAIL STORES,ADULT & COMMUNITY SERVICES
REDACTED,492.48,25/08/2020,Hotel on Booking.com,ACC. XXXXX SW XXXXX,"LODGING-HOTELS,MOTELS,RESORTS-NOT CLASSIFIED",CHILDREN & YOUNG PEOPLE
REDACTED,100.00,26/08/2020,ONE4ALL,"265N, GCSE Gift Cards",DEPARTMENT STORES,CHILDREN & YOUNG PEOPLE
REDACTED,115.00,26/08/2020,GEOGRAPHICAL ASSOC,Subject assoc membership for geography trainees,"ORGANISATIONS, CHARITABLE AND SOCIAL SERVICES",CHILDREN & YOUNG PEOPLE
REDACTED,40.65,26/08/2020,PARCELFORCE WL,517014 485W Bike,"COURIER SVC-AIR & GROUND, FREIGHT FORWARDERS",CHILDREN & YOUNG PEOPLE
REDACTED,23.40,26/08/2020,ASDA SUPERSTORE,Children's Home Expense - Sch uniform & stationery,"GROCERY STORES, SUPERMARKETS",CHILDREN & YOUNG PEOPLE
REDACTED,9.30,26/08/2020,POST OFFICE COUNTER,Postage  returns to Hunters,POSTAL SERVICES-GOVERNMENT ONLY,FIRE & PUBLIC SAFETY
REDACTED,166.00,26/08/2020,WWW.JOHNLEWIS.COM,Scales for district support fitness sessions,DEPARTMENT STORES,FIRE & PUBLIC SAFETY
REDACTED,108.00,26/08/2020,FINNEYS,Meals for SRT Course,BAKERIES,FIRE & PUBLIC SAFETY
REDACTED,236.60,26/08/2020,POLAR ELECTRO,Polar soft straps for XXXXX,SPORTING GOODS STORES,FIRE & PUBLIC SAFETY
REDACTED,20.00,26/08/2020,ZSEA AFRICA ALIVE,contact trip to animal park,"AMUSEMENT PARKS,CARNIVALS,CIRCUS,FORTUNE TELLERS",CHILDREN & YOUNG PEOPLE
REDACTED,42.49,26/08/2020,AMZNMKTPLACE AMAZON.CO,Mobile phone ID:541051 Auth XXXXX,MISCELLANEOUS AND SPECIALTY RETAIL STORES,CHILDREN & YOUNG PEOPLE
REDACTED,6.66,26/08/2020,Amazon Prime YD9Q273O5,looked after children amazon subs,DIRECT MARKETING - CONTINUITY/SUBSCRIPTION MERCHANTS,CHILDREN & YOUNG PEOPLE
REDACTED,105.77,26/08/2020,ASDA  STORES 4218,looked after children provisions,"GROCERY STORES, SUPERMARKETS",CHILDREN & YOUNG PEOPLE
REDACTED,71.25,26/08/2020,GRAVITY FITNESS LTD,Children in care - activity for all YP,RECREATION SERVICES (NOT ELSEWHERE CLASSIFIED),CHILDREN & YOUNG PEOPLE
REDACTED,213.33,26/08/2020,WWW.GOAPE.CO.UK,Children in care activity - all children,"AMUSEMENT PARKS,CARNIVALS,CIRCUS,FORTUNE TELLERS",CHILDREN & YOUNG PEOPLE
REDACTED,56.81,26/08/2020,WWW.GOAPE.CO.UK,Go Ape Activity for XXXXX,"AMUSEMENT PARKS,CARNIVALS,CIRCUS,FORTUNE TELLERS",CHILDREN & YOUNG PEOPLE
REDACTED,84.95,27/08/2020,Dunelm,"266N, ID: 525323 coffee table","EQUIP, FURNITURE, HOME FURNSHNGS STRS (EXCPT APPL)",CHILDREN & YOUNG PEOPLE
REDACTED,328.57,27/08/2020,B&Q DIRECT,"269N, ID: 525323, flooring",HOME SUPPLY WAREHOUSE STORES,CHILDREN & YOUNG PEOPLE
REDACTED,-19.20,27/08/2020,B & Q 1319,"269N, ID: 525323, partial refund on flooring",HOME SUPPLY WAREHOUSE STORES,CHILDREN & YOUNG PEOPLE
REDACTED,11.00,27/08/2020,MY.NORFOLK.GOV.UK,URGENT BIRTH CERTIFICATE RE 60765,GOVERNMENT SERVICES-NOT ELSEWHERE CLASSIFIED,CORPORATE SERVICES
REDACTED,25.00,27/08/2020,ORCHARD HOUSE SURGERY,199960 554W Dr's Letter,"HEALTH PRACTITIONERS, MEDICAL SRVCS-NOT ELSEWHERE",CHILDREN & YOUNG PEOPLE
REDACTED,109.99,27/08/2020,AMZNMktplace,Tablet for Customer,MISCELLANEOUS AND SPECIALTY RETAIL STORES,ADULT & COMMUNITY SERVICES
REDACTED,10.17,27/08/2020,COSTA COFFEE 43040855,child in care - activity,FAST FOOD RESTAURANTS,CHILDREN & YOUNG PEOPLE
REDACTED,21.58,27/08/2020,HOME BARGAINS,child in care - Toiletries,HARDWARE STORES,CHILDREN & YOUNG PEOPLE
REDACTED,5.92,27/08/2020,POUNDLAND LTD 1737,child in care - toiletries,DISCOUNT STORES,CHILDREN & YOUNG PEOPLE
REDACTED,106.97,27/08/2020,ARGOS LTD,"Customer ID: 1256289
Digital Care 3 items
Argos",DISCOUNT STORES,ADULT & COMMUNITY SERVICES
REDACTED,390.92,27/08/2020,TWEET BINDER,Advertising,COMPUTER NETWORK/INFORMATION SERVICES,CORPORATE SERVICES
REDACTED,250.60,27/08/2020,AMZNMktplace,mobile phones for contacts C19,MISCELLANEOUS AND SPECIALTY RETAIL STORES,CHILDREN & YOUNG PEOPLE
REDACTED,178.39,27/08/2020,SP   COES_STORE,School Uniform 086LH113/1,COMPUTER SOFTWARE STORES,CHILDREN & YOUNG PEOPLE
REDACTED,67.85,27/08/2020,WILKO RETAIL LIMITED,looked after childrenx5 various school equipment,SUNDRY GENERAL MERCHANDISE,CHILDREN & YOUNG PEOPLE
REDACTED,2.00,27/08/2020,CAMBRIDGE CITY COUNCIL,looked after children car parking charge,AUTOMOBILE PARKING LOTS AND GARAGES,CHILDREN & YOUNG PEOPLE
REDACTED,3.00,27/08/2020,WILKO RETAIL LIMITED,looked after children school equipment,SUNDRY GENERAL MERCHANDISE,CHILDREN & YOUNG PEOPLE
REDACTED,-17.69,27/08/2020,AMZ Amazon.co.uk,F&E Credit,MISCELLANEOUS AND SPECIALTY RETAIL STORES,ADULT & COMMUNITY SERVICES
REDACTED,-17.69,27/08/2020,AMZ Amazon.co.uk,F&E Credit,MISCELLANEOUS AND SPECIALTY RETAIL STORES,ADULT & COMMUNITY SERVICES
REDACTED,75.25,28/08/2020,Product Super Limited,450927 514W.Clothing,MEN'S AND BOY'S CLOTHING AND ACCESSORIES STORES,CHILDREN & YOUNG PEOPLE
REDACTED,14.60,28/08/2020,ASDA SUPERSTORE,Children's Home Expense - School stationery XXXXX,"GROCERY STORES, SUPERMARKETS",CHILDREN & YOUNG PEOPLE
REDACTED,36.15,28/08/2020,AMZNMktplace,Police style notebooks NOT available on P2P,MISCELLANEOUS AND SPECIALTY RETAIL STORES,FIRE & PUBLIC SAFETY
REDACTED,7.69,28/08/2020,AMZNMktplace,Pride progress flags for project display.,MISCELLANEOUS AND SPECIALTY RETAIL STORES,"GROWTH, HIGHWAYS & INFRASTRUCTURE"
REDACTED,140.84,28/08/2020,ALDI 776 147,child in care - provisions,"GROCERY STORES, SUPERMARKETS",CHILDREN & YOUNG PEOPLE
REDACTED,82.50,28/08/2020,BIRDS OF DEREHAM,Child in care - XXXXX school uniform,ACCESSORY AND APPAREL SHOPS - MISCELLANEOUS,CHILDREN & YOUNG PEOPLE
REDACTED,297.65,28/08/2020,DOLPHINFITNESS.CO,Polar Heart Rate sensors for XXXXX,SPORTING GOODS STORES,FIRE & PUBLIC SAFETY
REDACTED,13.00,28/08/2020,Pleasurewoord Hills in,contact trip to theme park,TOURIST ATTRACTIONS AND EXHIBITS,CHILDREN & YOUNG PEOPLE
REDACTED,20.00,28/08/2020,ZSEA AFRICA ALIVE,Contact trip to animal park,"AMUSEMENT PARKS,CARNIVALS,CIRCUS,FORTUNE TELLERS",CHILDREN & YOUNG PEOPLE
REDACTED,14.00,28/08/2020,GEN REGISTER OFFICE,Birth certificates,GOVERNMENT SERVICES-NOT ELSEWHERE CLASSIFIED,CHILDREN & YOUNG PEOPLE
REDACTED,-49.99,28/08/2020,AMZ BVmobiles,Mobile Phone. ID:541051 Refund,MISCELLANEOUS AND SPECIALTY RETAIL STORES,CHILDREN & YOUNG PEOPLE
REDACTED,70.00,28/08/2020,ZSEA BANHAM ZOO,Banham Zoo Activity for YP XXXXX 997945,"AMUSEMENT PARKS,CARNIVALS,CIRCUS,FORTUNE TELLERS",CHILDREN & YOUNG PEOPLE
REDACTED,49.00,28/08/2020,MADISON HOUSE,Staff overnight accommodation,"LODGING-HOTELS,MOTELS,RESORTS-NOT CLASSIFIED",CHILDREN & YOUNG PEOPLE
REDACTED,-166.66,28/08/2020,ARGOS LTD,Refund - await name,DISCOUNT STORES,CHILDREN & YOUNG PEOPLE
REDACTED,7.00,28/08/2020,CENTRAL CO-OP RETA,Energiser Batteries for Auto Hand Sanitiser,DEPARTMENT STORES,CHILDREN & YOUNG PEOPLE
REDACTED,739.00,28/08/2020,Hotel on Booking.com,ACC. XXXXX SW XXXXX,"LODGING-HOTELS,MOTELS,RESORTS-NOT CLASSIFIED",CHILDREN & YOUNG PEOPLE
REDACTED,98.91,28/08/2020,TRAVELODGE GB0000,ACC. XXXXX SW XXXXX,TRAVELODGE,CHILDREN & YOUNG PEOPLE
REDACTED,719.00,28/08/2020,PARKDEAN RESORTS H,ACC. XXXXX SW XXXXX,CAMPGROUNDS AND TRAILER PARKS,CHILDREN & YOUNG PEOPLE
REDACTED,82.96,31/08/2020,"WWW,EASTSUFFOLK.GOV.UK","270N, ID: 418302, rent arrears",GOVERNMENT SERVICES-NOT ELSEWHERE CLASSIFIED,CHILDREN & YOUNG PEOPLE
REDACTED,-54.00,31/08/2020,Pleasurewoord Hills in,Children's Home Expense - Activity,TOURIST ATTRACTIONS AND EXHIBITS,CHILDREN & YOUNG PEOPLE
REDACTED,14.70,31/08/2020,CINEWORLD,Children's Home Expense - CIC activity,MOTION PICTURE THEATRES,CHILDREN & YOUNG PEOPLE
REDACTED,35.48,31/08/2020,TESCO STORE 3240,Children's Home Expense - Provisions,"GROCERY STORES, SUPERMARKETS",CHILDREN & YOUNG PEOPLE
REDACTED,166.67,31/08/2020,IKEA LTD SHOP ONLINE,Fixed interpretation stools and exhibition storage,"EQUIP, FURNITURE, HOME FURNSHNGS STRS (EXCPT APPL)","GROWTH, HIGHWAYS & INFRASTRUCTURE"
REDACTED,40.12,31/08/2020,SP   VIKING TAPES,Double sided tape for exhibition mounting,SUNDRY GENERAL MERCHANDISE,"GROWTH, HIGHWAYS & INFRASTRUCTURE"
REDACTED,6.66,31/08/2020,Amazon Prime IZ6VE2W45,child in care - activity subscription,DIRECT MARKETING - CONTINUITY/SUBSCRIPTION MERCHANTS,CHILDREN & YOUNG PEOPLE
REDACTED,2.79,31/08/2020,COSTA COFFEE 43040855,child in care - Keyworker time XXXXX,FAST FOOD RESTAURANTS,CHILDREN & YOUNG PEOPLE
REDACTED,50.00,31/08/2020,B&M 420 - HS LOWESTOFT,child in care - furnishings for bedroom XXXXX,SUNDRY GENERAL MERCHANDISE,CHILDREN & YOUNG PEOPLE
REDACTED,20.00,31/08/2020,PEACOCK STORES LTD,Child in care - XXXXX school clothing,VARIETY STORES,CHILDREN & YOUNG PEOPLE
REDACTED,20.42,31/08/2020,ASDA STORES LTD 5729,child in care - school clothing,"GROCERY STORES, SUPERMARKETS",CHILDREN & YOUNG PEOPLE
REDACTED,36.04,31/08/2020,SPORTSDIRECT 263,child in care - School clothes XXXXX,SPORTING GOODS STORES,CHILDREN & YOUNG PEOPLE
REDACTED,400.00,31/08/2020,FACEBK QSR8FVENF2,Advertising,ADVERTISING SERVICES,CORPORATE SERVICES
REDACTED,115.20,31/08/2020,SPARKOL,Video production tool,COMPUTER SOFTWARE STORES,CORPORATE SERVICES
REDACTED,46.90,31/08/2020,POST OFFICE COUNTER,"Stamps 50 x 2nd, 12x 1st, 6 x 2nd large. Covid 19",POSTAL SERVICES-GOVERNMENT ONLY,CHILDREN & YOUNG PEOPLE
REDACTED,116.66,31/08/2020,ARGOS LTD,Children in care - TV,DISCOUNT STORES,CHILDREN & YOUNG PEOPLE
REDACTED,11.66,31/08/2020,ARGOS LTD,Child in care - curtain rail,DISCOUNT STORES,CHILDREN & YOUNG PEOPLE
REDACTED,8.60,31/08/2020,SCREENS EMBROIDERY AND,children in care - uniform item,FAMILY CLOTHING STORES,CHILDREN & YOUNG PEOPLE
REDACTED,19.56,31/08/2020,AMZNMktplace,Brush Pens(£15.82+PP£3.74+vat£3.92)Kinship Carer XXXXX,MISCELLANEOUS AND SPECIALTY RETAIL STORES,CHILDREN & YOUNG PEOPLE
REDACTED,12.24,31/08/2020,AMZNMktplace,Chalk £7.75+pp£4.49 for Kinship Carer XXXXX,MISCELLANEOUS AND SPECIALTY RETAIL STORES,CHILDREN & YOUNG PEOPLE
REDACTED,281.65,31/08/2020,ARGOS LTD,F&ECW200220-01,DISCOUNT STORES,ADULT & COMMUNITY SERVICES
REDACTED,581.95,31/08/2020,ARGOS LTD,F&ECW200220-01,DISCOUNT STORES,ADULT & COMMUNITY SERVICES
REDACTED,94.84,31/08/2020,AMZNMktplace,College Equipment for Young Person,MISCELLANEOUS AND SPECIALTY RETAIL STORES,CHILDREN & YOUNG PEOPLE
REDACTED,8.00,31/08/2020,B&M 055 - STOWMARKET,Spare Batteries 2 x Empty Bottles for Disinfectant,SUNDRY GENERAL MERCHANDISE,CHILDREN & YOUNG PEOPLE
REDACTED,61.15,31/08/2020,AMZNMktplace,Children in care - Face masks & ladyshaves x 3,MISCELLANEOUS AND SPECIALTY RETAIL STORES,CHILDREN & YOUNG PEOPLE
REDACTED,26.74,31/08/2020,AMZNMKTPLACE AMAZON.CO,XXXXX 3008677 Memory loss clock and calendar,MISCELLANEOUS AND SPECIALTY RETAIL STORES,ADULT & COMMUNITY SERVICES
REDACTED,19.97,01/09/2020,FACEBK  NXDMHVSBW2,Facebook food savvy ads,ADVERTISING SERVICES,"GROWTH, HIGHWAYS & INFRASTRUCTURE"
REDACTED,86.96,01/09/2020,MOLES COUNTRY STORES,looked after children clothing,AGRICULTURAL COOPERATIVES,CHILDREN & YOUNG PEOPLE
REDACTED,5.80,01/09/2020,TESCO STORES 6179,looked after children food,"GROCERY STORES, SUPERMARKETS",CHILDREN & YOUNG PEOPLE
REDACTED,9.00,01/09/2020,THE WORKS,looked after children crafting equipment,DISCOUNT STORES,CHILDREN & YOUNG PEOPLE
REDACTED,9.99,01/09/2020,SPORTSDIRECT 255,looked after children clothes,SPORTING GOODS STORES,CHILDREN & YOUNG PEOPLE
REDACTED,8.79,01/09/2020,MCDONALDS,looked after children 1 to 1,FAST FOOD RESTAURANTS,CHILDREN & YOUNG PEOPLE
REDACTED,21.15,01/09/2020,AMZNMKTPLACE AMAZON.CO,1153401/1011S birthday allowance for young person,MISCELLANEOUS AND SPECIALTY RETAIL STORES,CHILDREN & YOUNG PEOPLE
REDACTED,23.94,01/09/2020,ARGOS LTD,Keyboard & Mouse,DISCOUNT STORES,CHILDREN & YOUNG PEOPLE
REDACTED,22.00,02/09/2020,MY.NORFOLK.GOV.UK,URGENT BIRTH CERTIFICATE RE 57204,GOVERNMENT SERVICES-NOT ELSEWHERE CLASSIFIED,CORPORATE SERVICES
REDACTED,26.92,02/09/2020,POST OFFICE COUNTER,First class stamps (large),POSTAL SERVICES-GOVERNMENT ONLY,"GROWTH, HIGHWAYS & INFRASTRUCTURE"
REDACTED,16.97,02/09/2020,B&M 420 - HS LOWESTOFT,child in care - provisions,SUNDRY GENERAL MERCHANDISE,CHILDREN & YOUNG PEOPLE
REDACTED,82.49,02/09/2020,PRETTYLITTLETHING.COM,child in care - clothing,MEN'S AND WOMEN'S CLOTHING STORES,CHILDREN & YOUNG PEOPLE
REDACTED,10.00,02/09/2020,WM MORRISONS STORE,child in care - provisions,"GROCERY STORES, SUPERMARKETS",CHILDREN & YOUNG PEOPLE
REDACTED,165.60,02/09/2020,FITNESS WAREHOUSE LTD,Gymgear black rubber tiles for XXXXX,SPORTING GOODS STORES,FIRE & PUBLIC SAFETY
REDACTED,159.40,02/09/2020,PRESS GANG,Laundry for Wattisham,"CLEANING, GARMENT, AND LAUNDRY SERVICES",FIRE & PUBLIC SAFETY
REDACTED,334.80,02/09/2020,KINGFISHER DIRECT LTD,Step Blocks for Aptitude Tests,"COMMERCIAL EQUIPMENT, NOT ELSEWHERE CLASSIFIED",FIRE & PUBLIC SAFETY
REDACTED,25.00,02/09/2020,GEN REGISTER OFFICE,Birth certificates,GOVERNMENT SERVICES-NOT ELSEWHERE CLASSIFIED,CHILDREN & YOUNG PEOPLE
REDACTED,19.00,02/09/2020,Cabs Smart,361134/1030S Taxi for young person,LIMOUSINES AND TAXICABS,CHILDREN & YOUNG PEOPLE
REDACTED,16.45,02/09/2020,Amazon.co.uk 6I0I24KY5,Therapeutic Parenting Book for Kinship Carer XXXXX,DIRECT MARKETING-OTHER DIRECT MARKETERS/NOT ELSEW.,CHILDREN & YOUNG PEOPLE
REDACTED,32.50,02/09/2020,JOHN NIX FARM MANAGEME,John Nix for Farm Management - Payment rates,"BOOKS, PERIODICALS AND NEWSPAPERS","GROWTH, HIGHWAYS & INFRASTRUCTURE"
REDACTED,75.00,03/09/2020,2MAA019539159 TD E-PMT,1267992 521W. Passport,GOVERNMENT SERVICES-NOT ELSEWHERE CLASSIFIED,CHILDREN & YOUNG PEOPLE
REDACTED,43.15,03/09/2020,AMZNMKTPLACE AMAZON.CO,395263 499W. SUHA,MISCELLANEOUS AND SPECIALTY RETAIL STORES,CHILDREN & YOUNG PEOPLE
REDACTED,44.10,03/09/2020,MID SUFFOLK DISTRICT C,ELMSWELL BROWN BIN YEARLY COST - XXXXX,GOVERNMENT SERVICES-NOT ELSEWHERE CLASSIFIED,FIRE & PUBLIC SAFETY
REDACTED,240.00,03/09/2020,IPSWICH BC,SERVICE CAR PARKING EXEMPTIONS - XXXXX,OTHER SERVICES (NOT ELSEWHERE CLASSIFIED),FIRE & PUBLIC SAFETY
REDACTED,105.00,03/09/2020,WWW.MONEYCLAIM.GOV,Court issue fee re County Court Money Claim 58689,GOVERNMENT SERVICES-NOT ELSEWHERE CLASSIFIED,CORPORATE SERVICES
REDACTED,140.00,03/09/2020,EB  PAEDIATRIC CONTINE,4 delegates for training day,BUSINESS SERVICES-NOT ELSEWHERE CLASSIFIED,CHILDREN & YOUNG PEOPLE
REDACTED,141.00,03/09/2020,WWW.PLANNINGPORTAL.CO.,Planning App fee for East Ipswich WTS Lytham Rd,BUSINESS SERVICES-NOT ELSEWHERE CLASSIFIED,"GROWTH, HIGHWAYS & INFRASTRUCTURE"
REDACTED,69.60,03/09/2020,PIZZA HUT 479,child in care - activity,"EATING PLACES, RESTAURANTS",CHILDREN & YOUNG PEOPLE
REDACTED,28.50,03/09/2020,PINEAPPLE EVENTS SL LT,child in care - activity,"CANDY, NUT, CONFECTIONERY STORES",CHILDREN & YOUNG PEOPLE
REDACTED,24.12,03/09/2020,MCDONALDS,child in care - activity,FAST FOOD RESTAURANTS,CHILDREN & YOUNG PEOPLE
REDACTED,11.50,03/09/2020,ODEON/BOOKIT,child in care - cinema activity,MOTION PICTURE THEATRES,CHILDREN & YOUNG PEOPLE
REDACTED,51.99,03/09/2020,JD SPORTS INTERNET,child in care - XXXXX casual clothes,SPORTING GOODS STORES,CHILDREN & YOUNG PEOPLE
REDACTED,2221.89,03/09/2020,AIRBNB   HMBNPJPPNJ,XXXXX emergency accm,"LODGING-HOTELS,MOTELS,RESORTS-NOT CLASSIFIED",CHILDREN & YOUNG PEOPLE
REDACTED,66.94,03/09/2020,AIRBNB   HMQ8Q4DX3Z,Emergency accm XXXXX,"LODGING-HOTELS,MOTELS,RESORTS-NOT CLASSIFIED",CHILDREN & YOUNG PEOPLE
REDACTED,17.95,03/09/2020,PAYPAL  GILL MOON,Cards,"COMMERCIAL ART, GRAPHICS, PHOTOGRAPHY","GROWTH, HIGHWAYS & INFRASTRUCTURE"
REDACTED,224.90,03/09/2020,5044 BOOTLE LDC,continued hire of generator for WTC,"EQUIPMENT RENTAL & LEASING SVS, FURNTURE/TOOL RENTAL",FIRE & PUBLIC SAFETY
REDACTED,172.49,03/09/2020,ASDA,Rope Trust funds to buy school uniforms via ASDA v,"GROCERY STORES, SUPERMARKETS",CHILDREN & YOUNG PEOPLE
REDACTED,10.00,03/09/2020,MATALAN,looked after children clothes,MEN'S AND WOMEN'S CLOTHING STORES,CHILDREN & YOUNG PEOPLE
REDACTED,75.50,03/09/2020,HM PASSPORT OFFICE,319231/964S passport for young person,GOVERNMENT SERVICES-NOT ELSEWHERE CLASSIFIED,CHILDREN & YOUNG PEOPLE
REDACTED,232.50,03/09/2020,AO RETAIL LIMITED,2007687/1033S setting up home item for client,HOUSEHOLD APPLIANCE STORES,CHILDREN & YOUNG PEOPLE
REDACTED,90.17,03/09/2020,OAKTREE PRODUCTS,COVID19 PPE Face mask,DENTAL/LAB/MED/OPHTHALMIC HOSP EQUIP & SUPPLIES,CORPORATE SERVICES
REDACTED,7.99,04/09/2020,Amazon Prime MT3RR6DD5,Prime subscription.,DIRECT MARKETING - CONTINUITY/SUBSCRIPTION MERCHANTS,CHILDREN & YOUNG PEOPLE
REDACTED,4.50,04/09/2020,COSTA COFFEE 43036580,child in care - Keyworker time XXXXX,FAST FOOD RESTAURANTS,CHILDREN & YOUNG PEOPLE
REDACTED,29.50,04/09/2020,SCREENS EMBROIDERY AND,child in care - School blazer XXXXX,FAMILY CLOTHING STORES,CHILDREN & YOUNG PEOPLE
REDACTED,25.02,04/09/2020,B&M 420 - HS LOWESTOFT,child in care - provisions,SUNDRY GENERAL MERCHANDISE,CHILDREN & YOUNG PEOPLE
REDACTED,12.49,04/09/2020,TESCO STORES 5123,Child in care - phone XXXXX,"GROCERY STORES, SUPERMARKETS",CHILDREN & YOUNG PEOPLE
REDACTED,6.80,04/09/2020,ALDI 776 147,child in care - provisions,"GROCERY STORES, SUPERMARKETS",CHILDREN & YOUNG PEOPLE
REDACTED,86.44,04/09/2020,ALDI 776 147,child in care - provisions,"GROCERY STORES, SUPERMARKETS",CHILDREN & YOUNG PEOPLE
REDACTED,48.83,04/09/2020,TESCO STORES 5123,Child in care - school equipment,"GROCERY STORES, SUPERMARKETS",CHILDREN & YOUNG PEOPLE
REDACTED,6.99,04/09/2020,eBay O 27-05671-44041,Fake Blood for Trauma courses,DEPARTMENT STORES,FIRE & PUBLIC SAFETY
REDACTED,123.24,04/09/2020,ASDA  STORES 4218,looked after children food,"GROCERY STORES, SUPERMARKETS",CHILDREN & YOUNG PEOPLE
REDACTED,6.99,04/09/2020,Prime Video 7917U2N45,looked after children video,RECORD SHOPS,CHILDREN & YOUNG PEOPLE
REDACTED,23.98,04/09/2020,AMZNMKTPLACE AMAZON.CO,Quran 10.99 & Prayer Mat 12.99 re UASC XXXXX 020SL222,MISCELLANEOUS AND SPECIALTY RETAIL STORES,CHILDREN & YOUNG PEOPLE
REDACTED,45.64,07/09/2020,MAILCHIMP    MONTHLY,Au monthly mailchimp,DIRECT MARKETING - CONTINUITY/SUBSCRIPTION MERCHANTS,CHILDREN & YOUNG PEOPLE
REDACTED,320.00,07/09/2020,CURRYS ONLINE,"Laptop for customer, XXXXX 356104",ELECTRONIC SALES,ADULT & COMMUNITY SERVICES
REDACTED,84.27,07/09/2020,JD SPORTS 399,child in care - uniform XXXXX,SPORTING GOODS STORES,CHILDREN & YOUNG PEOPLE
REDACTED,9.00,07/09/2020,MCDONALDS,child in care - activity,FAST FOOD RESTAURANTS,CHILDREN & YOUNG PEOPLE
REDACTED,50.00,07/09/2020,SPORTSDIRECT 298,Child in care - XXXXX school trainers,SPORTING GOODS STORES,CHILDREN & YOUNG PEOPLE
REDACTED,19.17,07/09/2020,ASDA STORES LTD 5729,Child in care - XXXXX school uniform,"GROCERY STORES, SUPERMARKETS",CHILDREN & YOUNG PEOPLE
REDACTED,12.49,07/09/2020,SPORTSDIRECT 298,Child in Care - XXXXX School bag,SPORTING GOODS STORES,CHILDREN & YOUNG PEOPLE
REDACTED,333.39,07/09/2020,FACEBK QY3YRVJNF2,Advertising,ADVERTISING SERVICES,CORPORATE SERVICES
REDACTED,17.98,07/09/2020,AMZNMKTPLACE AMAZON.CO,Dots for XXXXX for training - social distancing,MISCELLANEOUS AND SPECIALTY RETAIL STORES,"GROWTH, HIGHWAYS & INFRASTRUCTURE"
REDACTED,41.64,07/09/2020,AMZNMKTPLACE AMAZON.CO,Visors for training,MISCELLANEOUS AND SPECIALTY RETAIL STORES,"GROWTH, HIGHWAYS & INFRASTRUCTURE"
REDACTED,23.32,07/09/2020,AMZNMktplace,Long Ethernet Cable for XXXXX Homeworking (Covid 19),MISCELLANEOUS AND SPECIALTY RETAIL STORES,CHILDREN & YOUNG PEOPLE
REDACTED,41.66,07/09/2020,AMZNMktplace,Desk for XXXXX for homeworking.,MISCELLANEOUS AND SPECIALTY RETAIL STORES,CHILDREN & YOUNG PEOPLE
REDACTED,134.99,07/09/2020,Amazon.co.uk WD7J94PN5,Rope charity funding used to buy security cameras,DIRECT MARKETING-OTHER DIRECT MARKETERS/NOT ELSEW.,CHILDREN & YOUNG PEOPLE
REDACTED,23.24,07/09/2020,KASPAS,looked after children activity,"EATING PLACES, RESTAURANTS",CHILDREN & YOUNG PEOPLE
REDACTED,12.08,07/09/2020,NEW LOOK 1791,looked after children clothes,WOMEN'S READY-TO-WEAR STORES,CHILDREN & YOUNG PEOPLE
REDACTED,19.49,07/09/2020,NEW LOOK 1791,looked after children clothes,WOMEN'S READY-TO-WEAR STORES,CHILDREN & YOUNG PEOPLE
REDACTED,27.98,07/09/2020,H & M,looked after children clothes,MEN'S AND WOMEN'S CLOTHING STORES,CHILDREN & YOUNG PEOPLE
REDACTED,36.04,07/09/2020,SPORTSDIRECT 255,looked after children clothes,SPORTING GOODS STORES,CHILDREN & YOUNG PEOPLE
REDACTED,42.50,07/09/2020,ASDA  STORES 4218,looked after children food,"GROCERY STORES, SUPERMARKETS",CHILDREN & YOUNG PEOPLE
REDACTED,8.20,07/09/2020,STARBUCKS COFFEE,looked after children 1 to 1,FAST FOOD RESTAURANTS,CHILDREN & YOUNG PEOPLE
REDACTED,42.52,07/09/2020,ASDA  STORES 4218,looked after children food,"GROCERY STORES, SUPERMARKETS",CHILDREN & YOUNG PEOPLE
REDACTED,17.00,07/09/2020,MARKS&SPENCER PLC SACA,looked after children clothes,"GROCERY STORES, SUPERMARKETS",CHILDREN & YOUNG PEOPLE
REDACTED,4.00,07/09/2020,HALFORDS 0415,looked after children equipment,BICYCLE SHOPS - SALES AND SERVICE,CHILDREN & YOUNG PEOPLE
REDACTED,2.92,07/09/2020,MCDONALDS,looked after children 1 to 1,FAST FOOD RESTAURANTS,CHILDREN & YOUNG PEOPLE
REDACTED,25.02,07/09/2020,Amazon.co.uk TZ68Q5US5,Hand Sanitiser,DIRECT MARKETING-OTHER DIRECT MARKETERS/NOT ELSEW.,"GROWTH, HIGHWAYS & INFRASTRUCTURE"
REDACTED,4.05,07/09/2020,MOONPIG,Leaving Card Order for XXXXX,SUNDRY GENERAL MERCHANDISE,CHILDREN & YOUNG PEOPLE
REDACTED,28.47,07/09/2020,AMZNMktplace,Skateboard Kit for XXXXX (Order no 1),MISCELLANEOUS AND SPECIALTY RETAIL STORES,CHILDREN & YOUNG PEOPLE
REDACTED,32.81,07/09/2020,AMZNMktplace,Skateboard kit for XXXXX (Order no 2),MISCELLANEOUS AND SPECIALTY RETAIL STORES,CHILDREN & YOUNG PEOPLE
REDACTED,63.94,07/09/2020,ARGOS LTD,Joie Car Seat for Kinship Carer XXXXX (inc £3.95 del),DISCOUNT STORES,CHILDREN & YOUNG PEOPLE
REDACTED,-7.50,07/09/2020,GEN REGISTER OFFICE,Death certificates,GOVERNMENT SERVICES-NOT ELSEWHERE CLASSIFIED,CORPORATE SERVICES
REDACTED,31.68,07/09/2020,QD STORES,Self Seal bags for PPE,DISCOUNT STORES,CHILDREN & YOUNG PEOPLE
REDACTED,10.32,07/09/2020,POUNDSTRETCHER 792,Self Seal Bags for PPE,VARIETY STORES,CHILDREN & YOUNG PEOPLE
REDACTED,.58,07/09/2020,ASDA SUPERSTORE,Vinegar for descaling kettle,"GROCERY STORES, SUPERMARKETS",CHILDREN & YOUNG PEOPLE
REDACTED,79.95,08/09/2020,HM.COM,395263 492W Clothing.,MEN'S AND WOMEN'S CLOTHING STORES,CHILDREN & YOUNG PEOPLE
REDACTED,99.99,08/09/2020,JD SPORTS INTERNET,346690 63W Clothing,SPORTING GOODS STORES,CHILDREN & YOUNG PEOPLE
REDACTED,3.10,08/09/2020,POST OFFICE COUNTER,Postage Uniform returns to Hunters,POSTAL SERVICES-GOVERNMENT ONLY,FIRE & PUBLIC SAFETY
REDACTED,17.94,08/09/2020,WWW.COWLINGANDWILCOX.C,Box for display - order refunded.,"ARTIST SUPPLY STORES, CRAFT SHOPS","GROWTH, HIGHWAYS & INFRASTRUCTURE"
REDACTED,43.44,08/09/2020,BEST4FRAMES,3 frames for reveal wall display,SUNDRY HOUSE FURNISHING SPECIALTY SHOPS,"GROWTH, HIGHWAYS & INFRASTRUCTURE"
REDACTED,20.00,08/09/2020,Amazon.co.uk TD7S10RV5,Child in Care - Clothing,DIRECT MARKETING-OTHER DIRECT MARKETERS/NOT ELSEW.,CHILDREN & YOUNG PEOPLE
REDACTED,70.55,08/09/2020,ASDA STORES LTD 5729,Child in care - Provisions,"GROCERY STORES, SUPERMARKETS",CHILDREN & YOUNG PEOPLE
REDACTED,1.98,08/09/2020,MCDONALDS,child in care - activity,FAST FOOD RESTAURANTS,CHILDREN & YOUNG PEOPLE
REDACTED,100.00,08/09/2020,GOOGLE  ADS6087318024,Advertising,DIGITAL GOODS SOFTWARE APPLICATIONS,CORPORATE SERVICES
REDACTED,128.80,08/09/2020,SEED BROTHERS EAST ANG,Cleaning Products,"AUTOMOTIVE PARTS, ACCESSORIES STORES",FIRE & PUBLIC SAFETY
REDACTED,264.72,08/09/2020,WWW.DSMEDICAL.CO.U,Trauma Kit products for XXXXX,"HEALTH PRACTITIONERS, MEDICAL SRVCS-NOT ELSEWHERE",FIRE & PUBLIC SAFETY
REDACTED,70.94,08/09/2020,M and M Direct Ltd,Clothing 086LG202/12,SPORTING GOODS STORES,CHILDREN & YOUNG PEOPLE
REDACTED,132.38,08/09/2020,PENTAHOTEL IPSWICH,1052029/1071S emergency accom for client,"LODGING-HOTELS,MOTELS,RESORTS-NOT CLASSIFIED",CHILDREN & YOUNG PEOPLE
REDACTED,18.91,08/09/2020,GITHUB,1 x additional seat ($48 per year prorated for 182,"COMP PROGRAMING,DATA PRCSNG,INTGRTD SYS DSGN SRVS",FIRE & PUBLIC SAFETY
REDACTED,23.40,08/09/2020,WWW.LOCKSHOPDIRECT.CO.,Replacement lock for gate,HARDWARE EQUIPMENT AND SUPPLIES,CHILDREN & YOUNG PEOPLE
REDACTED,133.58,09/09/2020,Magnet,Wattisham doors,"EQUIP, FURNITURE, HOME FURNSHNGS STRS (EXCPT APPL)",FIRE & PUBLIC SAFETY
REDACTED,14.08,09/09/2020,LONDON GRAPHIC CENTRE,Kraft box for reveal wall display,"OFFICE, SCHOOL SUPPLY, AND STATIONERY STORES","GROWTH, HIGHWAYS & INFRASTRUCTURE"
REDACTED,100.00,09/09/2020,GOOGLE  ADS6087318024,Advertising,DIGITAL GOODS SOFTWARE APPLICATIONS,CORPORATE SERVICES
REDACTED,24.48,09/09/2020,AMZNMKTPLACE AMAZON.CO,Birthday gift for XXXXX and card,MISCELLANEOUS AND SPECIALTY RETAIL STORES,CHILDREN & YOUNG PEOPLE
REDACTED,35.00,09/09/2020,TESCO STORE 2877,laminator and laminater sheets,"GROCERY STORES, SUPERMARKETS",FIRE & PUBLIC SAFETY
REDACTED,29.99,09/09/2020,AMZNMktplace,"Workstation for XXXXX, agreed by XXXXX",MISCELLANEOUS AND SPECIALTY RETAIL STORES,CHILDREN & YOUNG PEOPLE
REDACTED,23.85,10/09/2020,C BREWER & SONS,Paint for doors Wattisham,"BUILDING MATERIALS, LUMBER STORES",FIRE & PUBLIC SAFETY
REDACTED,41.65,10/09/2020,SCREWFIX DIRECT LT,Digital door locks for Wattisham doors,"BUILDING MATERIALS, LUMBER STORES",FIRE & PUBLIC SAFETY
REDACTED,34.00,10/09/2020,DVLA DRIVER ONLINE,"297N, ID: 453110, Provisional driving licence",GOVERNMENT SERVICES-NOT ELSEWHERE CLASSIFIED,CHILDREN & YOUNG PEOPLE
REDACTED,22.00,10/09/2020,CCS Avenue Taxis,1101399 583W. Taxi to college,LIMOUSINES AND TAXICABS,CHILDREN & YOUNG PEOPLE
REDACTED,50.94,10/09/2020,ARGOS LTD,Stairgate for Foster carer,DISCOUNT STORES,CHILDREN & YOUNG PEOPLE
REDACTED,84.00,10/09/2020,WWW.JA.NET,SR-150808 Domain names XXXXX,"ORGANISATIONS, MEMBERSHIP-NOT ELSEWHERE CLASSIFIED",CORPORATE SERVICES
REDACTED,43.92,10/09/2020,thetrainline.com,1038127 546W train ticket,PASSENGER RAILWAYS,CHILDREN & YOUNG PEOPLE
REDACTED,11.00,10/09/2020,LONDON BORO OF REDBRI,483782 569W B Cert,GOVERNMENT SERVICES-NOT ELSEWHERE CLASSIFIED,CHILDREN & YOUNG PEOPLE
REDACTED,20.00,10/09/2020,notonthehighstreet.com,Leather booklet cover for fixed interpretation.,MISCELLANEOUS AND SPECIALTY RETAIL STORES,"GROWTH, HIGHWAYS & INFRASTRUCTURE"
REDACTED,7.47,10/09/2020,AMZNMktplace,Waterproof chalk pen for garden labels,MISCELLANEOUS AND SPECIALTY RETAIL STORES,"GROWTH, HIGHWAYS & INFRASTRUCTURE"
REDACTED,18.35,10/09/2020,AMZNMktplace,recycled plastic plant labels for garden,MISCELLANEOUS AND SPECIALTY RETAIL STORES,"GROWTH, HIGHWAYS & INFRASTRUCTURE"
REDACTED,100.77,10/09/2020,AMZNMktplace,Headsets for staff,MISCELLANEOUS AND SPECIALTY RETAIL STORES,ADULT & COMMUNITY SERVICES
REDACTED,6.99,10/09/2020,AMZN Digital,Child in care - XXXXX activity,RECORD SHOPS,CHILDREN & YOUNG PEOPLE
REDACTED,54.20,10/09/2020,WWW.FIRST4MAGNETS.COM,Magnets for exhibition,MISCELLANEOUS AND SPECIALTY RETAIL STORES,"GROWTH, HIGHWAYS & INFRASTRUCTURE"
REDACTED,50.00,10/09/2020,AIRBNB   HMQ8Q4DX3Z,XXXXX Emergency Accm,"LODGING-HOTELS,MOTELS,RESORTS-NOT CLASSIFIED",CHILDREN & YOUNG PEOPLE
REDACTED,41.14,10/09/2020,FOUR SQUARE HEALTHCARE,Oral Examination Gloves XXXXX Breast Feeding,DENTAL/LAB/MED/OPHTHALMIC HOSP EQUIP & SUPPLIES,CHILDREN & YOUNG PEOPLE
REDACTED,20.54,10/09/2020,FOUR SQUARE HEALTHCARE,Breastfeeding XXXXX Oral Examination Gloves,DENTAL/LAB/MED/OPHTHALMIC HOSP EQUIP & SUPPLIES,CHILDREN & YOUNG PEOPLE
REDACTED,59.76,10/09/2020,eBay O 04-05704-50053,Fake blood for Trauma courses,DEPARTMENT STORES,FIRE & PUBLIC SAFETY
REDACTED,47.31,10/09/2020,AMZNMktplace,Specialist pens required for courses,MISCELLANEOUS AND SPECIALTY RETAIL STORES,FIRE & PUBLIC SAFETY
REDACTED,250.00,10/09/2020,PAYPAL  NATIONALBIO,Recorder 6 Licence 2020/21,"ORGANISATIONS, CHARITABLE AND SOCIAL SERVICES","GROWTH, HIGHWAYS & INFRASTRUCTURE"
REDACTED,184.85,10/09/2020,ASDA  STORES 4218,looked after children provisions,"GROCERY STORES, SUPERMARKETS",CHILDREN & YOUNG PEOPLE
REDACTED,43.45,10/09/2020,WORLD OF WALLPAPER,1141577/1090S Setting up home items for client,"GLASS, PAINT, WALLPAPER STORES",CHILDREN & YOUNG PEOPLE
REDACTED,39.00,10/09/2020,POST OFFICE COUNTER,Covid Postage,POSTAL SERVICES-GOVERNMENT ONLY,"GROWTH, HIGHWAYS & INFRASTRUCTURE"
REDACTED,5.99,11/09/2020,NETFLIX.COM,Children's Home Expense - Activity,"CABLE, SATELLITE, OTHER PAY TELEVISION, RADIO SVCS",CHILDREN & YOUNG PEOPLE
REDACTED,-17.94,11/09/2020,WWW.COWLINGANDWILCOX.C,Box for display - order refunded,"ARTIST SUPPLY STORES, CRAFT SHOPS","GROWTH, HIGHWAYS & INFRASTRUCTURE"
REDACTED,97.97,11/09/2020,AMZNMKTPLACE AMAZON.CO,Headsets for staff,MISCELLANEOUS AND SPECIALTY RETAIL STORES,ADULT & COMMUNITY SERVICES
REDACTED,100.00,11/09/2020,WWW.VOUCHEREXPRESS.CO.,school clothing for child in need 086JZ122/1,"GIFT, CARD, NOVELTY AND SOUVENIR SHOPS",CHILDREN & YOUNG PEOPLE
REDACTED,124.35,11/09/2020,ASDA STORES LTD 5729,child in care - provisions,"GROCERY STORES, SUPERMARKETS",CHILDREN & YOUNG PEOPLE
REDACTED,-10.99,11/09/2020,AMZ MatMax,Refund for sandpaper,MISCELLANEOUS AND SPECIALTY RETAIL STORES,FIRE & PUBLIC SAFETY
REDACTED,99.98,11/09/2020,ANNA FREUD CENTRE,Training course,"ORGANISATIONS, CHARITABLE AND SOCIAL SERVICES",CHILDREN & YOUNG PEOPLE
REDACTED,30.00,11/09/2020,PAYPAL  UK NI APP,384884/1132S NI card for client,"CONSULTING, MANAGEMENT AND PUBLIC RELATIONS SVCS",CHILDREN & YOUNG PEOPLE
REDACTED,60.00,11/09/2020,WWW.EUROPARKS.COM,Parking for staff member that has left SCC,AUTOMOBILE PARKING LOTS AND GARAGES,CHILDREN & YOUNG PEOPLE
REDACTED,105.00,11/09/2020,MARKS&SPENCER PLC,XXXXX Women's trousers 3 unable to provide in FSATS,"GROCERY STORES, SUPERMARKETS",FIRE & PUBLIC SAFETY
REDACTED,73.50,11/09/2020,PREMIER INN 44536930,hotel booked for YP and 1x support worker,PREMIER INN,ADULT & COMMUNITY SERVICES
REDACTED,134.48,11/09/2020,TRAVELODGE GB0606,ACC. XXXXX SW XXXXX,TRAVELODGE,CHILDREN & YOUNG PEOPLE
REDACTED,157.00,14/09/2020,WWW.PLANNINGPORTAL.CO.,Planning Application for the Eye Scheme for XXXXX,BUSINESS SERVICES-NOT ELSEWHERE CLASSIFIED,"GROWTH, HIGHWAYS & INFRASTRUCTURE"
REDACTED,78.85,14/09/2020,LCN COM,Domain name SR-150999 XXXXX,COMPUTER NETWORK/INFORMATION SERVICES,CORPORATE SERVICES
REDACTED,35.00,14/09/2020,EB  COMMISSIONING AMP,Conference ticket for XXXXX.,BUSINESS SERVICES-NOT ELSEWHERE CLASSIFIED,CHILDREN & YOUNG PEOPLE
REDACTED,23.33,14/09/2020,NEXT RETAIL LTD,child in care - school clothing XXXXX,FAMILY CLOTHING STORES,CHILDREN & YOUNG PEOPLE
REDACTED,22.50,14/09/2020,HALFORDS 0701,child in care - Bike accessories for school,BICYCLE SHOPS - SALES AND SERVICE,CHILDREN & YOUNG PEOPLE
REDACTED,158.33,14/09/2020,C.E.X LIMITED,Child in care - XXXXX activity,ELECTRICAL PARTS AND EQUIPMENT,CHILDREN & YOUNG PEOPLE
REDACTED,480.00,14/09/2020,IPSWICH BOROUGH CO,parking Permits for the service,GOVERNMENT SERVICES-NOT ELSEWHERE CLASSIFIED,CHILDREN & YOUNG PEOPLE
REDACTED,35.00,14/09/2020,WILDTRACKS,Unimog booking for XXXXX,PROFESSIONAL SERVICES - NOT ELSEWHERE CLASSIFIED,FIRE & PUBLIC SAFETY
REDACTED,11.95,14/09/2020,EOE CO-OP,Shaving gels and razors for WTC,"GROCERY STORES, SUPERMARKETS",FIRE & PUBLIC SAFETY
REDACTED,-18.50,14/09/2020,GEN REGISTER OFFICE,Birth certificates,GOVERNMENT SERVICES-NOT ELSEWHERE CLASSIFIED,CHILDREN & YOUNG PEOPLE
REDACTED,79.40,14/09/2020,POST OFFICE COUNTER,"Stamps 100 x 2nd, 12 x 1st, 6 x 2nd large Covid 19",POSTAL SERVICES-GOVERNMENT ONLY,CHILDREN & YOUNG PEOPLE
REDACTED,49.99,14/09/2020,AMZNMKTPLACE AMAZON.CO,mobile Phone 086LG205/1,MISCELLANEOUS AND SPECIALTY RETAIL STORES,CHILDREN & YOUNG PEOPLE
REDACTED,20.00,14/09/2020,HMCTS-SUFFOLK024,1215557/650S fine for client,FINES,CHILDREN & YOUNG PEOPLE
REDACTED,179.45,14/09/2020,TRAVELODGE GB0000,ACC. XXXXX SW XXXXX,TRAVELODGE,CHILDREN & YOUNG PEOPLE
REDACTED,31.00,14/09/2020,TRAVELODGE GB0000,ACC. XXXXX SW XXXXX,TRAVELODGE,CHILDREN & YOUNG PEOPLE
REDACTED,6.00,14/09/2020,TRAVELODGE GB0000,ACC. XXXXX SW XXXXX,TRAVELODGE,CHILDREN & YOUNG PEOPLE
REDACTED,8.33,15/09/2020,B & Q 1315,Drip bars for Wattisham doors,HOME SUPPLY WAREHOUSE STORES,FIRE & PUBLIC SAFETY
REDACTED,95.00,15/09/2020,JD SPORTS INTERNET,346690 81W. Birthday,SPORTING GOODS STORES,CHILDREN & YOUNG PEOPLE
REDACTED,34.00,15/09/2020,DVLA DRIVER ONLINE,1270420 547W. Driv Lic.,GOVERNMENT SERVICES-NOT ELSEWHERE CLASSIFIED,CHILDREN & YOUNG PEOPLE
REDACTED,84.00,15/09/2020,WWW.JA.NET,Domain names SR-151464 XXXXX,"ORGANISATIONS, MEMBERSHIP-NOT ELSEWHERE CLASSIFIED",CORPORATE SERVICES
REDACTED,2.50,15/09/2020,TSB Returns Ltd,346690 63W. Return of trainers,"COURIER SVC-AIR & GROUND, FREIGHT FORWARDERS",CHILDREN & YOUNG PEOPLE
REDACTED,6.66,15/09/2020,Amazon Prime LR8GG1OT5,Children's Home expense - Activity,DIRECT MARKETING - CONTINUITY/SUBSCRIPTION MERCHANTS,CHILDREN & YOUNG PEOPLE
REDACTED,20.00,15/09/2020,WWW.PARENTMAIL.CO.,Children's Home Expense - Lunch money XXXXX,SCHOOLS & EDUCATIONAL SVC-NOT ELSEWHERE CLASSIFIED,CHILDREN & YOUNG PEOPLE
REDACTED,143.50,15/09/2020,BOOKPOINT LIMITED,Purchase of Diagnostic Reading Analysis,"BOOKS, PERIODICALS AND NEWSPAPERS",CHILDREN & YOUNG PEOPLE
REDACTED,75.00,15/09/2020,Amazon.co.uk 4Z2W76HC5,Vouchers for young people involved in interviewing,DIRECT MARKETING-OTHER DIRECT MARKETERS/NOT ELSEW.,CHILDREN & YOUNG PEOPLE
REDACTED,15.00,15/09/2020,TESCO GIFT CARD,Voucher for young person involved in interviewing,"GROCERY STORES, SUPERMARKETS",CHILDREN & YOUNG PEOPLE
REDACTED,3.08,15/09/2020,Amazon.co.uk IC3498KV5,Stickers for shop,DIRECT MARKETING-OTHER DIRECT MARKETERS/NOT ELSEW.,"GROWTH, HIGHWAYS & INFRASTRUCTURE"
REDACTED,50.47,15/09/2020,MORPLAN.COM,Bags/packaging for shop,"OFFICE, SCHOOL SUPPLY, AND STATIONERY STORES","GROWTH, HIGHWAYS & INFRASTRUCTURE"
REDACTED,8.34,15/09/2020,UKTOOLCENTRE,Building materials for XXXXX,HARDWARE STORES,FIRE & PUBLIC SAFETY
REDACTED,22.00,15/09/2020,GEN REGISTER OFFICE,birth certificates,GOVERNMENT SERVICES-NOT ELSEWHERE CLASSIFIED,CHILDREN & YOUNG PEOPLE
REDACTED,50.00,15/09/2020,GEN REGISTER OFFICE,Birth certificates,GOVERNMENT SERVICES-NOT ELSEWHERE CLASSIFIED,CHILDREN & YOUNG PEOPLE
REDACTED,49.99,15/09/2020,NATIONAL AWARENESS DAY,Awareness Calendar,"CONSULTING, MANAGEMENT AND PUBLIC RELATIONS SVCS",PUBLIC HEALTH
REDACTED,173.22,15/09/2020,ASDA  STORES 4218,looked after children provisions,"GROCERY STORES, SUPERMARKETS",CHILDREN & YOUNG PEOPLE
REDACTED,276.72,15/09/2020,SP   COES_STORE,1256546/1134S school uniform for client,COMPUTER SOFTWARE STORES,CHILDREN & YOUNG PEOPLE
REDACTED,69.70,15/09/2020,SP   GEARUK,College Uniform for Young Person,COMPUTER SOFTWARE STORES,CHILDREN & YOUNG PEOPLE
REDACTED,103.50,15/09/2020,BOOKPOINT LIMITED,New edition Diagnostic Reading Analysis - WEST,"BOOKS, PERIODICALS AND NEWSPAPERS",CHILDREN & YOUNG PEOPLE
REDACTED,103.50,15/09/2020,BOOKPOINT LIMITED,New edition Diagnostic Reading Analysis - SOUTH,"BOOKS, PERIODICALS AND NEWSPAPERS",CHILDREN & YOUNG PEOPLE
REDACTED,91.77,15/09/2020,TRAVELODGE GB0000,ACC. XXXXX SW XXXXX,TRAVELODGE,CHILDREN & YOUNG PEOPLE
REDACTED,1463.00,15/09/2020,HOTEL ON BOOKING.COM,ACC. XXXXX SW XXXXX,"LODGING-HOTELS,MOTELS,RESORTS-NOT CLASSIFIED",CHILDREN & YOUNG PEOPLE
REDACTED,4.87,16/09/2020,D J EVANS (BURY) LTD,Circlips for workshops,"BUILDING MATERIALS, LUMBER STORES",FIRE & PUBLIC SAFETY
REDACTED,23.37,16/09/2020,SMARTY SYMBOLS LLC,CISS Monthly website software,"COMPUTERS, COMPUTER PERIPHERAL EQUIPMENT, SOFTWARE",CHILDREN & YOUNG PEOPLE
REDACTED,177.78,16/09/2020,WWW.FACTORY-DIRECT-FLO,345721 560W. SUHA,FLOOR COVERING STORES,CHILDREN & YOUNG PEOPLE
REDACTED,294.65,16/09/2020,BYTEMARK HOSTING,One Suffolk Hosting - XXXXX,COMPUTER SOFTWARE STORES,CORPORATE SERVICES
REDACTED,12.99,16/09/2020,AMZNMktplace,Headset for new starter FCFCT,MISCELLANEOUS AND SPECIALTY RETAIL STORES,CHILDREN & YOUNG PEOPLE
REDACTED,3.10,16/09/2020,POST OFFICE COUNTER,Postage to Hunters,POSTAL SERVICES-GOVERNMENT ONLY,FIRE & PUBLIC SAFETY
REDACTED,30.00,16/09/2020,Amazon.co.uk 7K1IA64J5,Voucher for young person involved in interviewing,DIRECT MARKETING-OTHER DIRECT MARKETERS/NOT ELSEW.,CHILDREN & YOUNG PEOPLE
REDACTED,10.99,16/09/2020,AMZNMktplace,Water - for Lowestoft - provision for break room,MISCELLANEOUS AND SPECIALTY RETAIL STORES,"GROWTH, HIGHWAYS & INFRASTRUCTURE"
REDACTED,13.32,16/09/2020,AMZNMKTPLACE AMAZON.CO,Pen pots to display shop items,MISCELLANEOUS AND SPECIALTY RETAIL STORES,"GROWTH, HIGHWAYS & INFRASTRUCTURE"
REDACTED,7.50,16/09/2020,AMZNMKTPLACE AMAZON.CO,"Strip bags for shop [small items- postcards, etc]",MISCELLANEOUS AND SPECIALTY RETAIL STORES,"GROWTH, HIGHWAYS & INFRASTRUCTURE"
MARK HARDINGHAM,540.00,16/09/2020,BEING DEVELOPED,NFCC Autumn Conference (no other option to pay),"ORGANISATIONS, CHARITABLE AND SOCIAL SERVICES",FIRE & PUBLIC SAFETY
REDACTED,9.57,16/09/2020,AMZNMktplace,USB stick needed urgently for witness statement,MISCELLANEOUS AND SPECIALTY RETAIL STORES,FIRE & PUBLIC SAFETY
REDACTED,15.79,16/09/2020,WWW.LOCKSHOPDIRECT.CO.,replacement lock for gate,HARDWARE EQUIPMENT AND SUPPLIES,CHILDREN & YOUNG PEOPLE
REDACTED,297.77,16/09/2020,TRAVELODGE GB0000,ACC. XXXXX SW XXXXX,TRAVELODGE,CHILDREN & YOUNG PEOPLE
REDACTED,375.77,17/09/2020,ARGOS LTD,395263 499W SUHA,DISCOUNT STORES,CHILDREN & YOUNG PEOPLE
REDACTED,217.26,17/09/2020,ONLINECARPETS.COUK,345721 560W SUHA,FLOOR COVERING STORES,CHILDREN & YOUNG PEOPLE
REDACTED,-11.00,17/09/2020,LONDON BORO OF REDBRID,483782 569W. Refund as B Cert not supplied,GOVERNMENT SERVICES-NOT ELSEWHERE CLASSIFIED,CHILDREN & YOUNG PEOPLE
REDACTED,107.98,17/09/2020,AMZNMktplace,2 x cots for Carer XXXXX.,MISCELLANEOUS AND SPECIALTY RETAIL STORES,CHILDREN & YOUNG PEOPLE
REDACTED,-6.66,17/09/2020,Amazon Prime,Credit for Amazon Prime Fee,DIRECT MARKETING - CONTINUITY/SUBSCRIPTION MERCHANTS,"GROWTH, HIGHWAYS & INFRASTRUCTURE"
REDACTED,20.50,17/09/2020,AMZNMKTPLACE AMAZON.CO,Children's Home Expense- Medication stickers,MISCELLANEOUS AND SPECIALTY RETAIL STORES,CHILDREN & YOUNG PEOPLE
REDACTED,14.97,17/09/2020,Amazon.co.uk AZ7Q79F25,When the wind blows book for exhibition display,DIRECT MARKETING-OTHER DIRECT MARKETERS/NOT ELSEW.,"GROWTH, HIGHWAYS & INFRASTRUCTURE"
REDACTED,3.78,17/09/2020,RGSS LIMITED,child in care - activity,"MISC FOOD STORE-CONVENIENCE,MRKT,SPLTY,VENDNG MACS",CHILDREN & YOUNG PEOPLE
REDACTED,30.35,17/09/2020,PALACE CINEMA,children in care - activity to cinema all children,"THEATRICAL PRODUCERS(EXCL MOTION PIX),TICKET AGNCY",CHILDREN & YOUNG PEOPLE
REDACTED,13.98,17/09/2020,eBay O 25-05739-56183,For school loan box - toys,DEPARTMENT STORES,"GROWTH, HIGHWAYS & INFRASTRUCTURE"
REDACTED,10.39,17/09/2020,PAYPAL  HD123ABC EBAY,For school loan box - toys,WOMEN'S READY-TO-WEAR STORES,"GROWTH, HIGHWAYS & INFRASTRUCTURE"
REDACTED,15.70,17/09/2020,PAYPAL  MELODEON EBAY,For school loan box - toys,MISCELLANEOUS AND SPECIALTY RETAIL STORES,"GROWTH, HIGHWAYS & INFRASTRUCTURE"
REDACTED,8.09,17/09/2020,PAYPAL  PMEASDAY EBAY,For school loan box - toys,MISCELLANEOUS AND SPECIALTY RETAIL STORES,"GROWTH, HIGHWAYS & INFRASTRUCTURE"
REDACTED,23.10,17/09/2020,PAYPAL  PRISCILATHO EB,For school loan box - toys,MISCELLANEOUS AND SPECIALTY RETAIL STORES,"GROWTH, HIGHWAYS & INFRASTRUCTURE"
REDACTED,29.09,17/09/2020,PAYPAL  STIGZO1 EBAY S,For school loan box - toys,MISCELLANEOUS AND SPECIALTY RETAIL STORES,"GROWTH, HIGHWAYS & INFRASTRUCTURE"
REDACTED,430.48,17/09/2020,RAWLINSON AUTOMOTIVE L,AX16 EWF Service,"AUTO & TRUCK DLRS-SALES,SVC, REPRS,PRTS, & LEASING",FIRE & PUBLIC SAFETY
REDACTED,155.42,17/09/2020,EAST SUFFOLK COUNCIL,Pre-Application advice for Woodbridge Co-op,GOVERNMENT SERVICES-NOT ELSEWHERE CLASSIFIED,"GROWTH, HIGHWAYS & INFRASTRUCTURE"
REDACTED,311.20,17/09/2020,GOVERNMENT EVENTS,XXXXX Combatting Gangs Conference 2021,"ASSOCIATIONS - CIVIC, SOCIAL AND FRATERNAL",CHILDREN & YOUNG PEOPLE
REDACTED,320.00,17/09/2020,HALFORDS ON LINE,Bike and bike set for XXXXX,BICYCLE SHOPS - SALES AND SERVICE,CHILDREN & YOUNG PEOPLE
REDACTED,20.00,17/09/2020,DNA MOBILES & COMPUTER,equipment repairs,"COMPUTERS, COMPUTER PERIPHERAL EQUIPMENT, SOFTWARE",FIRE & PUBLIC SAFETY
REDACTED,16.65,18/09/2020,SCREWFIX DIRECT LT,Latches for office doors Wattisham,"BUILDING MATERIALS, LUMBER STORES",FIRE & PUBLIC SAFETY
REDACTED,75.50,18/09/2020,HM PASSPORT OFFICE,"317N, ID:389586, Passport",GOVERNMENT SERVICES-NOT ELSEWHERE CLASSIFIED,CHILDREN & YOUNG PEOPLE
REDACTED,46.99,18/09/2020,ARGOS LTD,Stair gate for foster carer,DISCOUNT STORES,CHILDREN & YOUNG PEOPLE
REDACTED,34.00,18/09/2020,DVLA DRIVER ONLINE,289224. 571W. Drivers Lic.,GOVERNMENT SERVICES-NOT ELSEWHERE CLASSIFIED,CHILDREN & YOUNG PEOPLE
REDACTED,124.16,18/09/2020,MICHAELS BUTCHERS,Children in care - provisions,"FREEZER, LOCKER MEAT PROVISIONERS",CHILDREN & YOUNG PEOPLE
REDACTED,88.67,18/09/2020,ASDA STORES LTD 5729,child in care - provisions,"GROCERY STORES, SUPERMARKETS",CHILDREN & YOUNG PEOPLE
REDACTED,4800.00,18/09/2020,SUFFOLK MIND,External Training Course for SFRS by Suffolk MIND,"ORGANISATIONS, CHARITABLE AND SOCIAL SERVICES",FIRE & PUBLIC SAFETY
REDACTED,158.25,18/09/2020,SCREWFIX DIRECT,Screws,"BUILDING MATERIALS, LUMBER STORES","GROWTH, HIGHWAYS & INFRASTRUCTURE"
REDACTED,24.89,18/09/2020,AMZNMKTPLACE AMAZON.CO,Larmtek Webcam for XXXXX,MISCELLANEOUS AND SPECIALTY RETAIL STORES,FIRE & PUBLIC SAFETY
REDACTED,490.63,18/09/2020,CLAN TOOLS & PLANT LTD,Lukas extrication manuals for XXXXX,"DURABLE GOODS, NOT ELSEWHERE CLASSIFIED",FIRE & PUBLIC SAFETY
REDACTED,48.41,18/09/2020,SCREWFIX DIRECT,Various hardware items for XXXXX,"BUILDING MATERIALS, LUMBER STORES",FIRE & PUBLIC SAFETY
REDACTED,98.74,18/09/2020,WWW.COLCHESTER-ZOO.COM,Visit to Colchester Zoo on 19/09/2020,TOURIST ATTRACTIONS AND EXHIBITS,CHILDREN & YOUNG PEOPLE
REDACTED,27.50,18/09/2020,COPYRIGHT WITNESS LTD,Copyright Fire Stars,"CONSULTING, MANAGEMENT AND PUBLIC RELATIONS SVCS",FIRE & PUBLIC SAFETY
REDACTED,43.74,18/09/2020,LLOYDS PHARMACY,Forehead Thermo for XXXXX,"DRUG STORES, PHARMACIES",FIRE & PUBLIC SAFETY
REDACTED,30.83,18/09/2020,SCREWFIX DIRECT,Pair of shears for transit site clearance,"BUILDING MATERIALS, LUMBER STORES","GROWTH, HIGHWAYS & INFRASTRUCTURE"
REDACTED,22.59,21/09/2020,SUPERDRUG STORES PLC,PPE - HAND GEL FOR DM TEAM,"DRUG STORES, PHARMACIES","GROWTH, HIGHWAYS & INFRASTRUCTURE"
REDACTED,42.99,21/09/2020,B&M 591 - CARR ROAD,PPE MASKS FOR DM TEAM,SUNDRY GENERAL MERCHANDISE,"GROWTH, HIGHWAYS & INFRASTRUCTURE"
REDACTED,42.00,21/09/2020,WWW.JA.NET,SR-152908 Domain Names XXXXX,"ORGANISATIONS, MEMBERSHIP-NOT ELSEWHERE CLASSIFIED",CORPORATE SERVICES
REDACTED,38.00,21/09/2020,GEN REGISTER OFFICE,483782. 582W. Adoption Cert.,GOVERNMENT SERVICES-NOT ELSEWHERE CLASSIFIED,CHILDREN & YOUNG PEOPLE
REDACTED,72.92,21/09/2020,B&Q DIRECT,345721. 581W. SUHA,HOME SUPPLY WAREHOUSE STORES,CHILDREN & YOUNG PEOPLE
REDACTED,20.00,21/09/2020,IRCAS,320737. 528W. Train fine.,FINES,CHILDREN & YOUNG PEOPLE
REDACTED,-99.99,21/09/2020,JD SPORTS INTERNET,346690. 63W. Return of trainers,SPORTING GOODS STORES,CHILDREN & YOUNG PEOPLE
REDACTED,1219.24,21/09/2020,SQ  EVERLIGHT LIMITED,Accommodation Young Person XXXXX - XXXXX XXXXX,TRAVEL AGENCIES AND TOUR OPERATORS,CHILDREN & YOUNG PEOPLE
REDACTED,53.30,21/09/2020,Amazon.co.uk 676R74YK5,Velcro Brand White Heavy Duty Stick on Tape 50mmx2,DIRECT MARKETING-OTHER DIRECT MARKETERS/NOT ELSEW.,FIRE & PUBLIC SAFETY
REDACTED,910.00,21/09/2020,OFSTED INTERNET,Ofsted Registration of new Manager,GOVERNMENT SERVICES-NOT ELSEWHERE CLASSIFIED,CHILDREN & YOUNG PEOPLE
REDACTED,120.00,21/09/2020,WWW.ADASS.ORG.UK,NCAS virtual conference Nov XXXXX,"ORGANISATIONS, CHARITABLE AND SOCIAL SERVICES",ADULT & COMMUNITY SERVICES
REDACTED,46.61,21/09/2020,AMZNMktplace,Guitar strings,MISCELLANEOUS AND SPECIALTY RETAIL STORES,CHILDREN & YOUNG PEOPLE
REDACTED,8.33,21/09/2020,AMZN Digital,child in care - activity,RECORD SHOPS,CHILDREN & YOUNG PEOPLE
REDACTED,4.35,21/09/2020,MCDONALDS,Child in care - Activity XXXXX,FAST FOOD RESTAURANTS,CHILDREN & YOUNG PEOPLE
REDACTED,15.36,21/09/2020,MCDONALDS,Child in care - Activity XXXXX/XXXXX,FAST FOOD RESTAURANTS,CHILDREN & YOUNG PEOPLE
REDACTED,4.58,21/09/2020,B&M 019 - CARROW ROAD,Child in care - Cleaning supplies,SUNDRY GENERAL MERCHANDISE,CHILDREN & YOUNG PEOPLE
REDACTED,71.62,21/09/2020,B&M 420 - HS LOWESTOFT,child in care - Furnishings Bedroom,SUNDRY GENERAL MERCHANDISE,CHILDREN & YOUNG PEOPLE
REDACTED,23.75,21/09/2020,OUTFIT,child in care - clothing XXXXX,MEN'S AND WOMEN'S CLOTHING STORES,CHILDREN & YOUNG PEOPLE
REDACTED,33.32,21/09/2020,AMZNMKTPLACE AMAZON.CO,Child in care - Bedding XXXXX,MISCELLANEOUS AND SPECIALTY RETAIL STORES,CHILDREN & YOUNG PEOPLE
REDACTED,401.21,21/09/2020,FACEBK FB5N9WNNF2,Advertising,ADVERTISING SERVICES,CORPORATE SERVICES
REDACTED,265.50,21/09/2020,WWW.HEALTHCARECONFEREN,Conference fee for XXXXX,BUSINESS SERVICES-NOT ELSEWHERE CLASSIFIED,CHILDREN & YOUNG PEOPLE
REDACTED,100.00,21/09/2020,CS MORRISONS GIFT CARD,Local Welfare Assistance Scheme,BUSINESS SERVICES-NOT ELSEWHERE CLASSIFIED,PUBLIC HEALTH
REDACTED,41.40,21/09/2020,WEST END FISH AND CHIP,looked after children activity take away,FAST FOOD RESTAURANTS,CHILDREN & YOUNG PEOPLE
REDACTED,153.62,21/09/2020,ASDA  STORES 4218,looked after children provisions,"GROCERY STORES, SUPERMARKETS",CHILDREN & YOUNG PEOPLE
REDACTED,78.00,21/09/2020,WWW.NAMCOFUNSCAPE.,Namco Funscape Activity for XXXXX 997945,"BANDS, ORCHESTRAS, & MISC ENTRTNRS-NOT ELSWHR CLAS",CHILDREN & YOUNG PEOPLE
REDACTED,4.05,21/09/2020,MOONPIG,Get well card for XXXXX (RO Panel member),SUNDRY GENERAL MERCHANDISE,CHILDREN & YOUNG PEOPLE
REDACTED,1361.20,21/09/2020,SIMPLEMDM,57 X Yearly devices @ $30,COMPUTER SOFTWARE STORES,FIRE & PUBLIC SAFETY
REDACTED,5.99,21/09/2020,DISNEY PLUS,Children in care - activity,DIGITAL GOODS AUDIOVISUAL MEDIA,CHILDREN & YOUNG PEOPLE
REDACTED,23.33,22/09/2020,TYPEFORM S.L,Website form builder tool,COMPUTER SOFTWARE STORES,ADULT & COMMUNITY SERVICES
REDACTED,-19.88,22/09/2020,EB  CAPCON-IPSWICH COM,Refund for an activity for children in care,BUSINESS SERVICES-NOT ELSEWHERE CLASSIFIED,CHILDREN & YOUNG PEOPLE
REDACTED,-19.88,22/09/2020,EB  CAPCON-IPSWICH COM,Refund for an activity for children in care,BUSINESS SERVICES-NOT ELSEWHERE CLASSIFIED,CHILDREN & YOUNG PEOPLE
REDACTED,2.95,22/09/2020,LCN COM,Domain name - XXXXX Misc Monthly Charge,COMPUTER NETWORK/INFORMATION SERVICES,CORPORATE SERVICES
REDACTED,.65,22/09/2020,ROYAL MAIL GROUP LTD,Pcard report to XXXXX for approval,POSTAL SERVICES-GOVERNMENT ONLY,"GROWTH, HIGHWAYS & INFRASTRUCTURE"
REDACTED,138.86,22/09/2020,TESCO STORE 3240,Children's Home Provisions,"GROCERY STORES, SUPERMARKETS",CHILDREN & YOUNG PEOPLE
REDACTED,95.50,22/09/2020,DVLA VEHICLE TAX,12 month Road Tax for Motor Bike Reg AV10EPA,TAX PAYMENTS,"GROWTH, HIGHWAYS & INFRASTRUCTURE"
REDACTED,30.19,22/09/2020,B&M 420 - HS LOWESTOFT,child in care - Towels & cleaning,SUNDRY GENERAL MERCHANDISE,CHILDREN & YOUNG PEOPLE
REDACTED,90.62,22/09/2020,TL PROFESSIONAL,Video tool,"COMP PROGRAMING,DATA PRCSNG,INTGRTD SYS DSGN SRVS",CORPORATE SERVICES
REDACTED,39.99,22/09/2020,RAWLINSON AUTOMOTIVE L,MOT AY67 AUK,"AUTO & TRUCK DLRS-SALES,SVC, REPRS,PRTS, & LEASING",FIRE & PUBLIC SAFETY
REDACTED,39.99,22/09/2020,RAWLINSON AUTOMOTIVE L,MOT AY67  AUJ,"AUTO & TRUCK DLRS-SALES,SVC, REPRS,PRTS, & LEASING",FIRE & PUBLIC SAFETY
REDACTED,2.00,22/09/2020,D J EVANS (BURY) LTD,BRE Screws,"BUILDING MATERIALS, LUMBER STORES",FIRE & PUBLIC SAFETY
REDACTED,25.00,22/09/2020,TESCO GIFT CARD,Local Welfare Assistance Scheme,"GROCERY STORES, SUPERMARKETS",PUBLIC HEALTH
REDACTED,7.06,22/09/2020,Amazon.co.uk R944T4NH5,Panasonic CR-2032 Lithium Coin Battery - Pack of 1,DIRECT MARKETING-OTHER DIRECT MARKETERS/NOT ELSEW.,FIRE & PUBLIC SAFETY
REDACTED,419.98,23/09/2020,ARGOS LTD,"326N, ID:300947, washing machine, fridge freezer",DISCOUNT STORES,CHILDREN & YOUNG PEOPLE
REDACTED,282.95,23/09/2020,ARGOS LTD,"320N, ID:311266, TV",DISCOUNT STORES,CHILDREN & YOUNG PEOPLE
REDACTED,45.82,23/09/2020,WAYFAIR #3419734344,"320N, ID:311266, lamp","EQUIP, FURNITURE, HOME FURNSHNGS STRS (EXCPT APPL)",CHILDREN & YOUNG PEOPLE
REDACTED,19.72,23/09/2020,MAILCHIMP    MONTHLY,mailchimp email service,DIRECT MARKETING - CONTINUITY/SUBSCRIPTION MERCHANTS,"GROWTH, HIGHWAYS & INFRASTRUCTURE"
REDACTED,42.00,23/09/2020,AMZNMktplace,Headset for Social worker on return to work,MISCELLANEOUS AND SPECIALTY RETAIL STORES,CHILDREN & YOUNG PEOPLE
REDACTED,42.12,23/09/2020,ASDA STORES LTD 5729,child in care - provisions,"GROCERY STORES, SUPERMARKETS",CHILDREN & YOUNG PEOPLE
REDACTED,11.20,23/09/2020,Amazon.co.uk 9I0Y40OW5,child in care - DVD activity,DIRECT MARKETING-OTHER DIRECT MARKETERS/NOT ELSEW.,CHILDREN & YOUNG PEOPLE
REDACTED,14.70,23/09/2020,Amazon.co.uk Z991L9GC5,Monthly itch cream XXXXX id 2010300 020SL088,DIRECT MARKETING-OTHER DIRECT MARKETERS/NOT ELSEW.,CHILDREN & YOUNG PEOPLE
REDACTED,64.03,23/09/2020,SPORTSDIRECT 255,looked after children sports clothing,SPORTING GOODS STORES,CHILDREN & YOUNG PEOPLE
REDACTED,106.67,23/09/2020,SP   STICKERSHOP.CO.UK,Project logo stickers,COMPUTER SOFTWARE STORES,"GROWTH, HIGHWAYS & INFRASTRUCTURE"
REDACTED,34.16,23/09/2020,AMZNMktplace,Office equipment on behalf of XXXXX,MISCELLANEOUS AND SPECIALTY RETAIL STORES,"GROWTH, HIGHWAYS & INFRASTRUCTURE"
REDACTED,101.70,23/09/2020,JUMP STREET,Jump Street Activity for XXXXX,RECREATION SERVICES (NOT ELSEWHERE CLASSIFIED),CHILDREN & YOUNG PEOPLE
REDACTED,16.11,23/09/2020,Amazon.co.uk L53E37GY5,Foot stool,DIRECT MARKETING-OTHER DIRECT MARKETERS/NOT ELSEW.,CHILDREN & YOUNG PEOPLE
REDACTED,11.95,23/09/2020,AMZNMktplace,Laptop riser,MISCELLANEOUS AND SPECIALTY RETAIL STORES,CHILDREN & YOUNG PEOPLE
REDACTED,1147.19,23/09/2020,AIRBNB   HMSDARBJ8F,ACC. XXXXX SW XXXXX,"LODGING-HOTELS,MOTELS,RESORTS-NOT CLASSIFIED",CHILDREN & YOUNG PEOPLE
REDACTED,41.62,24/09/2020,Amazon.co.uk BM1UF9AJ5,"320N, ID:311266, drawers",DIRECT MARKETING-OTHER DIRECT MARKETERS/NOT ELSEW.,CHILDREN & YOUNG PEOPLE
REDACTED,129.00,24/09/2020,Dunelm,"320N, ID:311266, bedding, curtains, pole","EQUIP, FURNITURE, HOME FURNSHNGS STRS (EXCPT APPL)",CHILDREN & YOUNG PEOPLE
REDACTED,39.99,24/09/2020,SPORTSDIRECT.COM,"329N, ID:287638, trainers",SPORTING GOODS STORES,CHILDREN & YOUNG PEOPLE
REDACTED,30.00,24/09/2020,ETSY.COM DREAMYPRINTSS,395263. 499W. SUHA,ACCESSORY AND APPAREL SHOPS - MISCELLANEOUS,CHILDREN & YOUNG PEOPLE
REDACTED,32.49,24/09/2020,MANOMANO,395263. 499W. SUHA,HOUSEHOLD APPLIANCE STORES,CHILDREN & YOUNG PEOPLE
REDACTED,19.44,24/09/2020,BALSAMIQ TRID1261574,Wire frame tool,COMPUTER SOFTWARE STORES,ADULT & COMMUNITY SERVICES
REDACTED,49.99,24/09/2020,ARGOS LTD,Stairgate for Foster carer,DISCOUNT STORES,CHILDREN & YOUNG PEOPLE
REDACTED,4.21,24/09/2020,MSFT   E0800C7FA3,O365 PAYG subscription XXXXX,"COMPUTERS, COMPUTER PERIPHERAL EQUIPMENT, SOFTWARE",CORPORATE SERVICES
REDACTED,217.85,24/09/2020,ASDA GEORGE COM LEEDS,equipment for CIN XXXXX,"GROCERY STORES, SUPERMARKETS",CHILDREN & YOUNG PEOPLE
REDACTED,37.13,24/09/2020,WWW.CROMWELL.CO.UK,Particle Mask-review of product for FSG paper,HARDWARE EQUIPMENT AND SUPPLIES,FIRE & PUBLIC SAFETY
REDACTED,2216.04,24/09/2020,AIRBNB   HMQ8Q4DX3Z,XXXXX Ipswich,"LODGING-HOTELS,MOTELS,RESORTS-NOT CLASSIFIED",CHILDREN & YOUNG PEOPLE
REDACTED,175.00,24/09/2020,DUNELM LTD,Blinds for the upper portacabin,"DRAPERY, UPHOLSTERY AND WINDOW COVERINGS SHOPS",FIRE & PUBLIC SAFETY
REDACTED,35.26,24/09/2020,ASDA  STORES 4218,looked after children provisions,"GROCERY STORES, SUPERMARKETS",CHILDREN & YOUNG PEOPLE
REDACTED,139.99,24/09/2020,ARGOS LTD,looked after children replacement TV,DISCOUNT STORES,CHILDREN & YOUNG PEOPLE
REDACTED,16.10,24/09/2020,1 AND 1 IONOS LTD,Plugin Suffolk domain renewal,COMPUTER NETWORK/INFORMATION SERVICES,"GROWTH, HIGHWAYS & INFRASTRUCTURE"
REDACTED,18.48,24/09/2020,AMZNMKTPLACE AMAZON.CO,PPE facemasks,MISCELLANEOUS AND SPECIALTY RETAIL STORES,"GROWTH, HIGHWAYS & INFRASTRUCTURE"
REDACTED,71.00,24/09/2020,WWW.THRIGBYHALL.COM,Thrigby Hall visit for XXXXX 997945,RECREATION SERVICES (NOT ELSEWHERE CLASSIFIED),CHILDREN & YOUNG PEOPLE
REDACTED,74.99,24/09/2020,AMZNMktplace,1270650/1159S Setting up home item for client,MISCELLANEOUS AND SPECIALTY RETAIL STORES,CHILDREN & YOUNG PEOPLE
REDACTED,74.99,24/09/2020,AMZNMktplace,1243939/1153S Setting up home item for client,MISCELLANEOUS AND SPECIALTY RETAIL STORES,CHILDREN & YOUNG PEOPLE
REDACTED,10.54,24/09/2020,Amazon.co.uk P71JG1C85,Arabic to English Dictionary XXXXX 020SL251,DIRECT MARKETING-OTHER DIRECT MARKETERS/NOT ELSEW.,CHILDREN & YOUNG PEOPLE
REDACTED,19.99,24/09/2020,AMZNMktplace,Keyboard & Mouse,MISCELLANEOUS AND SPECIALTY RETAIL STORES,CHILDREN & YOUNG PEOPLE
REDACTED,16.65,24/09/2020,AMZNMktplace,Foot stool,MISCELLANEOUS AND SPECIALTY RETAIL STORES,CHILDREN & YOUNG PEOPLE
REDACTED,44.58,25/09/2020,SUFFOLK FASTENER (IPSW,Stainless Bolts for W/Shops,HARDWARE EQUIPMENT AND SUPPLIES,FIRE & PUBLIC SAFETY
REDACTED,105.10,25/09/2020,Amazon.co.uk 545GA5NP5,397202. 597W. SUHA,DIRECT MARKETING-OTHER DIRECT MARKETERS/NOT ELSEW.,CHILDREN & YOUNG PEOPLE
REDACTED,37.47,25/09/2020,AMZNMKTPLACE AMAZON.CO,395263. 499W. SUHA,MISCELLANEOUS AND SPECIALTY RETAIL STORES,CHILDREN & YOUNG PEOPLE
REDACTED,24.96,25/09/2020,AMZNMktplace,2 SD card convertors and safety plug socket covers,MISCELLANEOUS AND SPECIALTY RETAIL STORES,"GROWTH, HIGHWAYS & INFRASTRUCTURE"
REDACTED,750.00,25/09/2020,BEST OF SUFFOLK LTD,Adoption introduction XXXXX 2032652 04-12 Oct 2020,"LODGING-HOTELS,MOTELS,RESORTS-NOT CLASSIFIED",CHILDREN & YOUNG PEOPLE
REDACTED,345.83,25/09/2020,BEST OF SUFFOLK LTD,Adoption introduction XXXXX 2032652 04-12 Oct 2020,"LODGING-HOTELS,MOTELS,RESORTS-NOT CLASSIFIED",CHILDREN & YOUNG PEOPLE
REDACTED,128.33,25/09/2020,IKEA LTD SHOP ONLINE,furniture for CIN 086JZ123/1,"EQUIP, FURNITURE, HOME FURNSHNGS STRS (EXCPT APPL)",CHILDREN & YOUNG PEOPLE
REDACTED,165.55,25/09/2020,ASDA STORES LTD 5729,Child in care - Provisions,"GROCERY STORES, SUPERMARKETS",CHILDREN & YOUNG PEOPLE
REDACTED,144.00,25/09/2020,IPSWICH BOROUGH CO,Parking permits x 12,GOVERNMENT SERVICES-NOT ELSEWHERE CLASSIFIED,CHILDREN & YOUNG PEOPLE
REDACTED,2.00,25/09/2020,ROYAL MAIL CHARGES,unpaid postage for XXXXX,POSTAL SERVICES-GOVERNMENT ONLY,CHILDREN & YOUNG PEOPLE
REDACTED,134.24,25/09/2020,WWW.LYNVALE.CO.UK,Hook and Loop equipment for the LD teams.,"COMMERCIAL EQUIPMENT, NOT ELSEWHERE CLASSIFIED",CHILDREN & YOUNG PEOPLE
REDACTED,50.00,25/09/2020,ASDA,Local Welfare Assistance Scheme,"GROCERY STORES, SUPERMARKETS",PUBLIC HEALTH
REDACTED,151.44,25/09/2020,ASDA  STORES 4218,looked after children provisions,"GROCERY STORES, SUPERMARKETS",CHILDREN & YOUNG PEOPLE
REDACTED,17.56,25/09/2020,THE RANGE,looked after children school items,DEPARTMENT STORES,CHILDREN & YOUNG PEOPLE
REDACTED,18.05,25/09/2020,ALDI 65 776,looked after children provisions,"GROCERY STORES, SUPERMARKETS",CHILDREN & YOUNG PEOPLE
REDACTED,73.97,25/09/2020,SPORTSDIRECT.COM,Boxing Equipment for XXXXX,SPORTING GOODS STORES,CHILDREN & YOUNG PEOPLE
REDACTED,206.36,25/09/2020,YMCA THAMES GATEWAY,1208351/422S rent for client,"LODGING-HOTELS,MOTELS,RESORTS-NOT CLASSIFIED",CHILDREN & YOUNG PEOPLE
REDACTED,62.00,25/09/2020,HMCTS-SUFFOLK024,301632 savings for client,FINES,CHILDREN & YOUNG PEOPLE
REDACTED,10.16,25/09/2020,Amazon.co.uk MJ1KR7T95,Book for Kinship Carer - Whole Brain Child XXXXX/XXXXX,DIRECT MARKETING-OTHER DIRECT MARKETERS/NOT ELSEW.,CHILDREN & YOUNG PEOPLE
REDACTED,39.02,25/09/2020,FS  Decisive Tactic,Decisive Tactics-Serial 2 Order ID: DEC200924,DIGITAL GOODS SOFTWARE APPLICATIONS,FIRE & PUBLIC SAFETY
REDACTED,101.00,25/09/2020,HMCTS-SUFFOLK024,Child in Care - Court fines,FINES,CHILDREN & YOUNG PEOPLE
REDACTED,10.00,25/09/2020,HMCTS-SUFFOLK024,Child in care - Court fines,FINES,CHILDREN & YOUNG PEOPLE
REDACTED,7.46,28/09/2020,AMZNMKTPLACE AMAZON.CO,Children's Home Expense - Water Bootle XXXXX,MISCELLANEOUS AND SPECIALTY RETAIL STORES,CHILDREN & YOUNG PEOPLE
REDACTED,83.33,28/09/2020,SCREWFIX DIRECT,combi power drill,"BUILDING MATERIALS, LUMBER STORES","GROWTH, HIGHWAYS & INFRASTRUCTURE"
REDACTED,5.76,28/09/2020,SCREWFIX DIRECT,Black screws for benching,"BUILDING MATERIALS, LUMBER STORES","GROWTH, HIGHWAYS & INFRASTRUCTURE"
REDACTED,16.66,28/09/2020,SCREWFIX DIRECT,Power drill accessories.,"BUILDING MATERIALS, LUMBER STORES","GROWTH, HIGHWAYS & INFRASTRUCTURE"
REDACTED,391.82,28/09/2020,TWEET BINDER,Facebook ad,COMPUTER NETWORK/INFORMATION SERVICES,CORPORATE SERVICES
REDACTED,40.60,28/09/2020,AMZNMktplace,visors,MISCELLANEOUS AND SPECIALTY RETAIL STORES,"GROWTH, HIGHWAYS & INFRASTRUCTURE"
REDACTED,47.87,28/09/2020,ARGOS LTD,PDQ safe with batteries,DISCOUNT STORES,"GROWTH, HIGHWAYS & INFRASTRUCTURE"
REDACTED,28.29,28/09/2020,ARGOS LTD,Key box - coded,DISCOUNT STORES,"GROWTH, HIGHWAYS & INFRASTRUCTURE"
REDACTED,65.00,28/09/2020,UKASFP,Software Licence - Signs of Safety,"CONSULTING, MANAGEMENT AND PUBLIC RELATIONS SVCS",CHILDREN & YOUNG PEOPLE
REDACTED,65.00,28/09/2020,UKASFP,Software Licence - Signs of Safety,"CONSULTING, MANAGEMENT AND PUBLIC RELATIONS SVCS",CHILDREN & YOUNG PEOPLE
REDACTED,31.56,28/09/2020,AMZNMktplace,500 X Disposable paper cups 8 oz size,MISCELLANEOUS AND SPECIALTY RETAIL STORES,FIRE & PUBLIC SAFETY
REDACTED,13.73,28/09/2020,Amazon.co.uk PF6R53KW5,New USB stick for XXXXX homeworking,DIRECT MARKETING-OTHER DIRECT MARKETERS/NOT ELSEW.,"GROWTH, HIGHWAYS & INFRASTRUCTURE"
REDACTED,38.74,28/09/2020,KFC BURY ST EDMUNDS,looked after children take away,FAST FOOD RESTAURANTS,CHILDREN & YOUNG PEOPLE
REDACTED,2.00,28/09/2020,TESCO STORES 5086,looked after children provisions,"GROCERY STORES, SUPERMARKETS",CHILDREN & YOUNG PEOPLE
REDACTED,6.66,28/09/2020,Amazon Prime NA2YL18Y5,looked after children amazon subs,DIRECT MARKETING - CONTINUITY/SUBSCRIPTION MERCHANTS,CHILDREN & YOUNG PEOPLE
REDACTED,-30.00,28/09/2020,ASDA  STORES 4218,looked after children returned item,"GROCERY STORES, SUPERMARKETS",CHILDREN & YOUNG PEOPLE
REDACTED,15.36,28/09/2020,B&M 405 - WESTERN WAY,looked after children toiletries,SUNDRY GENERAL MERCHANDISE,CHILDREN & YOUNG PEOPLE
REDACTED,3.00,28/09/2020,ASDA  STORES 4218,looked after children toiletries,"GROCERY STORES, SUPERMARKETS",CHILDREN & YOUNG PEOPLE
REDACTED,13.50,28/09/2020,ASDA  STORES 4218,looked after children toiletries,"GROCERY STORES, SUPERMARKETS",CHILDREN & YOUNG PEOPLE
REDACTED,36.56,28/09/2020,ASDA  STORES 4218,looked after children provisions,"GROCERY STORES, SUPERMARKETS",CHILDREN & YOUNG PEOPLE
REDACTED,15.50,28/09/2020,ODEON CINEMAS,Child in care - XXXXX cinema activity,MOTION PICTURE THEATRES,CHILDREN & YOUNG PEOPLE
REDACTED,209.72,28/09/2020,WWW.UK.RS-ONLINE.C,solenoid valves for pumps,ELECTRICAL PARTS AND EQUIPMENT,FIRE & PUBLIC SAFETY
REDACTED,51.63,28/09/2020,AMZNMKTPLACE AMAZON.CO,PPE for events,MISCELLANEOUS AND SPECIALTY RETAIL STORES,"GROWTH, HIGHWAYS & INFRASTRUCTURE"
REDACTED,105.00,28/09/2020,WWW.SWGFL.ORG.UK,Safety Only leaflets for Pathfinder project,SCHOOLS & EDUCATIONAL SVC-NOT ELSEWHERE CLASSIFIED,CHILDREN & YOUNG PEOPLE
REDACTED,35.00,28/09/2020,WWW.SWGFL.ORG.UK,Safety Only leaflets for Pathfinder project,SCHOOLS & EDUCATIONAL SVC-NOT ELSEWHERE CLASSIFIED,CHILDREN & YOUNG PEOPLE
REDACTED,27.25,28/09/2020,WWW.TOUCHLINE-GROUP,296388/1253S Clothing equipment for client,SPORTING GOODS STORES,CHILDREN & YOUNG PEOPLE
REDACTED,195.40,28/09/2020,Amazon.co.uk 8X0ST71A5,1270650/1161S Laptop from donation for client,DIRECT MARKETING-OTHER DIRECT MARKETERS/NOT ELSEW.,CHILDREN & YOUNG PEOPLE
REDACTED,58.32,28/09/2020,CURRYS ONLINE,Noise cancelling headphones ATW request,ELECTRONIC SALES,CHILDREN & YOUNG PEOPLE
REDACTED,11.99,28/09/2020,AMZNMktplace,Children in care - Digital thermometer,MISCELLANEOUS AND SPECIALTY RETAIL STORES,CHILDREN & YOUNG PEOPLE
REDACTED,3.57,28/09/2020,AMZNMktplace,Children in care - car mtnce windscreen repair kit,MISCELLANEOUS AND SPECIALTY RETAIL STORES,CHILDREN & YOUNG PEOPLE
REDACTED,209.95,29/09/2020,eBay O 27-05801-46786,397202. 607W. SUHA,DEPARTMENT STORES,CHILDREN & YOUNG PEOPLE
REDACTED,144.92,29/09/2020,ARGOS LTD,382909. 604W. SUHA,DISCOUNT STORES,CHILDREN & YOUNG PEOPLE
REDACTED,17.95,29/09/2020,LCN COM,Domain name SR-154654 XXXXX,COMPUTER NETWORK/INFORMATION SERVICES,CORPORATE SERVICES
REDACTED,6.66,29/09/2020,Amazon Prime D52WT2515,child in care - subscription,DIRECT MARKETING - CONTINUITY/SUBSCRIPTION MERCHANTS,CHILDREN & YOUNG PEOPLE
REDACTED,272.01,29/09/2020,FACEBK TKBNGWNNF2,Facbook ad,ADVERTISING SERVICES,CORPORATE SERVICES
REDACTED,58.80,29/09/2020,FITECH.UK,Heart rate monitor,COMPUTER SOFTWARE STORES,FIRE & PUBLIC SAFETY
REDACTED,99.77,29/09/2020,WWW.RYMAN.CO.UK,Access to work equip - XXXXX,"OFFICE, SCHOOL SUPPLY, AND STATIONERY STORES",CHILDREN & YOUNG PEOPLE
MARK HARDINGHAM,50.00,29/09/2020,BEING DEVELOPED,NFCC Autumn Conference - XXXXX,"ORGANISATIONS, CHARITABLE AND SOCIAL SERVICES",FIRE & PUBLIC SAFETY
REDACTED,19.10,29/09/2020,ASDA  STORES 4218,looked after children provisions,"GROCERY STORES, SUPERMARKETS",CHILDREN & YOUNG PEOPLE
REDACTED,137.46,29/09/2020,AMZNMKTPLACE AMAZON.CO,1189663/1154S Setting up home item for client,MISCELLANEOUS AND SPECIALTY RETAIL STORES,CHILDREN & YOUNG PEOPLE
REDACTED,231.66,29/09/2020,Amazon.co.uk W42MG6IJ5,1189663/1154S Setting up home item for client,DIRECT MARKETING-OTHER DIRECT MARKETERS/NOT ELSEW.,CHILDREN & YOUNG PEOPLE
REDACTED,87.40,29/09/2020,IRCAS,Repayment of Fine re Lost Train Ticket XXXXX-020SL256,FINES,CHILDREN & YOUNG PEOPLE
REDACTED,252.95,30/09/2020,ARGOS LTD,"332N, ID:1260985 fridge freezer",DISCOUNT STORES,CHILDREN & YOUNG PEOPLE
REDACTED,244.99,30/09/2020,ARGOS LTD,"332N, ID:1260985, TV",DISCOUNT STORES,CHILDREN & YOUNG PEOPLE
REDACTED,134.02,30/09/2020,WWW.ADVANTISCREDIT.COM,Final payment - Keswick Hall phone line /broadband,FINES,CHILDREN & YOUNG PEOPLE
REDACTED,149.00,30/09/2020,IKEA LTD SHOP ONLINE,Desk and drawers for XXXXX home workstation.,"EQUIP, FURNITURE, HOME FURNSHNGS STRS (EXCPT APPL)",CHILDREN & YOUNG PEOPLE
REDACTED,190.00,30/09/2020,IPSWICH BC,The Hold premises license,OTHER SERVICES (NOT ELSEWHERE CLASSIFIED),"GROWTH, HIGHWAYS & INFRASTRUCTURE"
REDACTED,20.81,30/09/2020,AMZNMKTPLACE AMAZON.CO,equipment for CIN XXXXX,MISCELLANEOUS AND SPECIALTY RETAIL STORES,CHILDREN & YOUNG PEOPLE
REDACTED,29.90,30/09/2020,B&M 055 - STOWMARKET,Anti-bac spray & wipes,SUNDRY GENERAL MERCHANDISE,CHILDREN & YOUNG PEOPLE
REDACTED,51.48,30/09/2020,RAWLINSON AUTOMOTIVE L,AY67 AUH MOT + 2 Bulbs,"AUTO & TRUCK DLRS-SALES,SVC, REPRS,PRTS, & LEASING",FIRE & PUBLIC SAFETY
REDACTED,55.84,30/09/2020,WWW.PRINTERBASE.CO.UK,Dymo Tape,MISCELLANEOUS AND SPECIALTY RETAIL STORES,FIRE & PUBLIC SAFETY
REDACTED,14.00,30/09/2020,GEN REGISTER OFFICE,Birth Certif COL555058/2020,GOVERNMENT SERVICES-NOT ELSEWHERE CLASSIFIED,CHILDREN & YOUNG PEOPLE
REDACTED,35.30,30/09/2020,B&M 599 - ANGLIA,Sanitising Materials COVID19,SUNDRY GENERAL MERCHANDISE,CHILDREN & YOUNG PEOPLE
REDACTED,20.00,30/09/2020,TESCO GIFT CARD,food for reunification,"GROCERY STORES, SUPERMARKETS",CHILDREN & YOUNG PEOPLE
REDACTED,270.78,30/09/2020,AMZNMKTPLACE AMAZON.CO,1189663/1154S Setting up home item for client,MISCELLANEOUS AND SPECIALTY RETAIL STORES,CHILDREN & YOUNG PEOPLE
REDACTED,20.40,30/09/2020,AMZNMktplace,1141577/1246S Setting up home item for client,MISCELLANEOUS AND SPECIALTY RETAIL STORES,CHILDREN & YOUNG PEOPLE
REDACTED,157.50,30/09/2020,TVLICENSING.CO.UK,254470/1135S setting up home item for client,"CONSULTING, MANAGEMENT AND PUBLIC RELATIONS SVCS",CHILDREN & YOUNG PEOPLE
REDACTED,1200.00,30/09/2020,Hotel on Booking.com,ACC. XXXXX SW XXXXX,"LODGING-HOTELS,MOTELS,RESORTS-NOT CLASSIFIED",CHILDREN & YOUNG PEOPLE
